SERVICE_CODE,ORGANISATION_UNIT,EXPENDITURE_CATEGORY,EXPENDITURE_DESCRIPTION,EXPENDITURE_CODE,NARRATIVE,DATE,TRANSATION_CODE,NET_AMOUNT,SUPPLIER_CODE,SUPPLIER_NAME,FROM_DATE,TO_DATE,FINANCIAL_PERIOD_YEAR
,LEE VALLEY WHITE WATER CENTRE,EMPLOYEES,APPOINTMENT EXPENSES,1301,P113907-SERVICE-ACTIVITY APPREN ADVERT COSTS WWC,13/9/2021 00:00:00,252506,605,SA0133,SOWERBY ADVERTISING AND COMMUNICATIONS,30/8/2021 00:00:00,26/9/2021 00:00:00,P06-2022
,LEE VALLEY WHITE WATER CENTRE,EMPLOYEES,APPOINTMENT EXPENSES,1301,P114032-SERVICE-SCTIVITY APPRENTICE ADVERT COSTS,20/9/2021 00:00:00,252923,125,SA0133,SOWERBY ADVERTISING AND COMMUNICATIONS,30/8/2021 00:00:00,26/9/2021 00:00:00,P06-2022
R&B,CORPORATE TRAINING,EMPLOYEES,TRAINING EXPENSES,1305,P114012-SERVICE-BASIC LIFE SUPPORT INSTRUCTOR TRAINING,13/9/2021 00:00:00,252633,400,HE0448,CAROLINE HETHERINGTON,30/8/2021 00:00:00,26/9/2021 00:00:00,P06-2022
CEO,PR/COMMUNICATIONS,EMPLOYEES,TRAINING EXPENSES,1305,P114111-SERVICE-Ensuring Public Sector Website Accessibility,24/9/2021 00:00:00,253204,325,GO0263,GOVNET COMMUNICATIONS/PARTNERSHIP MEDIA GROUP,30/8/2021 00:00:00,26/9/2021 00:00:00,P06-2022
P&V,SOUTH AREA RANGERS,EMPLOYEES,TRAINING EXPENSES,1305,P113382-SERVICE-B & E Trailer Training Tuition with Toads Sch,09/06/2021 00:00,252484,1010,SA0137,SAFFRON WALDEN AGRICULTURAL TRAINING GROUP,30/8/2021 00:00:00,26/9/2021 00:00:00,P06-2022
P&V,SOUTH AREA RANGERS,EMPLOYEES,TRAINING EXPENSES,1305,P113892-SERVICE-B & E Trailer Test  Tim Crane,09/08/2021 00:00,252563,440,SA0137,SAFFRON WALDEN AGRICULTURAL TRAINING GROUP,30/8/2021 00:00:00,26/9/2021 00:00:00,P06-2022
,LEE VALLEY RIDING CENTRE,EMPLOYEES,TRAINING EXPENSES,1305,P113538-SERVICE-training,15/9/2021 00:00:00,252617,175,LU0175,MANDY LUESLEY BHSI,30/8/2021 00:00:00,26/9/2021 00:00:00,P06-2022
,LEE VALLEY RIDING CENTRE,EMPLOYEES,TRAINING EXPENSES,1305,P114136-SERVICE-STAGE ONE RIDE AND CARE EXAM,20/9/2021 00:00:00,253142,130,BR0059,THE BRITISH HORSE SOCIETY LTD,30/8/2021 00:00:00,26/9/2021 00:00:00,P06-2022
,LEE VALLEY WHITE WATER CENTRE,EMPLOYEES,TRAINING EXPENSES,1305,P114212-SERVICE-Stadium raft guide course,24/9/2021 00:00:00,253293,8.33,BR0580,BRITISH CANOEING,30/8/2021 00:00:00,26/9/2021 00:00:00,P06-2022
,LEE VALLEY WHITE WATER CENTRE,EMPLOYEES,TRAINING EXPENSES,1305,P113925-SERVICE-Rafting Assessments on 4th and 5th,26/9/2021 00:00:00,253613,300.45,BO0584,BOB TIMMS CONSULTING,30/8/2021 00:00:00,26/9/2021 00:00:00,P06-2022
R&B,NON DISTRIBUTED COSTS,EMPLOYEES,SUPERANNUATION ADDED YEARS,1310,LONDON PENSIONS FUND AUTHORITY,09/08/2021 00:00,252356,4976.45,LO0031,LONDON PENSIONS FUND AUTHORITY,30/8/2021 00:00:00,26/9/2021 00:00:00,P06-2022
P&V,FISHERIES MANAGEMENT,EMPLOYEES,CRB CHECKS,1330,DBS CHECKS,13/9/2021 00:00:00,252497,18,DD0119,DUE DILIGENCE CHECKING LIMITED,30/8/2021 00:00:00,26/9/2021 00:00:00,P06-2022
P&V,VOLUNTEERS (L&E),EMPLOYEES,CRB CHECKS,1330,P114006-SERVICE-Disclosure and Barring Service application,13/9/2021 00:00:00,252496,18,DD0119,DUE DILIGENCE CHECKING LIMITED,30/8/2021 00:00:00,26/9/2021 00:00:00,P06-2022
,LV HOCKEY AND TENNIS CENTRE,EMPLOYEES,CRB CHECKS,1330,DBS CHECKS,13/9/2021 00:00:00,252497,18,DD0119,DUE DILIGENCE CHECKING LIMITED,30/8/2021 00:00:00,26/9/2021 00:00:00,P06-2022
,LEE VALLEY RIDING CENTRE,EMPLOYEES,CRB CHECKS,1330,ADMIN FEE,13/9/2021 00:00:00,252497,54,DD0119,DUE DILIGENCE CHECKING LIMITED,30/8/2021 00:00:00,26/9/2021 00:00:00,P06-2022
,LEE VALLEY RIDING CENTRE,EMPLOYEES,CRB CHECKS,1330,DBS CHECKS,13/9/2021 00:00:00,252497,120,DD0119,DUE DILIGENCE CHECKING LIMITED,30/8/2021 00:00:00,26/9/2021 00:00:00,P06-2022
,LV LEISURE CENTRE GOLF COURSE,EMPLOYEES,CRB CHECKS,1330,ADMIN FEE,13/9/2021 00:00:00,252497,36,DD0119,DUE DILIGENCE CHECKING LIMITED,30/8/2021 00:00:00,26/9/2021 00:00:00,P06-2022
,LV LEISURE CENTRE GOLF COURSE,EMPLOYEES,CRB CHECKS,1330,DBS CHECKS,13/9/2021 00:00:00,252497,23,DD0119,DUE DILIGENCE CHECKING LIMITED,30/8/2021 00:00:00,26/9/2021 00:00:00,P06-2022
CEO,PROPERTY,EMPLOYEES,DRIVING LICENCE CHECKS,1335,DRIVING LICENCE CHECK,09/07/2021 00:00,252570,6.25,GB0234,GB GROUP PLC,30/8/2021 00:00:00,26/9/2021 00:00:00,P06-2022
R&B,CORPORATE TRAINING,EMPLOYEES,APPRENTICE LEVY,1390,PAYE,26/9/2021 00:00:00,253087,1943,HM0368,HMRC,30/8/2021 00:00:00,26/9/2021 00:00:00,P06-2022
,LEE VALLEY MARINA SPRINGFIELD,PREMISES RELATED EXPENDITURE,SCHEDULED GROUND MAINTENANCE,2111,P113185-SERVICE-2 x 5L Roundup weed killer @71.50 each,24/9/2021 00:00:00,253305,119.16,AP0245,APS LIMITED,30/8/2021 00:00:00,26/9/2021 00:00:00,P06-2022
CEO,LVLC SERVICE CHARGE,PREMISES RELATED EXPENDITURE,SCHEDULED GROUND MAINTENANCE,2111,GLENDALE GROUNDS MANAGEMENT LI,20/9/2021 00:00:00,252903,2299.79,GL0214,GLENDALE GROUNDS MANAGEMENT LIMITED,30/8/2021 00:00:00,26/9/2021 00:00:00,P06-2022
CEO,LVLC SERVICE CHARGE,PREMISES RELATED EXPENDITURE,SCHEDULED GROUND MAINTENANCE,2111,GLENDALE GROUNDS MANAGEMENT LI,20/9/2021 00:00:00,252903,101.35,GL0214,GLENDALE GROUNDS MANAGEMENT LIMITED,30/8/2021 00:00:00,26/9/2021 00:00:00,P06-2022
P&V,MYDDELTON HOUSE,PREMISES RELATED EXPENDITURE,CONTRACT CLEANING,2120,P112094-SERVICE-Myddelton House Cleaning Contract,26/9/2021 00:00:00,253474,2893.93,BR0632,BRITANNIA SERVICES GROUP LTD,30/8/2021 00:00:00,26/9/2021 00:00:00,P06-2022
,LEE VALLEY CAMPSITE,PREMISES RELATED EXPENDITURE,CONTRACT CLEANING,2120,P114055-SERVICE-site cleaning Aug 21,21/9/2021 00:00:00,252492,2873,LI0305,LIMPIAR CLEANING,30/8/2021 00:00:00,26/9/2021 00:00:00,P06-2022
,LEE VALLEY CARAVAN PARK,PREMISES RELATED EXPENDITURE,CONTRACT CLEANING,2120,P113864-SERVICE-Monthly linen washing,09/06/2021 00:00,252159,482.43,JO0168,JOHNSON STALBRIDGE LINEN SERVICES,30/8/2021 00:00:00,26/9/2021 00:00:00,P06-2022
,LEE VALLEY CARAVAN PARK,PREMISES RELATED EXPENDITURE,CONTRACT CLEANING,2120,P113902-SERVICE-Contract cleaning,09/06/2021 00:00,252471,2351.5,LI0305,LIMPIAR CLEANING,30/8/2021 00:00:00,26/9/2021 00:00:00,P06-2022
,LEE VALLEY CARAVAN PARK,PREMISES RELATED EXPENDITURE,CONTRACT CLEANING,2120,P113903-SERVICE-Contract cleaning,09/06/2021 00:00,252472,2698,LI0305,LIMPIAR CLEANING,30/8/2021 00:00:00,26/9/2021 00:00:00,P06-2022
P&V,NORTH AREA RANGERS,PREMISES RELATED EXPENDITURE,CONTRACT CLEANING,2120,GLENDALE GROUNDS MANAGEMENT LI,20/9/2021 00:00:00,252903,509.09,GL0214,GLENDALE GROUNDS MANAGEMENT LIMITED,30/8/2021 00:00:00,26/9/2021 00:00:00,P06-2022
P&V,GUNPOWDER PARK,PREMISES RELATED EXPENDITURE,CONTRACT CLEANING,2120,GLENDALE GROUNDS MANAGEMENT LI,20/9/2021 00:00:00,252903,509.09,GL0214,GLENDALE GROUNDS MANAGEMENT LIMITED,30/8/2021 00:00:00,26/9/2021 00:00:00,P06-2022
P&V,RIVER LEE COUNTRY PARK,PREMISES RELATED EXPENDITURE,CONTRACT CLEANING,2120,GLENDALE GROUNDS MANAGEMENT LI,20/9/2021 00:00:00,252903,1018.19,GL0214,GLENDALE GROUNDS MANAGEMENT LIMITED,30/8/2021 00:00:00,26/9/2021 00:00:00,P06-2022
,LEE VALLEY VELOPARK,PREMISES RELATED EXPENDITURE,CONTRACT CLEANING,2120,P113744-SERVICE-Contract Cleaning,09/06/2021 00:00,251147,831.78,CA0498,CASNA GROUP,30/8/2021 00:00:00,26/9/2021 00:00:00,P06-2022
,LEE VALLEY VELOPARK,PREMISES RELATED EXPENDITURE,CONTRACT CLEANING,2120,P113769-SERVICE-Conract Cleaning,09/06/2021 00:00,251396,531,CA0498,CASNA GROUP,30/8/2021 00:00:00,26/9/2021 00:00:00,P06-2022
,LEE VALLEY VELOPARK,PREMISES RELATED EXPENDITURE,CONTRACT CLEANING,2120,P113880-SERVICE-Contract Cleaning,09/06/2021 00:00,251941,601.56,CA0498,CASNA GROUP,30/8/2021 00:00:00,26/9/2021 00:00:00,P06-2022
,LEE VALLEY VELOPARK,PREMISES RELATED EXPENDITURE,CONTRACT CLEANING,2120,P114161-SERVICE-Contract Cleaning,24/9/2021 00:00:00,252324,637.2,CA0498,CASNA GROUP,30/8/2021 00:00:00,26/9/2021 00:00:00,P06-2022
,LEE VALLEY VELOPARK,PREMISES RELATED EXPENDITURE,CONTRACT CLEANING,2120,P113913-SERVICE-Contract Cleaning,09/08/2021 00:00,252325,531,CA0498,CASNA GROUP,30/8/2021 00:00:00,26/9/2021 00:00:00,P06-2022
,LEE VALLEY VELOPARK,PREMISES RELATED EXPENDITURE,CONTRACT CLEANING,2120,P114175-SERVICE-Contract Cleaning,24/9/2021 00:00:00,252853,637.2,CA0498,CASNA GROUP,30/8/2021 00:00:00,26/9/2021 00:00:00,P06-2022
,LV LEISURE CENTRE CAMPSITE,PREMISES RELATED EXPENDITURE,CONTRACT CLEANING,2120,P113964-SERVICE-Annual duty of care,13/9/2021 00:00:00,252346,77.25,PE0015,PHS GROUP PLC,30/8/2021 00:00:00,26/9/2021 00:00:00,P06-2022
,LV LEISURE CENTRE CAMPSITE,PREMISES RELATED EXPENDITURE,CONTRACT CLEANING,2120,P113969-SERVICE-Contract cleaning,13/9/2021 00:00:00,252473,2398.5,LI0305,LIMPIAR CLEANING,30/8/2021 00:00:00,26/9/2021 00:00:00,P06-2022
,LEE VALLEY RIDING CENTRE,PREMISES RELATED EXPENDITURE,CLEANING CONTRACT,2121,P113893-SERVICE-centre cleaning august 21 - dec 21,09/06/2021 00:00,252336,819.87,MA0015,MAYFAIR CLEANING COMPANY LIMITED,30/8/2021 00:00:00,26/9/2021 00:00:00,P06-2022
,LEE VALLEY WHITE WATER CENTRE,PREMISES RELATED EXPENDITURE,CLEANING CONTRACT,2121,P113926-SERVICE-Contract Cleaners from Sept,09/07/2021 00:00,252322,1136.28,CA0498,CASNA GROUP,30/8/2021 00:00:00,26/9/2021 00:00:00,P06-2022
,LEE VALLEY WHITE WATER CENTRE,PREMISES RELATED EXPENDITURE,CLEANING CONTRACT,2121,P113926-SERVICE-Contract Cleaners from Sept,09/07/2021 00:00,252323,1570.74,CA0498,CASNA GROUP,30/8/2021 00:00:00,26/9/2021 00:00:00,P06-2022
,LEE VALLEY WHITE WATER CENTRE,PREMISES RELATED EXPENDITURE,CLEANING CONTRACT,2121,P113926-SERVICE-Contract Cleaners from Sept,20/9/2021 00:00:00,252863,1554.03,CA0498,CASNA GROUP,30/8/2021 00:00:00,26/9/2021 00:00:00,P06-2022
,LEE VALLEY WHITE WATER CENTRE,PREMISES RELATED EXPENDITURE,CLEANING CONTRACT,2121,P113926-SERVICE-Contract Cleaners from Sept,20/9/2021 00:00:00,253109,609.92,CA0498,CASNA GROUP,30/8/2021 00:00:00,26/9/2021 00:00:00,P06-2022
,LEE VALLEY WHITE WATER CENTRE,PREMISES RELATED EXPENDITURE,CLEANING CONTRACT,2121,P113926-SERVICE-Contract Cleaners from Sept,26/9/2021 00:00:00,253479,1253.25,CA0498,CASNA GROUP,30/8/2021 00:00:00,26/9/2021 00:00:00,P06-2022
,LEE VALLEY WHITE WATER CENTRE,PREMISES RELATED EXPENDITURE,CLEANING CONTRACT,2121,P113926-SERVICE-Contract Cleaners from Sept,26/9/2021 00:00:00,253561,1219.83,CA0498,CASNA GROUP,30/8/2021 00:00:00,26/9/2021 00:00:00,P06-2022
,LEE VALLEY MARINA STANSTEAD,PREMISES RELATED EXPENDITURE,GM MAIN CONTRACT SCHEDULED,2141,GLENDALE GROUNDS MANAGEMENT LI,20/9/2021 00:00:00,252903,353.97,GL0214,GLENDALE GROUNDS MANAGEMENT LIMITED,30/8/2021 00:00:00,26/9/2021 00:00:00,P06-2022
,LEE VALLEY WATERWORKS CENTRE,PREMISES RELATED EXPENDITURE,GM MAIN CONTRACT SCHEDULED,2141,GLENDALE GROUNDS MANAGEMENT LI,20/9/2021 00:00:00,252903,174.98,GL0214,GLENDALE GROUNDS MANAGEMENT LIMITED,30/8/2021 00:00:00,26/9/2021 00:00:00,P06-2022
,LEE VALLEY WATERWORKS CENTRE,PREMISES RELATED EXPENDITURE,GM MAIN CONTRACT SCHEDULED,2141,GLENDALE GROUNDS MANAGEMENT LI,20/9/2021 00:00:00,252903,403.45,GL0214,GLENDALE GROUNDS MANAGEMENT LIMITED,30/8/2021 00:00:00,26/9/2021 00:00:00,P06-2022
,LEE VALLEY FARM HAYES HILL,PREMISES RELATED EXPENDITURE,GM MAIN CONTRACT SCHEDULED,2141,GLENDALE GROUNDS MANAGEMENT LI,20/9/2021 00:00:00,252903,188.49,GL0214,GLENDALE GROUNDS MANAGEMENT LIMITED,30/8/2021 00:00:00,26/9/2021 00:00:00,P06-2022
P&V,EAST INDIA DOCK AND BOW CREEK,PREMISES RELATED EXPENDITURE,GM MAIN CONTRACT SCHEDULED,2141,GLENDALE GROUNDS MANAGEMENT LI,20/9/2021 00:00:00,252903,874.91,GL0214,GLENDALE GROUNDS MANAGEMENT LIMITED,30/8/2021 00:00:00,26/9/2021 00:00:00,P06-2022
P&V,EAST INDIA DOCK AND BOW CREEK,PREMISES RELATED EXPENDITURE,GM MAIN CONTRACT SCHEDULED,2141,GLENDALE GROUNDS MANAGEMENT LI,20/9/2021 00:00:00,252903,716.43,GL0214,GLENDALE GROUNDS MANAGEMENT LIMITED,30/8/2021 00:00:00,26/9/2021 00:00:00,P06-2022
P&V,NORTH AREA RANGERS,PREMISES RELATED EXPENDITURE,GM MAIN CONTRACT SCHEDULED,2141,GLENDALE GROUNDS MANAGEMENT LI,20/9/2021 00:00:00,252903,5126.83,GL0214,GLENDALE GROUNDS MANAGEMENT LIMITED,30/8/2021 00:00:00,26/9/2021 00:00:00,P06-2022
P&V,SOUTH AREA RANGERS,PREMISES RELATED EXPENDITURE,GM MAIN CONTRACT SCHEDULED,2141,GLENDALE GROUNDS MANAGEMENT LI,20/9/2021 00:00:00,252903,9985.29,GL0214,GLENDALE GROUNDS MANAGEMENT LIMITED,30/8/2021 00:00:00,26/9/2021 00:00:00,P06-2022
P&V,SOUTH AREA RANGERS,PREMISES RELATED EXPENDITURE,GM MAIN CONTRACT SCHEDULED,2141,GLENDALE GROUNDS MANAGEMENT LI,20/9/2021 00:00:00,252903,349.97,GL0214,GLENDALE GROUNDS MANAGEMENT LIMITED,30/8/2021 00:00:00,26/9/2021 00:00:00,P06-2022
P&V,ABBEY GARDENS,PREMISES RELATED EXPENDITURE,GM MAIN CONTRACT SCHEDULED,2141,GLENDALE GROUNDS MANAGEMENT LI,20/9/2021 00:00:00,252903,2663.45,GL0214,GLENDALE GROUNDS MANAGEMENT LIMITED,30/8/2021 00:00:00,26/9/2021 00:00:00,P06-2022
P&V,GUNPOWDER PARK,PREMISES RELATED EXPENDITURE,GM MAIN CONTRACT SCHEDULED,2141,GLENDALE GROUNDS MANAGEMENT LI,20/9/2021 00:00:00,252903,3028.85,GL0214,GLENDALE GROUNDS MANAGEMENT LIMITED,30/8/2021 00:00:00,26/9/2021 00:00:00,P06-2022
P&V,RIVER LEE COUNTRY PARK,PREMISES RELATED EXPENDITURE,GM MAIN CONTRACT SCHEDULED,2141,GLENDALE GROUNDS MANAGEMENT LI,20/9/2021 00:00:00,252903,18151.82,GL0214,GLENDALE GROUNDS MANAGEMENT LIMITED,30/8/2021 00:00:00,26/9/2021 00:00:00,P06-2022
P&V,RIVER LEE COUNTRY PARK,PREMISES RELATED EXPENDITURE,GM MAIN CONTRACT SCHEDULED,2141,GLENDALE GROUNDS MANAGEMENT LI,20/9/2021 00:00:00,252903,2099.79,GL0214,GLENDALE GROUNDS MANAGEMENT LIMITED,30/8/2021 00:00:00,26/9/2021 00:00:00,P06-2022
,LEE VALLEY VELOPARK,PREMISES RELATED EXPENDITURE,GM MAIN CONTRACT SCHEDULED,2141,GLENDALE GROUNDS MANAGEMENT LI,20/9/2021 00:00:00,252903,1692.19,GL0214,GLENDALE GROUNDS MANAGEMENT LIMITED,30/8/2021 00:00:00,26/9/2021 00:00:00,P06-2022
,LV HOCKEY AND TENNIS CENTRE,PREMISES RELATED EXPENDITURE,GM MAIN CONTRACT SCHEDULED,2141,GLENDALE GROUNDS MANAGEMENT LI,20/9/2021 00:00:00,252903,2067.88,GL0214,GLENDALE GROUNDS MANAGEMENT LIMITED,30/8/2021 00:00:00,26/9/2021 00:00:00,P06-2022
P&V,THREE MILLS,PREMISES RELATED EXPENDITURE,GM MAIN CONTRACT SCHEDULED,2141,GLENDALE GROUNDS MANAGEMENT LI,20/9/2021 00:00:00,252903,1201.75,GL0214,GLENDALE GROUNDS MANAGEMENT LIMITED,30/8/2021 00:00:00,26/9/2021 00:00:00,P06-2022
,LEE VALLEY RIDING CENTRE,PREMISES RELATED EXPENDITURE,GM MAIN CONTRACT SCHEDULED,2141,GLENDALE GROUNDS MANAGEMENT LI,20/9/2021 00:00:00,252903,443.4,GL0214,GLENDALE GROUNDS MANAGEMENT LIMITED,30/8/2021 00:00:00,26/9/2021 00:00:00,P06-2022
,LEE VALLEY ICE CENTRE,PREMISES RELATED EXPENDITURE,GM MAIN CONTRACT SCHEDULED,2141,GLENDALE GROUNDS MANAGEMENT LI,20/9/2021 00:00:00,252903,309.89,GL0214,GLENDALE GROUNDS MANAGEMENT LIMITED,30/8/2021 00:00:00,26/9/2021 00:00:00,P06-2022
P&V,FORMER LV LIDO SITE,PREMISES RELATED EXPENDITURE,GM MAIN CONTRACT SCHEDULED,2141,GLENDALE GROUNDS MANAGEMENT LI,20/9/2021 00:00:00,252903,954.78,GL0214,GLENDALE GROUNDS MANAGEMENT LIMITED,30/8/2021 00:00:00,26/9/2021 00:00:00,P06-2022
,LEE VALLEY ATHLETICS CENTRE,PREMISES RELATED EXPENDITURE,GM MAIN CONTRACT SCHEDULED,2141,GLENDALE GROUNDS MANAGEMENT LI,20/9/2021 00:00:00,252903,467.68,GL0214,GLENDALE GROUNDS MANAGEMENT LIMITED,30/8/2021 00:00:00,26/9/2021 00:00:00,P06-2022
,LEE VALLEY WHITE WATER CENTRE,PREMISES RELATED EXPENDITURE,GM MAIN CONTRACT SCHEDULED,2141,GLENDALE GROUNDS MANAGEMENT LI,20/9/2021 00:00:00,252903,1658.49,GL0214,GLENDALE GROUNDS MANAGEMENT LIMITED,30/8/2021 00:00:00,26/9/2021 00:00:00,P06-2022
P&V,NORTH AREA RANGERS,PREMISES RELATED EXPENDITURE,GM MAIN CONTRACT UNSCHEDULED,2142,P113785-SERVICE-Additional Dog Bin Collections - May,24/9/2021 00:00:00,252338,519,GL0214,GLENDALE GROUNDS MANAGEMENT LIMITED,30/8/2021 00:00:00,26/9/2021 00:00:00,P06-2022
P&V,NORTH AREA RANGERS,PREMISES RELATED EXPENDITURE,GM MAIN CONTRACT UNSCHEDULED,2142,P113786-SERVICE-Additional Dog Bin Collections - July,24/9/2021 00:00:00,252341,519,GL0214,GLENDALE GROUNDS MANAGEMENT LIMITED,30/8/2021 00:00:00,26/9/2021 00:00:00,P06-2022
,LEE VALLEY WATERWORKS CENTRE,PREMISES RELATED EXPENDITURE,GM HORTICULTURE SCHEDULED,2143,GLENDALE GROUNDS MANAGEMENT LI,20/9/2021 00:00:00,252903,155.61,GL0214,GLENDALE GROUNDS MANAGEMENT LIMITED,30/8/2021 00:00:00,26/9/2021 00:00:00,P06-2022
P&V,NORTH AREA RANGERS,PREMISES RELATED EXPENDITURE,GM HORTICULTURE SCHEDULED,2143,GLENDALE GROUNDS MANAGEMENT LI,20/9/2021 00:00:00,252903,218.65,GL0214,GLENDALE GROUNDS MANAGEMENT LIMITED,30/8/2021 00:00:00,26/9/2021 00:00:00,P06-2022
P&V,SOUTH AREA RANGERS,PREMISES RELATED EXPENDITURE,GM HORTICULTURE SCHEDULED,2143,GLENDALE GROUNDS MANAGEMENT LI,20/9/2021 00:00:00,252903,126.51,GL0214,GLENDALE GROUNDS MANAGEMENT LIMITED,30/8/2021 00:00:00,26/9/2021 00:00:00,P06-2022
P&V,ABBEY GARDENS,PREMISES RELATED EXPENDITURE,GM HORTICULTURE SCHEDULED,2143,GLENDALE GROUNDS MANAGEMENT LI,20/9/2021 00:00:00,252903,1819.81,GL0214,GLENDALE GROUNDS MANAGEMENT LIMITED,30/8/2021 00:00:00,26/9/2021 00:00:00,P06-2022
P&V,GUNPOWDER PARK,PREMISES RELATED EXPENDITURE,GM HORTICULTURE SCHEDULED,2143,GLENDALE GROUNDS MANAGEMENT LI,20/9/2021 00:00:00,252903,238.2,GL0214,GLENDALE GROUNDS MANAGEMENT LIMITED,30/8/2021 00:00:00,26/9/2021 00:00:00,P06-2022
P&V,RIVER LEE COUNTRY PARK,PREMISES RELATED EXPENDITURE,GM HORTICULTURE SCHEDULED,2143,GLENDALE GROUNDS MANAGEMENT LI,20/9/2021 00:00:00,252903,122.16,GL0214,GLENDALE GROUNDS MANAGEMENT LIMITED,30/8/2021 00:00:00,26/9/2021 00:00:00,P06-2022
,LEE VALLEY VELOPARK,PREMISES RELATED EXPENDITURE,GM HORTICULTURE SCHEDULED,2143,GLENDALE GROUNDS MANAGEMENT LI,20/9/2021 00:00:00,252903,39.32,GL0214,GLENDALE GROUNDS MANAGEMENT LIMITED,30/8/2021 00:00:00,26/9/2021 00:00:00,P06-2022
,LV HOCKEY AND TENNIS CENTRE,PREMISES RELATED EXPENDITURE,GM HORTICULTURE SCHEDULED,2143,GLENDALE GROUNDS MANAGEMENT LI,20/9/2021 00:00:00,252903,1056.86,GL0214,GLENDALE GROUNDS MANAGEMENT LIMITED,30/8/2021 00:00:00,26/9/2021 00:00:00,P06-2022
P&V,THREE MILLS,PREMISES RELATED EXPENDITURE,GM HORTICULTURE SCHEDULED,2143,GLENDALE GROUNDS MANAGEMENT LI,20/9/2021 00:00:00,252903,40,GL0214,GLENDALE GROUNDS MANAGEMENT LIMITED,30/8/2021 00:00:00,26/9/2021 00:00:00,P06-2022
,LEE VALLEY RIDING CENTRE,PREMISES RELATED EXPENDITURE,GM HORTICULTURE SCHEDULED,2143,GLENDALE GROUNDS MANAGEMENT LI,20/9/2021 00:00:00,252903,12.38,GL0214,GLENDALE GROUNDS MANAGEMENT LIMITED,30/8/2021 00:00:00,26/9/2021 00:00:00,P06-2022
,LEE VALLEY WHITE WATER CENTRE,PREMISES RELATED EXPENDITURE,GM HORTICULTURE SCHEDULED,2143,GLENDALE GROUNDS MANAGEMENT LI,20/9/2021 00:00:00,252903,5.73,GL0214,GLENDALE GROUNDS MANAGEMENT LIMITED,30/8/2021 00:00:00,26/9/2021 00:00:00,P06-2022
P&V,MYDDELTON HOUSE GARDENS,PREMISES RELATED EXPENDITURE,GM ARBORICULTURE UNSCHEDULED,2146,P113915-SERVICE-Elegant Strings 04 Sept 21 remaining balance,09/07/2021 00:00,252495,620,EN0391,ENTERTAINMENT NATION LTD,30/8/2021 00:00:00,26/9/2021 00:00:00,P06-2022
P&V,GUNPOWDER PARK,PREMISES RELATED EXPENDITURE,GM ARBORICULTURE UNSCHEDULED,2146,P113953-SERVICE-Tree Works at Gunpowder Park,20/9/2021 00:00:00,252909,250,PA0222,PARKIN & PARKER TREE SPECIALISTS,30/8/2021 00:00:00,26/9/2021 00:00:00,P06-2022
P&V,EAST INDIA DOCK AND BOW CREEK,PREMISES RELATED EXPENDITURE,GM NON MAIN CONT UNSCHEDULED,2147,P114030-SERVICE-Clear Vegetation at Ice Centre,20/9/2021 00:00:00,253233,700,JO0019,R G JOYCE,30/8/2021 00:00:00,26/9/2021 00:00:00,P06-2022
P&V,SOUTH AREA RANGERS,PREMISES RELATED EXPENDITURE,HABITAT MANAGEMENT WORKS,2149,P113619-SERVICE-1x 20 Yard RORO Green Waste Skip,13/9/2021 00:00:00,252519,420,MC0331,MCGRATH BROS WASTE CONTROL LIMITED,30/8/2021 00:00:00,26/9/2021 00:00:00,P06-2022
P&V,SOUTH AREA RANGERS,PREMISES RELATED EXPENDITURE,HABITAT MANAGEMENT WORKS,2149,P112357-SERVICE-Japanese Knowtweed at Tottenham Marshes,20/9/2021 00:00:00,253257,325,GO0044,S.H.GOSS & CO LTD,30/8/2021 00:00:00,26/9/2021 00:00:00,P06-2022
P&V,RIVER LEE COUNTRY PARK,PREMISES RELATED EXPENDITURE,HABITAT MANAGEMENT WORKS,2149,P112583-SERVICE-Crassula Treatment at Hall Marsh Scrape,20/9/2021 00:00:00,252554,425,GO0044,S.H.GOSS & CO LTD,30/8/2021 00:00:00,26/9/2021 00:00:00,P06-2022
,LEE VALLEY MARINA SPRINGFIELD,PREMISES RELATED EXPENDITURE,GENERAL WASTE,2211,P113556-SERVICE-July & August General waste & Recyling,09/07/2021 00:00,252418,1392.33,CL0037,VEOLIA ES (UK) LTD,30/8/2021 00:00:00,26/9/2021 00:00:00,P06-2022
,LEE VALLEY MARINA STANSTEAD,PREMISES RELATED EXPENDITURE,GENERAL WASTE,2211,P112012-SERVICE-Annual waste removal RH &SA moorings,13/9/2021 00:00:00,252424,243.66,CL0037,VEOLIA ES (UK) LTD,30/8/2021 00:00:00,26/9/2021 00:00:00,P06-2022
,LEE VALLEY MARINA STANSTEAD,PREMISES RELATED EXPENDITURE,GENERAL WASTE,2211,P112012-SERVICE-Annual waste removal RH &SA moorings,13/9/2021 00:00:00,252427,743.82,CL0037,VEOLIA ES (UK) LTD,30/8/2021 00:00:00,26/9/2021 00:00:00,P06-2022
,LEE VALLEY WATERWORKS CENTRE,PREMISES RELATED EXPENDITURE,GENERAL WASTE,2211,P110248-SERVICE-Waterworks Recycling / Waste Rental,26/9/2021 00:00:00,253563,-34.53,BY0049,BYWATERS (LEYTON) LTD,30/8/2021 00:00:00,26/9/2021 00:00:00,P06-2022
P&V,LEE VALLEY FARM HOLYFIELDHALL,PREMISES RELATED EXPENDITURE,GENERAL WASTE,2211,P113983-SERVICE-Waste for Incineration,13/9/2021 00:00:00,252611,362.44,BY0049,BYWATERS (LEYTON) LTD,30/8/2021 00:00:00,26/9/2021 00:00:00,P06-2022
,LEE VALLEY FARM HAYES HILL,PREMISES RELATED EXPENDITURE,GENERAL WASTE,2211,BYWATERS (LEYTON) LTD,26/9/2021 00:00:00,252175,209.25,BY0049,BYWATERS (LEYTON) LTD,30/8/2021 00:00:00,26/9/2021 00:00:00,P06-2022
,LEE VALLEY FARM HAYES HILL,PREMISES RELATED EXPENDITURE,GENERAL WASTE,2211,BYWATERS (LEYTON) LTD,26/9/2021 00:00:00,252176,683.86,BY0049,BYWATERS (LEYTON) LTD,30/8/2021 00:00:00,26/9/2021 00:00:00,P06-2022
,LEE VALLEY FARM HAYES HILL,PREMISES RELATED EXPENDITURE,GENERAL WASTE,2211,BYWATERS (LEYTON) LTD,26/9/2021 00:00:00,252177,792.95,BY0049,BYWATERS (LEYTON) LTD,30/8/2021 00:00:00,26/9/2021 00:00:00,P06-2022
,LEE VALLEY CAMPSITE,PREMISES RELATED EXPENDITURE,GENERAL WASTE,2211,P114058-SERVICE-12 yd,15/9/2021 00:00:00,252422,343.36,CL0037,VEOLIA ES (UK) LTD,30/8/2021 00:00:00,26/9/2021 00:00:00,P06-2022
,LEE VALLEY CAMPSITE,PREMISES RELATED EXPENDITURE,GENERAL WASTE,2211,P114058-SERVICE-8 yd  16 yd,15/9/2021 00:00:00,252423,816.12,CL0037,VEOLIA ES (UK) LTD,30/8/2021 00:00:00,26/9/2021 00:00:00,P06-2022
,LEE VALLEY CARAVAN PARK,PREMISES RELATED EXPENDITURE,GENERAL WASTE,2211,P113935-SERVICE-Monthly rental,09/06/2021 00:00,252426,2110.84,CL0037,VEOLIA ES (UK) LTD,30/8/2021 00:00:00,26/9/2021 00:00:00,P06-2022
P&V,SOUTH AREA RANGERS,PREMISES RELATED EXPENDITURE,GENERAL WASTE,2211,P113375-SERVICE-Skip at WaterWorks Centre,20/9/2021 00:00:00,252883,270,GB0239,GBN SERVICES LTD,30/8/2021 00:00:00,26/9/2021 00:00:00,P06-2022
P&V,RIVER LEE COUNTRY PARK,PREMISES RELATED EXPENDITURE,GENERAL WASTE,2211,P113371-SERVICE-12yd General Rubbish Skip at Holyfield Hall F,13/9/2021 00:00:00,252514,270,GB0239,GBN SERVICES LTD,30/8/2021 00:00:00,26/9/2021 00:00:00,P06-2022
P&V,RIVER LEE COUNTRY PARK,PREMISES RELATED EXPENDITURE,GENERAL WASTE,2211,P113371-SERVICE-12yd General Rubbish Skip at Holyfield Hall F,26/9/2021 00:00:00,253542,270,GB0239,GBN SERVICES LTD,30/8/2021 00:00:00,26/9/2021 00:00:00,P06-2022
P&V,ALMOST WILD CAMPSITE,PREMISES RELATED EXPENDITURE,GENERAL WASTE,2211,P114037-SERVICE-Empty toilets,13/9/2021 00:00:00,251361,250,CO0550,CONVERT WATER LTD,30/8/2021 00:00:00,26/9/2021 00:00:00,P06-2022
P&V,ALMOST WILD CAMPSITE,PREMISES RELATED EXPENDITURE,GENERAL WASTE,2211,P114038-SERVICE-Empty toilets,13/9/2021 00:00:00,251913,220,CO0550,CONVERT WATER LTD,30/8/2021 00:00:00,26/9/2021 00:00:00,P06-2022
,LEE VALLEY VELOPARK,PREMISES RELATED EXPENDITURE,GENERAL WASTE,2211,P113741-SERVICE-Waste Disposal,09/06/2021 00:00,251053,285.27,PE0015,PHS GROUP PLC,30/8/2021 00:00:00,26/9/2021 00:00:00,P06-2022
,LEE VALLEY VELOPARK,PREMISES RELATED EXPENDITURE,GENERAL WASTE,2211,P113745-SERVICE-Waste Collection,09/06/2021 00:00,251157,507.21,CL0037,VEOLIA ES (UK) LTD,30/8/2021 00:00:00,26/9/2021 00:00:00,P06-2022
,LEE VALLEY VELOPARK,PREMISES RELATED EXPENDITURE,GENERAL WASTE,2211,P113741-SERVICE-Waste Disposal,13/9/2021 00:00:00,252344,285.27,PE0015,PHS GROUP PLC,30/8/2021 00:00:00,26/9/2021 00:00:00,P06-2022
,LEE VALLEY VELOPARK,PREMISES RELATED EXPENDITURE,GENERAL WASTE,2211,P113923-SERVICE-Waste Disposal,13/9/2021 00:00:00,252417,578.5,CL0037,VEOLIA ES (UK) LTD,30/8/2021 00:00:00,26/9/2021 00:00:00,P06-2022
,LV HOCKEY AND TENNIS CENTRE,PREMISES RELATED EXPENDITURE,GENERAL WASTE,2211,P113890-SERVICE-waste removal and duty of care,09/06/2021 00:00,251158,309.08,CL0037,VEOLIA ES (UK) LTD,30/8/2021 00:00:00,26/9/2021 00:00:00,P06-2022
,LV HOCKEY AND TENNIS CENTRE,PREMISES RELATED EXPENDITURE,GENERAL WASTE,2211,P113890-SERVICE-waste removal and duty of care,13/9/2021 00:00:00,251159,5,CL0037,VEOLIA ES (UK) LTD,30/8/2021 00:00:00,26/9/2021 00:00:00,P06-2022
,LV HOCKEY AND TENNIS CENTRE,PREMISES RELATED EXPENDITURE,GENERAL WASTE,2211,P113890-SERVICE-waste removal and duty of care,13/9/2021 00:00:00,252420,398.34,CL0037,VEOLIA ES (UK) LTD,30/8/2021 00:00:00,26/9/2021 00:00:00,P06-2022
,LV HOCKEY AND TENNIS CENTRE,PREMISES RELATED EXPENDITURE,GENERAL WASTE,2211,P113890-SERVICE-waste removal and duty of care,09/07/2021 00:00,252421,5,CL0037,VEOLIA ES (UK) LTD,30/8/2021 00:00:00,26/9/2021 00:00:00,P06-2022
,LEE VALLEY RIDING CENTRE,PREMISES RELATED EXPENDITURE,GENERAL WASTE,2211,P112045-SERVICE-Recycling waste & compactor,20/9/2021 00:00:00,252541,503.91,BY0049,BYWATERS (LEYTON) LTD,30/8/2021 00:00:00,26/9/2021 00:00:00,P06-2022
,LEE VALLEY RIDING CENTRE,PREMISES RELATED EXPENDITURE,GENERAL WASTE,2211,P112045-SERVICE-RECYCLING WASTE AND COMPACTOR RENTAL,20/9/2021 00:00:00,252541,1426.11,BY0049,BYWATERS (LEYTON) LTD,30/8/2021 00:00:00,26/9/2021 00:00:00,P06-2022
,LEE VALLEY ICE CENTRE,PREMISES RELATED EXPENDITURE,GENERAL WASTE,2211,P114100-SERVICE-Collection/Disposal of compactor,13/9/2021 00:00:00,252542,512.49,BY0049,BYWATERS (LEYTON) LTD,30/8/2021 00:00:00,26/9/2021 00:00:00,P06-2022
,LV LEISURE CENTRE CAMPSITE,PREMISES RELATED EXPENDITURE,GENERAL WASTE,2211,P113968-SERVICE-General Waste,13/9/2021 00:00:00,252425,2220.71,CL0037,VEOLIA ES (UK) LTD,30/8/2021 00:00:00,26/9/2021 00:00:00,P06-2022
,LV LEISURE CENTRE CAMPSITE,PREMISES RELATED EXPENDITURE,GENERAL WASTE,2211,P114195-SERVICE-General waste,26/9/2021 00:00:00,252539,201.72,BY0049,BYWATERS (LEYTON) LTD,30/8/2021 00:00:00,26/9/2021 00:00:00,P06-2022
,LV LEISURE CENTRE CAMPSITE,PREMISES RELATED EXPENDITURE,GENERAL WASTE,2211,P110499-SERVICE-general waste,26/9/2021 00:00:00,253562,-151.68,BY0049,BYWATERS (LEYTON) LTD,30/8/2021 00:00:00,26/9/2021 00:00:00,P06-2022
,LV LEISURE CENTRE GOLF COURSE,PREMISES RELATED EXPENDITURE,GENERAL WASTE,2211,P113637-SERVICE-Valdor herbicide,09/06/2021 00:00,252214,319.2,CA0698,CAMBRIDGE GOLF COMPANY,30/8/2021 00:00:00,26/9/2021 00:00:00,P06-2022
,LEE VALLEY WHITE WATER CENTRE,PREMISES RELATED EXPENDITURE,GENERAL WASTE,2211,P112021-SERVICE-Refuse Collections April 21 to March 22,13/9/2021 00:00:00,252540,1005.64,BY0049,BYWATERS (LEYTON) LTD,30/8/2021 00:00:00,26/9/2021 00:00:00,P06-2022
P&V,GUNPOWDER PARK,PREMISES RELATED EXPENDITURE,FLYTIPPING/WHITE GOOD DISPOSAL,2213,"P113976-SERVICE-Remove Fly Tip at Hawes Lane, Gunpowder Park",20/9/2021 00:00:00,252908,230,JO0019,R G JOYCE,30/8/2021 00:00:00,26/9/2021 00:00:00,P06-2022
P&V,GUNPOWDER PARK,PREMISES RELATED EXPENDITURE,FLYTIPPING/WHITE GOOD DISPOSAL,2213,P113955-SERVICE-Removal of Asbestos Panels on Godwin Close,20/9/2021 00:00:00,253234,950,MK0465,M K CLEANING & MAINTENANCE LTD,30/8/2021 00:00:00,26/9/2021 00:00:00,P06-2022
P&V,MYDDELTON HOUSE,PREMISES RELATED EXPENDITURE,RECYCLING,2214,P113574-SERVICE-Recycling,13/9/2021 00:00:00,252607,113.92,CA0341,F & R CAWLEY LTD,30/8/2021 00:00:00,26/9/2021 00:00:00,P06-2022
P&V,MYDDELTON HOUSE,PREMISES RELATED EXPENDITURE,BUILDING SERVICE AGREEMENTS,2220,P112762-SERVICE-Sanitary Services,09/06/2021 00:00,252199,22.52,PE0015,PHS GROUP PLC,30/8/2021 00:00:00,26/9/2021 00:00:00,P06-2022
P&V,MYDDELTON HOUSE,PREMISES RELATED EXPENDITURE,BUILDING SERVICE AGREEMENTS,2220,P114157-SERVICE-Myddelton House Emergency Lighting Test,20/9/2021 00:00:00,253125,756,BR0018,BRADSHAW ELECTRICAL LIMITED,30/8/2021 00:00:00,26/9/2021 00:00:00,P06-2022
P&V,MYDDELTON HOUSE,PREMISES RELATED EXPENDITURE,BUILDING SERVICE AGREEMENTS,2220,P112762-SERVICE-Sanitary Services,26/9/2021 00:00:00,253299,53.44,PE0015,PHS GROUP PLC,30/8/2021 00:00:00,26/9/2021 00:00:00,P06-2022
,LEE VALLEY WATERWORKS CENTRE,PREMISES RELATED EXPENDITURE,BUILDING SERVICE AGREEMENTS,2220,P114048-SERVICE-Monthly MPG Checks WWK's Centre - August 2021,13/9/2021 00:00:00,252522,209.63,CO0199,ENGIE FM LIMITED,30/8/2021 00:00:00,26/9/2021 00:00:00,P06-2022
,LEE VALLEY WATERWORKS CENTRE,PREMISES RELATED EXPENDITURE,BUILDING SERVICE AGREEMENTS,2220,P114047-SERVICE-Sanitary Disposal / Air Freshner Toilets,13/9/2021 00:00:00,252567,561.39,PE0015,PHS GROUP PLC,30/8/2021 00:00:00,26/9/2021 00:00:00,P06-2022
,LEE VALLEY CAMPSITE,PREMISES RELATED EXPENDITURE,BUILDING SERVICE AGREEMENTS,2220,P114057-SERVICE-rats mice cockroaches Aug 21,15/9/2021 00:00:00,252644,70,VE0006,VERMINATE CITY & RURAL PEST CONTROL LTD,30/8/2021 00:00:00,26/9/2021 00:00:00,P06-2022
,LEE VALLEY CAMPSITE,PREMISES RELATED EXPENDITURE,BUILDING SERVICE AGREEMENTS,2220,P114057-SERVICE-rats mice cockroaches Sept 21,15/9/2021 00:00:00,252645,70,VE0006,VERMINATE CITY & RURAL PEST CONTROL LTD,30/8/2021 00:00:00,26/9/2021 00:00:00,P06-2022
,LEE VALLEY CAMPSITE,PREMISES RELATED EXPENDITURE,BUILDING SERVICE AGREEMENTS,2220,P114122-SERVICE-Pest control NOV 2020,21/9/2021 00:00:00,252649,70,VE0006,VERMINATE CITY & RURAL PEST CONTROL LTD,30/8/2021 00:00:00,26/9/2021 00:00:00,P06-2022
,LEE VALLEY CARAVAN PARK,PREMISES RELATED EXPENDITURE,BUILDING SERVICE AGREEMENTS,2220,P114114-SERVICE-Monthly pest control,15/9/2021 00:00:00,252642,70,VE0006,VERMINATE CITY & RURAL PEST CONTROL LTD,30/8/2021 00:00:00,26/9/2021 00:00:00,P06-2022
,LEE VALLEY CARAVAN PARK,PREMISES RELATED EXPENDITURE,BUILDING SERVICE AGREEMENTS,2220,P114115-SERVICE-Monthly pest control,15/9/2021 00:00:00,252643,70,VE0006,VERMINATE CITY & RURAL PEST CONTROL LTD,30/8/2021 00:00:00,26/9/2021 00:00:00,P06-2022
,LEE VALLEY CARAVAN PARK,PREMISES RELATED EXPENDITURE,BUILDING SERVICE AGREEMENTS,2220,P114117-SERVICE-Monthly pest control,15/9/2021 00:00:00,252648,70,VE0006,VERMINATE CITY & RURAL PEST CONTROL LTD,30/8/2021 00:00:00,26/9/2021 00:00:00,P06-2022
,LEE VALLEY CARAVAN PARK,PREMISES RELATED EXPENDITURE,BUILDING SERVICE AGREEMENTS,2220,P114119-SERVICE-Monthly service,15/9/2021 00:00:00,252852,90.39,IN0012,INITIAL WASHROOM HYGIENE,30/8/2021 00:00:00,26/9/2021 00:00:00,P06-2022
P&V,NORTH AREA RANGERS,PREMISES RELATED EXPENDITURE,BUILDING SERVICE AGREEMENTS,2220,P111201-SERVICE-Sanitary Disposal - Old Mill & Meadows Toilet,24/9/2021 00:00:00,253298,17.58,PE0015,PHS GROUP PLC,30/8/2021 00:00:00,26/9/2021 00:00:00,P06-2022
P&V,NORTH AREA RANGERS,PREMISES RELATED EXPENDITURE,BUILDING SERVICE AGREEMENTS,2220,P113327-SERVICE-Lift Service - Wildlife Discovery Centre,26/9/2021 00:00:00,253500,494,GA0448,GARTEC,30/8/2021 00:00:00,26/9/2021 00:00:00,P06-2022
P&V,GUNPOWDER PARK,PREMISES RELATED EXPENDITURE,BUILDING SERVICE AGREEMENTS,2220,P111199-SERVICE-Sanitary Disposal - Gunpowder Park Office Toi,09/06/2021 00:00,252200,2.7,PE0015,PHS GROUP PLC,30/8/2021 00:00:00,26/9/2021 00:00:00,P06-2022
P&V,GUNPOWDER PARK,PREMISES RELATED EXPENDITURE,BUILDING SERVICE AGREEMENTS,2220,P111200-SERVICE-Sanitary Disposal - Gunpowder Park - Public T,24/9/2021 00:00:00,252925,14.3,PE0015,PHS GROUP PLC,30/8/2021 00:00:00,26/9/2021 00:00:00,P06-2022
P&V,RIVER LEE COUNTRY PARK,PREMISES RELATED EXPENDITURE,BUILDING SERVICE AGREEMENTS,2220,P112774-SERVICE-Sharps Container - Ranger Farm Office,09/06/2021 00:00,252198,1.92,PE0015,PHS GROUP PLC,30/8/2021 00:00:00,26/9/2021 00:00:00,P06-2022
P&V,RIVER LEE COUNTRY PARK,PREMISES RELATED EXPENDITURE,BUILDING SERVICE AGREEMENTS,2220,P112774-SERVICE-Sanitary Disposal - Ranger Base Office Holyfi,09/06/2021 00:00,252198,3.8,PE0015,PHS GROUP PLC,30/8/2021 00:00:00,26/9/2021 00:00:00,P06-2022
P&V,RIVER LEE COUNTRY PARK,PREMISES RELATED EXPENDITURE,BUILDING SERVICE AGREEMENTS,2220,P111202-SERVICE-Sanitary Disposal - Fishers Green Toilets,24/9/2021 00:00:00,252924,11.59,PE0015,PHS GROUP PLC,30/8/2021 00:00:00,26/9/2021 00:00:00,P06-2022
,LEE VALLEY VELOPARK,PREMISES RELATED EXPENDITURE,BUILDING SERVICE AGREEMENTS,2220,P111429-SERVICE-BMS Contract VP,09/06/2021 00:00,252351,590,IN0197,INTEGRATED BUILDING MANAGEMENT SYSTEMS LTD,30/8/2021 00:00:00,26/9/2021 00:00:00,P06-2022
,LEE VALLEY VELOPARK,PREMISES RELATED EXPENDITURE,BUILDING SERVICE AGREEMENTS,2220,P113406-SERVICE-VP & HTC Screen Service 1 Year,24/9/2021 00:00:00,253195,14635,DA0198,DAKTRONICS UK LIMITED,30/8/2021 00:00:00,26/9/2021 00:00:00,P06-2022
,LV HOCKEY AND TENNIS CENTRE,PREMISES RELATED EXPENDITURE,BUILDING SERVICE AGREEMENTS,2220,P112098-SERVICE-x3 part visit mice in kitchen,20/9/2021 00:00:00,252635,94.5,VE0006,VERMINATE CITY & RURAL PEST CONTROL LTD,30/8/2021 00:00:00,26/9/2021 00:00:00,P06-2022
,LEE VALLEY RIDING CENTRE,PREMISES RELATED EXPENDITURE,BUILDING SERVICE AGREEMENTS,2220,P110519-SERVICE-Service Contract Renewal 2021-2022,09/06/2021 00:00,252019,-200,GO0211,GOODWATER LTD,30/8/2021 00:00:00,26/9/2021 00:00:00,P06-2022
,LV LEISURE CENTRE CAMPSITE,PREMISES RELATED EXPENDITURE,BUILDING SERVICE AGREEMENTS,2220,P114044-SERVICE-pest control,20/9/2021 00:00:00,252646,70,VE0006,VERMINATE CITY & RURAL PEST CONTROL LTD,30/8/2021 00:00:00,26/9/2021 00:00:00,P06-2022
,LV LEISURE CENTRE CAMPSITE,PREMISES RELATED EXPENDITURE,BUILDING SERVICE AGREEMENTS,2220,P114043-SERVICE-pest control,20/9/2021 00:00:00,252647,70,VE0006,VERMINATE CITY & RURAL PEST CONTROL LTD,30/8/2021 00:00:00,26/9/2021 00:00:00,P06-2022
,LV LEISURE CENTRE CAMPSITE,PREMISES RELATED EXPENDITURE,BUILDING SERVICE AGREEMENTS,2220,P112510-SERVICE-Legionella risk assessment,26/9/2021 00:00:00,253612,625,KI0090,KINGFISHER ENVIRONMENTAL SERVICES LTD,30/8/2021 00:00:00,26/9/2021 00:00:00,P06-2022
,LEE VALLEY WHITE WATER CENTRE,PREMISES RELATED EXPENDITURE,BUILDING SERVICE AGREEMENTS,2220,P112858-SERVICE-Docket CY307725 - Fire System,09/06/2021 00:00,249649,380,AD0015,ADT FIRE & SECURITY PLC,30/8/2021 00:00:00,26/9/2021 00:00:00,P06-2022
,LEE VALLEY WHITE WATER CENTRE,PREMISES RELATED EXPENDITURE,BUILDING SERVICE AGREEMENTS,2220,P111254-SERVICE-Hygiene Services April 2021 to 2022,09/06/2021 00:00,252197,168.6,PE0015,PHS GROUP PLC,30/8/2021 00:00:00,26/9/2021 00:00:00,P06-2022
,LEE VALLEY WHITE WATER CENTRE,PREMISES RELATED EXPENDITURE,BUILDING SERVICE AGREEMENTS,2220,P113555-SERVICE-Service of Disable hoist,13/9/2021 00:00:00,252851,190.38,AR0335,ARJO UK LTD (FRMLY ARJOHUNTLEIGH UK),30/8/2021 00:00:00,26/9/2021 00:00:00,P06-2022
,LEE VALLEY ICE CENTRE,PREMISES RELATED EXPENDITURE,ENGINEERING SERVICE AGREEMENTS,2221,P114324-SERVICE-Intruder Alarm service,26/9/2021 00:00:00,248038,1392.11,CH0088,CHUBB FIRE & SECURITY,30/8/2021 00:00:00,26/9/2021 00:00:00,P06-2022
,LEE VALLEY ICE CENTRE,PREMISES RELATED EXPENDITURE,ENGINEERING SERVICE AGREEMENTS,2221,P114326-SERVICE-Three Month Termination Period,26/9/2021 00:00:00,251834,1392.11,CH0088,CHUBB FIRE & SECURITY,30/8/2021 00:00:00,26/9/2021 00:00:00,P06-2022
,LEE VALLEY ICE CENTRE,PREMISES RELATED EXPENDITURE,ENGINEERING SERVICE AGREEMENTS,2221,P114070-SERVICE-CCTV Removed From The Building,13/9/2021 00:00:00,251954,407.5,RV0035,RVTV SECURITY GROUP LTD,30/8/2021 00:00:00,26/9/2021 00:00:00,P06-2022
,LEE VALLEY ICE CENTRE,PREMISES RELATED EXPENDITURE,ENGINEERING SERVICE AGREEMENTS,2221,P114324-SERVICE-Intruder Alarm service,26/9/2021 00:00:00,253559,-1186.16,CH0088,CHUBB FIRE & SECURITY,30/8/2021 00:00:00,26/9/2021 00:00:00,P06-2022
P&V,MYDDELTON HOUSE,PREMISES RELATED EXPENDITURE,BUILDING REPAIRS & MAINTENANCE,2222,P113856-SERVICE-Myddelton House Door Entry,09/06/2021 00:00,252009,110,BR0018,BRADSHAW ELECTRICAL LIMITED,30/8/2021 00:00:00,26/9/2021 00:00:00,P06-2022
P&V,MYDDELTON HOUSE,PREMISES RELATED EXPENDITURE,BUILDING REPAIRS & MAINTENANCE,2222,P114239-SERVICE-Disabled Toilet Alarm/Meeting Room Light/Stai,24/9/2021 00:00:00,253335,126,BR0018,BRADSHAW ELECTRICAL LIMITED,30/8/2021 00:00:00,26/9/2021 00:00:00,P06-2022
CEO,RESIDENTIAL ACCOMMODATION,PREMISES RELATED EXPENDITURE,BUILDING REPAIRS & MAINTENANCE,2222,P113155-SERVICE-Repairs & Maintenance,13/9/2021 00:00:00,252574,515,CA0165,CASTLES,30/8/2021 00:00:00,26/9/2021 00:00:00,P06-2022
CEO,RESIDENTIAL ACCOMMODATION,PREMISES RELATED EXPENDITURE,BUILDING REPAIRS & MAINTENANCE,2222,P113155-SERVICE-Repairs & Maintenance,20/9/2021 00:00:00,252575,1166.67,CA0165,CASTLES,30/8/2021 00:00:00,26/9/2021 00:00:00,P06-2022
CEO,RESIDENTIAL ACCOMMODATION,PREMISES RELATED EXPENDITURE,BUILDING REPAIRS & MAINTENANCE,2222,P113155-SERVICE-Repairs & Maintenance,13/9/2021 00:00:00,252576,533.33,CA0165,CASTLES,30/8/2021 00:00:00,26/9/2021 00:00:00,P06-2022
CEO,RESIDENTIAL ACCOMMODATION,PREMISES RELATED EXPENDITURE,BUILDING REPAIRS & MAINTENANCE,2222,P113155-SERVICE-Repairs & Maintenance,13/9/2021 00:00:00,252577,733.33,CA0165,CASTLES,30/8/2021 00:00:00,26/9/2021 00:00:00,P06-2022
CEO,RESIDENTIAL ACCOMMODATION,PREMISES RELATED EXPENDITURE,BUILDING REPAIRS & MAINTENANCE,2222,P114126-SERVICE-1 Gate Cottage Works,21/9/2021 00:00:00,253121,480,MY0475,MY GAS HEATING CO LTD,30/8/2021 00:00:00,26/9/2021 00:00:00,P06-2022
CEO,COMMERCIAL ACCOMMODATION,PREMISES RELATED EXPENDITURE,BUILDING REPAIRS & MAINTENANCE,2222,P111994-SERVICE-2 x Stop blocks concrete barriers,13/9/2021 00:00:00,252445,56,NA0171,NAIVETTE SERVICES LTD,30/8/2021 00:00:00,26/9/2021 00:00:00,P06-2022
CEO,COMMERCIAL ACCOMMODATION,PREMISES RELATED EXPENDITURE,BUILDING REPAIRS & MAINTENANCE,2222,P111994-SERVICE-2 x Stop blocks concrete Wharf road,13/9/2021 00:00:00,252445,6,NA0171,NAIVETTE SERVICES LTD,30/8/2021 00:00:00,26/9/2021 00:00:00,P06-2022
,LEE VALLEY MARINA SPRINGFIELD,PREMISES RELATED EXPENDITURE,BUILDING REPAIRS & MAINTENANCE,2222,P111725-SERVICE-Security Annual maintenance visit inc adhoc v,20/9/2021 00:00:00,252502,300,DE0013,DENNIS SECURITY CENTRE,30/8/2021 00:00:00,26/9/2021 00:00:00,P06-2022
,LEE VALLEY MARINA SPRINGFIELD,PREMISES RELATED EXPENDITURE,BUILDING REPAIRS & MAINTENANCE,2222,P113808-SERVICE-To Repair & fix fafaults on 3 x washing,20/9/2021 00:00:00,252553,254.74,JH0012,GIRBAU  UK LIMITED,30/8/2021 00:00:00,26/9/2021 00:00:00,P06-2022
,LEE VALLEY MARINA SPRINGFIELD,PREMISES RELATED EXPENDITURE,BUILDING REPAIRS & MAINTENANCE,2222,P113808-SERVICE-To Repair & fix fafaults on 3 x washing,26/9/2021 00:00:00,253482,42.5,JH0012,GIRBAU  UK LIMITED,30/8/2021 00:00:00,26/9/2021 00:00:00,P06-2022
,LEE VALLEY MARINA SPRINGFIELD,PREMISES RELATED EXPENDITURE,BUILDING REPAIRS & MAINTENANCE,2222,P113808-SERVICE-To Repair & fix fafaults on 3 x washing,26/9/2021 00:00:00,253483,42.5,JH0012,GIRBAU  UK LIMITED,30/8/2021 00:00:00,26/9/2021 00:00:00,P06-2022
,LEE VALLEY MARINA STANSTEAD,PREMISES RELATED EXPENDITURE,BUILDING REPAIRS & MAINTENANCE,2222,P113164-SERVICE-annual service chandlsry intruder alarm,13/9/2021 00:00:00,252513,97.5,CH0088,CHUBB FIRE & SECURITY,30/8/2021 00:00:00,26/9/2021 00:00:00,P06-2022
,LEE VALLEY WATERWORKS CENTRE,PREMISES RELATED EXPENDITURE,BUILDING REPAIRS & MAINTENANCE,2222,P114288-SERVICE-Shutter Inspection at WaterWorks,26/9/2021 00:00:00,253556,283.75,GU0198,GUARDIAN INDUSTRIAL DOORS LIMITED,30/8/2021 00:00:00,26/9/2021 00:00:00,P06-2022
P&V,LEE VALLEY FARM HOLYFIELDHALL,PREMISES RELATED EXPENDITURE,BUILDING REPAIRS & MAINTENANCE,2222,P111466-SERVICE-Building Repairs,09/07/2021 00:00,252395,1.56,JE0011,SAINT-GOBAIN BUILDING DISTRIBUTION,30/8/2021 00:00:00,26/9/2021 00:00:00,P06-2022
P&V,LEE VALLEY FARM HOLYFIELDHALL,PREMISES RELATED EXPENDITURE,BUILDING REPAIRS & MAINTENANCE,2222,P111466-SERVICE-Building Repairs,09/07/2021 00:00,252396,52.66,JE0011,SAINT-GOBAIN BUILDING DISTRIBUTION,30/8/2021 00:00:00,26/9/2021 00:00:00,P06-2022
P&V,LEE VALLEY FARM HOLYFIELDHALL,PREMISES RELATED EXPENDITURE,BUILDING REPAIRS & MAINTENANCE,2222,P113866-SERVICE-Investigate Borehole Pump Fault,13/9/2021 00:00:00,252406,446.25,PU0442,PUMPING SOLUTIONS (UK) LTD,30/8/2021 00:00:00,26/9/2021 00:00:00,P06-2022
P&V,LEE VALLEY FARM HOLYFIELDHALL,PREMISES RELATED EXPENDITURE,BUILDING REPAIRS & MAINTENANCE,2222,P114238-SERVICE-Milking Parlour Upgrade,26/9/2021 00:00:00,253338,4150,BR0018,BRADSHAW ELECTRICAL LIMITED,30/8/2021 00:00:00,26/9/2021 00:00:00,P06-2022
P&V,LEE VALLEY FARM HOLYFIELDHALL,PREMISES RELATED EXPENDITURE,BUILDING REPAIRS & MAINTENANCE,2222,P111466-SERVICE-Building Repairs,26/9/2021 00:00:00,253558,29.97,JE0011,SAINT-GOBAIN BUILDING DISTRIBUTION,30/8/2021 00:00:00,26/9/2021 00:00:00,P06-2022
,LEE VALLEY CARAVAN PARK,PREMISES RELATED EXPENDITURE,BUILDING REPAIRS & MAINTENANCE,2222,P114292-SERVICE-replace exterior bos on no 35,26/9/2021 00:00:00,253336,630,BR0018,BRADSHAW ELECTRICAL LIMITED,30/8/2021 00:00:00,26/9/2021 00:00:00,P06-2022
,LEE VALLEY VELOPARK,PREMISES RELATED EXPENDITURE,BUILDING REPAIRS & MAINTENANCE,2222,P113732-SERVICE-Contractor Maintenance on Intruder System,09/06/2021 00:00,250979,71,AD0015,ADT FIRE & SECURITY PLC,30/8/2021 00:00:00,26/9/2021 00:00:00,P06-2022
,LEE VALLEY VELOPARK,PREMISES RELATED EXPENDITURE,BUILDING REPAIRS & MAINTENANCE,2222,P113733-SERVICE-Contractor Maintenance on Intruder System,09/06/2021 00:00,250980,296,AD0015,ADT FIRE & SECURITY PLC,30/8/2021 00:00:00,26/9/2021 00:00:00,P06-2022
,LEE VALLEY VELOPARK,PREMISES RELATED EXPENDITURE,BUILDING REPAIRS & MAINTENANCE,2222,P113735-SERVICE-Piping Parts,09/06/2021 00:00,250995,40.94,SC0057,SCREWFIX DIRECT LTD,30/8/2021 00:00:00,26/9/2021 00:00:00,P06-2022
,LEE VALLEY VELOPARK,PREMISES RELATED EXPENDITURE,BUILDING REPAIRS & MAINTENANCE,2222,P113739-SERVICE-Socket Cap Screws M8x25mm Pk50,09/06/2021 00:00,251049,10.91,SC0057,SCREWFIX DIRECT LTD,30/8/2021 00:00:00,26/9/2021 00:00:00,P06-2022
,LEE VALLEY VELOPARK,PREMISES RELATED EXPENDITURE,BUILDING REPAIRS & MAINTENANCE,2222,"P113740-SERVICE-Slef-Tappers 6ga X "" Pk100",09/06/2021 00:00,251050,4.16,SC0057,SCREWFIX DIRECT LTD,30/8/2021 00:00:00,26/9/2021 00:00:00,P06-2022
,LEE VALLEY VELOPARK,PREMISES RELATED EXPENDITURE,BUILDING REPAIRS & MAINTENANCE,2222,P113763-SERVICE-Piping and Drill Parts,09/06/2021 00:00,251333,140.88,SC0057,SCREWFIX DIRECT LTD,30/8/2021 00:00:00,26/9/2021 00:00:00,P06-2022
,LEE VALLEY VELOPARK,PREMISES RELATED EXPENDITURE,BUILDING REPAIRS & MAINTENANCE,2222,P113765-SERVICE-Tools and Materials,09/06/2021 00:00,251334,219.35,SC0057,SCREWFIX DIRECT LTD,30/8/2021 00:00:00,26/9/2021 00:00:00,P06-2022
,LEE VALLEY VELOPARK,PREMISES RELATED EXPENDITURE,BUILDING REPAIRS & MAINTENANCE,2222,P113281-SERVICE-Replace GE Breaker,09/06/2021 00:00,251347,1150,NA0192,NAVITAS ELECTRICAL LIMITED,30/8/2021 00:00:00,26/9/2021 00:00:00,P06-2022
,LEE VALLEY VELOPARK,PREMISES RELATED EXPENDITURE,BUILDING REPAIRS & MAINTENANCE,2222,P113767-SERVICE-Grade 13 Square Hinges,09/06/2021 00:00,251369,12.48,SC0057,SCREWFIX DIRECT LTD,30/8/2021 00:00:00,26/9/2021 00:00:00,P06-2022
,LEE VALLEY VELOPARK,PREMISES RELATED EXPENDITURE,BUILDING REPAIRS & MAINTENANCE,2222,P113770-SERVICE-Site Visit and Service,09/06/2021 00:00,251397,612,AD0015,ADT FIRE & SECURITY PLC,30/8/2021 00:00:00,26/9/2021 00:00:00,P06-2022
,LEE VALLEY VELOPARK,PREMISES RELATED EXPENDITURE,BUILDING REPAIRS & MAINTENANCE,2222,P113772-SERVICE-Site Visit and Service,09/06/2021 00:00,251578,296,AD0015,ADT FIRE & SECURITY PLC,30/8/2021 00:00:00,26/9/2021 00:00:00,P06-2022
,LEE VALLEY VELOPARK,PREMISES RELATED EXPENDITURE,BUILDING REPAIRS & MAINTENANCE,2222,P113773-SERVICE-Site Visit and Service,09/06/2021 00:00,251579,375,AD0015,ADT FIRE & SECURITY PLC,30/8/2021 00:00:00,26/9/2021 00:00:00,P06-2022
,LEE VALLEY VELOPARK,PREMISES RELATED EXPENDITURE,BUILDING REPAIRS & MAINTENANCE,2222,P113774-SERVICE-Franke Bottle Filler,09/06/2021 00:00,251609,64.16,SC0057,SCREWFIX DIRECT LTD,30/8/2021 00:00:00,26/9/2021 00:00:00,P06-2022
,LEE VALLEY VELOPARK,PREMISES RELATED EXPENDITURE,BUILDING REPAIRS & MAINTENANCE,2222,P113775-SERVICE-Site Visit and Service,09/06/2021 00:00,251629,600,CO0550,CONVERT WATER LTD,30/8/2021 00:00:00,26/9/2021 00:00:00,P06-2022
,LEE VALLEY VELOPARK,PREMISES RELATED EXPENDITURE,BUILDING REPAIRS & MAINTENANCE,2222,P112580-SERVICE-Call Out & Batteries,09/06/2021 00:00,251641,460.08,GU0210,GUIDELINE LIFT SERVICES LTD,30/8/2021 00:00:00,26/9/2021 00:00:00,P06-2022
,LEE VALLEY VELOPARK,PREMISES RELATED EXPENDITURE,BUILDING REPAIRS & MAINTENANCE,2222,P113776-SERVICE-Table Saw,09/06/2021 00:00,251772,83.33,SC0057,SCREWFIX DIRECT LTD,30/8/2021 00:00:00,26/9/2021 00:00:00,P06-2022
,LEE VALLEY VELOPARK,PREMISES RELATED EXPENDITURE,BUILDING REPAIRS & MAINTENANCE,2222,P113905-SERVICE-Heating and Cooling Recharges,13/9/2021 00:00:00,251898,9070.2,LO0410,(MAIN) LONDON LEGACY DEVELOPMENT CORPORATION,30/8/2021 00:00:00,26/9/2021 00:00:00,P06-2022
,LEE VALLEY VELOPARK,PREMISES RELATED EXPENDITURE,BUILDING REPAIRS & MAINTENANCE,2222,P113906-SERVICE-Heating and Cooling recharges,13/9/2021 00:00:00,251899,17023.2,LO0410,(MAIN) LONDON LEGACY DEVELOPMENT CORPORATION,30/8/2021 00:00:00,26/9/2021 00:00:00,P06-2022
,LEE VALLEY VELOPARK,PREMISES RELATED EXPENDITURE,BUILDING REPAIRS & MAINTENANCE,2222,P113909-SERVICE-Planned Maintenance Visit,13/9/2021 00:00:00,252017,770,PH0319,SIGNIFY COMMERCIAL UK LIMITED (PHILIPS LIGHTI,30/8/2021 00:00:00,26/9/2021 00:00:00,P06-2022
,LEE VALLEY VELOPARK,PREMISES RELATED EXPENDITURE,BUILDING REPAIRS & MAINTENANCE,2222,P113884-SERVICE-Automatic Door Maintenance,09/06/2021 00:00,252018,290,SU0398,SUPREME DOOR SPRING CO,30/8/2021 00:00:00,26/9/2021 00:00:00,P06-2022
,LEE VALLEY VELOPARK,PREMISES RELATED EXPENDITURE,BUILDING REPAIRS & MAINTENANCE,2222,P113388-SERVICE-Snail Fan Servicing,09/06/2021 00:00,252203,296.89,FY0056,FYFE WILSON LTD,30/8/2021 00:00:00,26/9/2021 00:00:00,P06-2022
,LEE VALLEY VELOPARK,PREMISES RELATED EXPENDITURE,BUILDING REPAIRS & MAINTENANCE,2222,P113911-SERVICE-Swirl Loop Mono Mixer Tap,13/9/2021 00:00:00,252204,20.83,SC0057,SCREWFIX DIRECT LTD,30/8/2021 00:00:00,26/9/2021 00:00:00,P06-2022
,LEE VALLEY VELOPARK,PREMISES RELATED EXPENDITURE,BUILDING REPAIRS & MAINTENANCE,2222,P113914-SERVICE-BMX Track Maintenance,13/9/2021 00:00:00,252349,225,AL0278,JULIAN ALLEN,30/8/2021 00:00:00,26/9/2021 00:00:00,P06-2022
,LEE VALLEY VELOPARK,PREMISES RELATED EXPENDITURE,BUILDING REPAIRS & MAINTENANCE,2222,P113183-SERVICE-Smoke Control System Inspection and Service,09/06/2021 00:00,252355,316,SC0470,SCS GROUP,30/8/2021 00:00:00,26/9/2021 00:00:00,P06-2022
,LV HOCKEY AND TENNIS CENTRE,PREMISES RELATED EXPENDITURE,BUILDING REPAIRS & MAINTENANCE,2222,P113768-SERVICE-rewelded side bolt,09/06/2021 00:00,252403,385,RB0221,R 'n 'B ENGINEERING LTD,30/8/2021 00:00:00,26/9/2021 00:00:00,P06-2022
,LV HOCKEY AND TENNIS CENTRE,PREMISES RELATED EXPENDITURE,BUILDING REPAIRS & MAINTENANCE,2222,P114223-SERVICE-court cleaning desposit,22/9/2021 00:00:00,253319,200,PR0467,PREMIER SPORTS SURFACES LTD,30/8/2021 00:00:00,26/9/2021 00:00:00,P06-2022
,LEE VALLEY RIDING CENTRE,PREMISES RELATED EXPENDITURE,BUILDING REPAIRS & MAINTENANCE,2222,P114219-SERVICE-auto gate in front of bungalows repair,24/9/2021 00:00:00,252910,215,EA0001,EAGLE AUTOMATION SYSTEMS LTD,30/8/2021 00:00:00,26/9/2021 00:00:00,P06-2022
,LV LEISURE CENTRE CAMPSITE,PREMISES RELATED EXPENDITURE,BUILDING REPAIRS & MAINTENANCE,2222,P113220-SERVICE-Emergency lighting,21/9/2021 00:00:00,251358,795,BR0018,BRADSHAW ELECTRICAL LIMITED,30/8/2021 00:00:00,26/9/2021 00:00:00,P06-2022
,LV LEISURE CENTRE CAMPSITE,PREMISES RELATED EXPENDITURE,BUILDING REPAIRS & MAINTENANCE,2222,P114213-SERVICE-Electrical,21/9/2021 00:00:00,251358,30,BR0018,BRADSHAW ELECTRICAL LIMITED,30/8/2021 00:00:00,26/9/2021 00:00:00,P06-2022
,LV LEISURE CENTRE CAMPSITE,PREMISES RELATED EXPENDITURE,BUILDING REPAIRS & MAINTENANCE,2222,P113812-SERVICE-Maintenance supplies,09/06/2021 00:00,251966,25.33,BQ0164,TRADE UK ACCOUNT,30/8/2021 00:00:00,26/9/2021 00:00:00,P06-2022
,LV LEISURE CENTRE CAMPSITE,PREMISES RELATED EXPENDITURE,BUILDING REPAIRS & MAINTENANCE,2222,P113813-SERVICE-Maintenance supplies,09/06/2021 00:00,251967,73.38,BQ0164,TRADE UK ACCOUNT,30/8/2021 00:00:00,26/9/2021 00:00:00,P06-2022
,LV LEISURE CENTRE CAMPSITE,PREMISES RELATED EXPENDITURE,BUILDING REPAIRS & MAINTENANCE,2222,P113815-SERVICE-maintenance supplies,09/07/2021 00:00,252205,44.15,SC0057,SCREWFIX DIRECT LTD,30/8/2021 00:00:00,26/9/2021 00:00:00,P06-2022
,LEE VALLEY ATHLETICS CENTRE,PREMISES RELATED EXPENDITURE,BUILDING REPAIRS & MAINTENANCE,2222,P113885-SERVICE-LVAC INV 27284 SUPPLY & FIT SPRINT GLASS,09/06/2021 00:00,251460,1140,GL0168,SGC GLASS LIMITED,30/8/2021 00:00:00,26/9/2021 00:00:00,P06-2022
,LEE VALLEY ATHLETICS CENTRE,PREMISES RELATED EXPENDITURE,BUILDING REPAIRS & MAINTENANCE,2222,P114271-SERVICE-LVAC INVOICE P7121 OFF SITE REPAIR LEG CURL,24/9/2021 00:00:00,253354,117,PR0446,PRECISION GYM SERVICES LTD,30/8/2021 00:00:00,26/9/2021 00:00:00,P06-2022
,LEE VALLEY ATHLETICS CENTRE,PREMISES RELATED EXPENDITURE,BUILDING REPAIRS & MAINTENANCE,2222,P114270-SERVICE-LVAC CALL OUT 7.9.21 INVOICE 48125346,24/9/2021 00:00:00,253357,217,AD0015,ADT FIRE & SECURITY PLC,30/8/2021 00:00:00,26/9/2021 00:00:00,P06-2022
,LEE VALLEY WHITE WATER CENTRE,PREMISES RELATED EXPENDITURE,BUILDING REPAIRS & MAINTENANCE,2222,P113698-SERVICE-Emergency Lighting Spare stock,13/9/2021 00:00:00,252615,963,GI0137,R & P GIBBS LIMITED,30/8/2021 00:00:00,26/9/2021 00:00:00,P06-2022
,LEE VALLEY WHITE WATER CENTRE,PREMISES RELATED EXPENDITURE,BUILDING REPAIRS & MAINTENANCE,2222,P113283-SERVICE-Emergency Light Test 24.06.21,20/9/2021 00:00:00,253128,330,GI0137,R & P GIBBS LIMITED,30/8/2021 00:00:00,26/9/2021 00:00:00,P06-2022
,LEE VALLEY WHITE WATER CENTRE,PREMISES RELATED EXPENDITURE,BUILDING REPAIRS & MAINTENANCE,2222,P113283-SERVICE-Emergency Light Test 13.07.21,20/9/2021 00:00:00,253128,330,GI0137,R & P GIBBS LIMITED,30/8/2021 00:00:00,26/9/2021 00:00:00,P06-2022
,LEE VALLEY WHITE WATER CENTRE,PREMISES RELATED EXPENDITURE,BUILDING REPAIRS & MAINTENANCE,2222,P113284-SERVICE-Various Repairs,20/9/2021 00:00:00,253129,500,GI0137,R & P GIBBS LIMITED,30/8/2021 00:00:00,26/9/2021 00:00:00,P06-2022
,LEE VALLEY WHITE WATER CENTRE,PREMISES RELATED EXPENDITURE,BUILDING REPAIRS & MAINTENANCE,2222,P113358-SERVICE-Comms Room AC Unit,20/9/2021 00:00:00,253161,495.32,GI0137,R & P GIBBS LIMITED,30/8/2021 00:00:00,26/9/2021 00:00:00,P06-2022
CEO,LVLC SERVICE CHARGE,PREMISES RELATED EXPENDITURE,BUILDING REPAIRS & MAINTENANCE,2222,P112704-SERVICE-Contract Sweep,13/9/2021 00:00:00,252307,150,SE0374,SELECT SWEEPER HIRE LTD,30/8/2021 00:00:00,26/9/2021 00:00:00,P06-2022
CEO,LVLC SERVICE CHARGE,PREMISES RELATED EXPENDITURE,BUILDING REPAIRS & MAINTENANCE,2222,P114097-SERVICE-Picketts Lock Fly Tipping,20/9/2021 00:00:00,252343,116.04,GL0214,GLENDALE GROUNDS MANAGEMENT LIMITED,30/8/2021 00:00:00,26/9/2021 00:00:00,P06-2022
CEO,LVLC SERVICE CHARGE,PREMISES RELATED EXPENDITURE,BUILDING REPAIRS & MAINTENANCE,2222,P112704-SERVICE-Contract Sweep,21/9/2021 00:00:00,253156,300,SE0374,SELECT SWEEPER HIRE LTD,30/8/2021 00:00:00,26/9/2021 00:00:00,P06-2022
,LEE VALLEY ATHLETICS CENTRE,PREMISES RELATED EXPENDITURE,ENGINEERING SERVICES CONTRACT,2223,P111755-SERVICE-LVAC ANNUAL MAINTENANCE 21/22,09/06/2021 00:00,251889,1415,KE0163,KERSHAW MECHANICAL SERVICES LTD,30/8/2021 00:00:00,26/9/2021 00:00:00,P06-2022
,LEE VALLEY ATHLETICS CENTRE,PREMISES RELATED EXPENDITURE,ENGINEERING SERVICES CONTRACT,2223,P111584-SERVICE-LVAC ANNUAL CONTRACT,09/06/2021 00:00,252183,1860,DA0075,D.A.T.A. CLEANING SERVICES,30/8/2021 00:00:00,26/9/2021 00:00:00,P06-2022
,LEE VALLEY ATHLETICS CENTRE,PREMISES RELATED EXPENDITURE,ENGINEERING SERVICES CONTRACT,2223,P114227-SERVICE-LVAC STOCKTAKING 17.8.21,24/9/2021 00:00:00,252381,133,VE0038,VENNERS LTD,30/8/2021 00:00:00,26/9/2021 00:00:00,P06-2022
,LEE VALLEY ATHLETICS CENTRE,PREMISES RELATED EXPENDITURE,ENGINEERING SERVICES CONTRACT,2223,P111604-SERVICE-LVAC ANNUAL REFUSE COLLECTION 21/22,20/9/2021 00:00:00,252572,418.5,SI0659,SIMPLY WASTE SOLUTIONS,30/8/2021 00:00:00,26/9/2021 00:00:00,P06-2022
,LEE VALLEY ATHLETICS CENTRE,PREMISES RELATED EXPENDITURE,ENGINEERING SERVICES CONTRACT,2223,P113994-SERVICE-LVAC REF A/C 43076726,15/9/2021 00:00:00,252865,309,AD0015,ADT FIRE & SECURITY PLC,30/8/2021 00:00:00,26/9/2021 00:00:00,P06-2022
,LEE VALLEY ATHLETICS CENTRE,PREMISES RELATED EXPENDITURE,ENGINEERING SERVICES CONTRACT,2223,P111755-SERVICE-LVAC ANNUAL MAINTENANCE 21/22,24/9/2021 00:00:00,253288,1415,KE0163,KERSHAW MECHANICAL SERVICES LTD,30/8/2021 00:00:00,26/9/2021 00:00:00,P06-2022
,LEE VALLEY WHITE WATER CENTRE,PREMISES RELATED EXPENDITURE,ENGINEERING SERVICES CONTRACT,2223,P113618-SERVICE-Call out on 18.08.21,09/06/2021 00:00,252190,251.9,BR0378,BROADWATER TECHNOLOGIES LTD,30/8/2021 00:00:00,26/9/2021 00:00:00,P06-2022
,LEE VALLEY WHITE WATER CENTRE,PREMISES RELATED EXPENDITURE,ENGINEERING SERVICES CONTRACT,2223,P112007-SERVICE-To provide the services of an authorised pers,13/9/2021 00:00:00,252604,1530,AM0309,AMP 5 LIMITED,30/8/2021 00:00:00,26/9/2021 00:00:00,P06-2022
,LEE VALLEY WHITE WATER CENTRE,PREMISES RELATED EXPENDITURE,ENGINEERING SERVICES CONTRACT,2223,P113791-SERVICE-Crane for 3rd and 4th September,20/9/2021 00:00:00,253238,950,QU0004,QUINTO CRANE & PLANT LIMITED,30/8/2021 00:00:00,26/9/2021 00:00:00,P06-2022
,LEE VALLEY WHITE WATER CENTRE,PREMISES RELATED EXPENDITURE,ENGINEERING SERVICES CONTRACT,2223,P113791-SERVICE-Crane for 3rd and 4th September,20/9/2021 00:00:00,253239,833.33,QU0004,QUINTO CRANE & PLANT LIMITED,30/8/2021 00:00:00,26/9/2021 00:00:00,P06-2022
,LEE VALLEY WHITE WATER CENTRE,PREMISES RELATED EXPENDITURE,ENGINEERING SERVICES CONTRACT,2223,"P113791-SERVICE-Crane for 14th, 15th and 16th September",26/9/2021 00:00:00,253327,2850,QU0004,QUINTO CRANE & PLANT LIMITED,30/8/2021 00:00:00,26/9/2021 00:00:00,P06-2022
,LEE VALLEY WHITE WATER CENTRE,PREMISES RELATED EXPENDITURE,ENGINEERING SERVICES CONTRACT,2223,P114256-SERVICE-Replacement drive coupling,26/9/2021 00:00:00,253536,5250,MA0231,MARSHALL WELDED STEEL LIMITED,30/8/2021 00:00:00,26/9/2021 00:00:00,P06-2022
P&V,SOUTH AREA RANGERS,SUPPLIES AND SERVICES,FENCES/GATES ETC.,2231,"P113326-SERVICE-20x 6ft x 3-4"" Peeled Round Post Pointed - 38",09/07/2021 00:00,252388,100.5,FA0099,FARM & COUNTRY SUPPLIES LTD,30/8/2021 00:00:00,26/9/2021 00:00:00,P06-2022
P&V,SOUTH AREA RANGERS,SUPPLIES AND SERVICES,FENCES/GATES ETC.,2231,"P113326-SERVICE-5x 8ft x 6"" Machined Round Strainer Pointed -",09/07/2021 00:00,252388,101.25,FA0099,FARM & COUNTRY SUPPLIES LTD,30/8/2021 00:00:00,26/9/2021 00:00:00,P06-2022
P&V,SOUTH AREA RANGERS,SUPPLIES AND SERVICES,FENCES/GATES ETC.,2231,P113326-SERVICE-1x Myti Fence Wire Strainer - 4846,09/07/2021 00:00,252388,50.19,FA0099,FARM & COUNTRY SUPPLIES LTD,30/8/2021 00:00:00,26/9/2021 00:00:00,P06-2022
P&V,RIVER LEE COUNTRY PARK,SUPPLIES AND SERVICES,FENCES/GATES ETC.,2231,P113737-SERVICE-Height Barrier at Cornmill Meadows,09/06/2021 00:00,252377,660,LW0268,LWC ENGINEERING LIMITED,30/8/2021 00:00:00,26/9/2021 00:00:00,P06-2022
P&V,MYDDELTON HOUSE GARDENS,EXPENDITURE FROM REPAIRS FUND,EXPENDITURE FROM REPAIRS FUND,2240,TUDOR TEA & COFFEE,09/07/2021 00:00,252211,25,TU0194,TUDOR TEA & COFFEE,30/8/2021 00:00:00,26/9/2021 00:00:00,P06-2022
P&V,MYDDELTON HOUSE GARDENS,EXPENDITURE FROM REPAIRS FUND,EXPENDITURE FROM REPAIRS FUND,2240,TUDOR TEA & COFFEE,09/07/2021 00:00,252211,2906.45,TU0194,TUDOR TEA & COFFEE,30/8/2021 00:00:00,26/9/2021 00:00:00,P06-2022
P&V,MYDDELTON HOUSE GARDENS,EXPENDITURE FROM REPAIRS FUND,EXPENDITURE FROM REPAIRS FUND,2240,P113408-SERVICE-Egro Coffee Machine Serial no.12007557 & Frid,09/07/2021 00:00,252211,2931.45,TU0194,TUDOR TEA & COFFEE,30/8/2021 00:00:00,26/9/2021 00:00:00,P06-2022
P&V,MYDDELTON HOUSE GARDENS,EXPENDITURE FROM REPAIRS FUND,EXPENDITURE FROM REPAIRS FUND,2240,TUDOR TEA & COFFEE,09/07/2021 00:00,252211,-2931.45,TU0194,TUDOR TEA & COFFEE,30/8/2021 00:00:00,26/9/2021 00:00:00,P06-2022
CEO,COMMERCIAL ACCOMMODATION,PREMISES RELATED EXPENDITURE,EAST HALE ALLOTMENTS,2261,P111998-SERVICE-11 Grass cuts throughout the season,09/07/2021 00:00,252339,907.22,GL0214,GLENDALE GROUNDS MANAGEMENT LIMITED,30/8/2021 00:00:00,26/9/2021 00:00:00,P06-2022
CEO,COMMERCIAL ACCOMMODATION,PREMISES RELATED EXPENDITURE,EAST HALE ALLOTMENTS,2261,P112083-SERVICE-Allotment Bins,13/9/2021 00:00:00,252419,108.18,CL0037,VEOLIA ES (UK) LTD,30/8/2021 00:00:00,26/9/2021 00:00:00,P06-2022
P&V,MYDDELTON HOUSE,PREMISES RELATED EXPENDITURE,ENERGY COSTS (ELECTRICITY),2332,KENT COUNTY COUNCIL (KCS),20/9/2021 00:00:00,253242,209.25,KE0007,KENT COUNTY COUNCIL (KCS),30/8/2021 00:00:00,26/9/2021 00:00:00,P06-2022
P&V,MYDDELTON HOUSE,PREMISES RELATED EXPENDITURE,ENERGY COSTS (ELECTRICITY),2332,KENT COUNTY COUNCIL (KCS),21/9/2021 00:00:00,253276,933.81,KE0007,KENT COUNTY COUNCIL (KCS),30/8/2021 00:00:00,26/9/2021 00:00:00,P06-2022
P&V,MYDDELTON HOUSE,PREMISES RELATED EXPENDITURE,ENERGY COSTS (ELECTRICITY),2332,KENT COUNTY COUNCIL (KCS),21/9/2021 00:00:00,253311,1232.84,KE0007,KENT COUNTY COUNCIL (KCS),30/8/2021 00:00:00,26/9/2021 00:00:00,P06-2022
CEO,COMMERCIAL ACCOMMODATION,PREMISES RELATED EXPENDITURE,ENERGY COSTS (ELECTRICITY),2332,P113621-SERVICE-LV Forge Gas,20/9/2021 00:00:00,251350,19.61,CA0006,CALOR GAS LIMITED,30/8/2021 00:00:00,26/9/2021 00:00:00,P06-2022
CEO,COMMERCIAL ACCOMMODATION,PREMISES RELATED EXPENDITURE,ENERGY COSTS (ELECTRICITY),2332,E-ON NEXT ENERGY LTD,14/9/2021 00:00:00,252529,32.82,EO0398,E-ON NEXT ENERGY LTD,30/8/2021 00:00:00,26/9/2021 00:00:00,P06-2022
CEO,COMMERCIAL ACCOMMODATION,PREMISES RELATED EXPENDITURE,ENERGY COSTS (ELECTRICITY),2332,E-ON NEXT ENERGY LTD,21/9/2021 00:00:00,253300,14.02,EO0398,E-ON NEXT ENERGY LTD,30/8/2021 00:00:00,26/9/2021 00:00:00,P06-2022
CEO,COMMERCIAL ACCOMMODATION,PREMISES RELATED EXPENDITURE,ENERGY COSTS (ELECTRICITY),2332,E-ON NEXT ENERGY LTD,21/9/2021 00:00:00,253301,108.47,EO0398,E-ON NEXT ENERGY LTD,30/8/2021 00:00:00,26/9/2021 00:00:00,P06-2022
CEO,COMMERCIAL ACCOMMODATION,PREMISES RELATED EXPENDITURE,ENERGY COSTS (ELECTRICITY),2332,E-ON NEXT ENERGY LTD,21/9/2021 00:00:00,253301,40,EO0398,E-ON NEXT ENERGY LTD,30/8/2021 00:00:00,26/9/2021 00:00:00,P06-2022
,LEE VALLEY MARINA SPRINGFIELD,PREMISES RELATED EXPENDITURE,ENERGY COSTS (ELECTRICITY),2332,KENT COUNTY COUNCIL (KCS),20/9/2021 00:00:00,252875,2048.1,KE0007,KENT COUNTY COUNCIL (KCS),30/8/2021 00:00:00,26/9/2021 00:00:00,P06-2022
,LEE VALLEY MARINA STANSTEAD,PREMISES RELATED EXPENDITURE,ENERGY COSTS (ELECTRICITY),2332,KENT COUNTY COUNCIL (KCS),24/9/2021 00:00:00,253243,144.46,KE0007,KENT COUNTY COUNCIL (KCS),30/8/2021 00:00:00,26/9/2021 00:00:00,P06-2022
,LEE VALLEY MARINA STANSTEAD,PREMISES RELATED EXPENDITURE,ENERGY COSTS (ELECTRICITY),2332,KENT COUNTY COUNCIL (KCS),24/9/2021 00:00:00,253247,660.74,KE0007,KENT COUNTY COUNCIL (KCS),30/8/2021 00:00:00,26/9/2021 00:00:00,P06-2022
,LEE VALLEY MARINA STANSTEAD,PREMISES RELATED EXPENDITURE,ENERGY COSTS (ELECTRICITY),2332,KENT COUNTY COUNCIL (KCS),24/9/2021 00:00:00,253310,2599.35,KE0007,KENT COUNTY COUNCIL (KCS),30/8/2021 00:00:00,26/9/2021 00:00:00,P06-2022
,LEE VALLEY WATERWORKS CENTRE,PREMISES RELATED EXPENDITURE,ENERGY COSTS (ELECTRICITY),2332,NPOWER LIMITED,24/9/2021 00:00:00,253267,675.04,NP0123,NPOWER LIMITED,30/8/2021 00:00:00,26/9/2021 00:00:00,P06-2022
P&V,LEE VALLEY FARM HOLYFIELDHALL,PREMISES RELATED EXPENDITURE,ENERGY COSTS (ELECTRICITY),2332,KENT COUNTY COUNCIL (KCS),20/9/2021 00:00:00,253246,4884.92,KE0007,KENT COUNTY COUNCIL (KCS),30/8/2021 00:00:00,26/9/2021 00:00:00,P06-2022
,LEE VALLEY CAMPSITE,PREMISES RELATED EXPENDITURE,ENERGY COSTS (ELECTRICITY),2332,KENT COUNTY COUNCIL (KCS),20/9/2021 00:00:00,252876,1894.17,KE0007,KENT COUNTY COUNCIL (KCS),30/8/2021 00:00:00,26/9/2021 00:00:00,P06-2022
,LEE VALLEY CAMPSITE,PREMISES RELATED EXPENDITURE,ENERGY COSTS (ELECTRICITY),2332,KENT COUNTY COUNCIL (KCS),20/9/2021 00:00:00,252878,1343.08,KE0007,KENT COUNTY COUNCIL (KCS),30/8/2021 00:00:00,26/9/2021 00:00:00,P06-2022
,LEE VALLEY CARAVAN PARK,PREMISES RELATED EXPENDITURE,ENERGY COSTS (ELECTRICITY),2332,KENT COUNTY COUNCIL (KCS),15/9/2021 00:00:00,252874,6396.28,KE0007,KENT COUNTY COUNCIL (KCS),30/8/2021 00:00:00,26/9/2021 00:00:00,P06-2022
P&V,EAST INDIA DOCK AND BOW CREEK,PREMISES RELATED EXPENDITURE,ENERGY COSTS (ELECTRICITY),2332,KENT COUNTY COUNCIL (KCS),24/9/2021 00:00:00,253278,-105.18,KE0007,KENT COUNTY COUNCIL (KCS),30/8/2021 00:00:00,26/9/2021 00:00:00,P06-2022
P&V,EAST INDIA DOCK AND BOW CREEK,PREMISES RELATED EXPENDITURE,ENERGY COSTS (ELECTRICITY),2332,KENT COUNTY COUNCIL (KCS),24/9/2021 00:00:00,253279,152.17,KE0007,KENT COUNTY COUNCIL (KCS),30/8/2021 00:00:00,26/9/2021 00:00:00,P06-2022
P&V,EAST INDIA DOCK AND BOW CREEK,PREMISES RELATED EXPENDITURE,ENERGY COSTS (ELECTRICITY),2332,KENT COUNTY COUNCIL (KCS),24/9/2021 00:00:00,253309,117.12,KE0007,KENT COUNTY COUNCIL (KCS),30/8/2021 00:00:00,26/9/2021 00:00:00,P06-2022
P&V,RYE HOUSE GATEHOUSE,PREMISES RELATED EXPENDITURE,ENERGY COSTS (ELECTRICITY),2332,KENT COUNTY COUNCIL (KCS),24/9/2021 00:00:00,253512,75.21,KE0007,KENT COUNTY COUNCIL (KCS),30/8/2021 00:00:00,26/9/2021 00:00:00,P06-2022
P&V,NORTH AREA RANGERS,PREMISES RELATED EXPENDITURE,ENERGY COSTS (ELECTRICITY),2332,KENT COUNTY COUNCIL (KCS),24/9/2021 00:00:00,253248,469.77,KE0007,KENT COUNTY COUNCIL (KCS),30/8/2021 00:00:00,26/9/2021 00:00:00,P06-2022
P&V,NORTH AREA RANGERS,PREMISES RELATED EXPENDITURE,ENERGY COSTS (ELECTRICITY),2332,KENT COUNTY COUNCIL (KCS),24/9/2021 00:00:00,253280,62.56,KE0007,KENT COUNTY COUNCIL (KCS),30/8/2021 00:00:00,26/9/2021 00:00:00,P06-2022
P&V,NORTH AREA RANGERS,PREMISES RELATED EXPENDITURE,ENERGY COSTS (ELECTRICITY),2332,KENT COUNTY COUNCIL (KCS),24/9/2021 00:00:00,253312,101.25,KE0007,KENT COUNTY COUNCIL (KCS),30/8/2021 00:00:00,26/9/2021 00:00:00,P06-2022
P&V,SOUTH AREA RANGERS,PREMISES RELATED EXPENDITURE,ENERGY COSTS (ELECTRICITY),2332,KENT COUNTY COUNCIL (KCS),24/9/2021 00:00:00,253250,156.52,KE0007,KENT COUNTY COUNCIL (KCS),30/8/2021 00:00:00,26/9/2021 00:00:00,P06-2022
P&V,GUNPOWDER PARK,PREMISES RELATED EXPENDITURE,ENERGY COSTS (ELECTRICITY),2332,KENT COUNTY COUNCIL (KCS),24/9/2021 00:00:00,253509,223.58,KE0007,KENT COUNTY COUNCIL (KCS),30/8/2021 00:00:00,26/9/2021 00:00:00,P06-2022
P&V,GUNPOWDER PARK,PREMISES RELATED EXPENDITURE,ENERGY COSTS (ELECTRICITY),2332,KENT COUNTY COUNCIL (KCS),24/9/2021 00:00:00,253510,63.6,KE0007,KENT COUNTY COUNCIL (KCS),30/8/2021 00:00:00,26/9/2021 00:00:00,P06-2022
P&V,GUNPOWDER PARK,PREMISES RELATED EXPENDITURE,ENERGY COSTS (ELECTRICITY),2332,KENT COUNTY COUNCIL (KCS),24/9/2021 00:00:00,253513,-319.78,KE0007,KENT COUNTY COUNCIL (KCS),30/8/2021 00:00:00,26/9/2021 00:00:00,P06-2022
P&V,GUNPOWDER PARK,PREMISES RELATED EXPENDITURE,ENERGY COSTS (ELECTRICITY),2332,KENT COUNTY COUNCIL (KCS),24/9/2021 00:00:00,253514,277.53,KE0007,KENT COUNTY COUNCIL (KCS),30/8/2021 00:00:00,26/9/2021 00:00:00,P06-2022
P&V,RIVER LEE COUNTRY PARK,PREMISES RELATED EXPENDITURE,ENERGY COSTS (ELECTRICITY),2332,KENT COUNTY COUNCIL (KCS),24/9/2021 00:00:00,253251,349.7,KE0007,KENT COUNTY COUNCIL (KCS),30/8/2021 00:00:00,26/9/2021 00:00:00,P06-2022
P&V,RIVER LEE COUNTRY PARK,PREMISES RELATED EXPENDITURE,ENERGY COSTS (ELECTRICITY),2332,KENT COUNTY COUNCIL (KCS),24/9/2021 00:00:00,253511,122.44,KE0007,KENT COUNTY COUNCIL (KCS),30/8/2021 00:00:00,26/9/2021 00:00:00,P06-2022
,LEE VALLEY VELOPARK,PREMISES RELATED EXPENDITURE,ENERGY COSTS (ELECTRICITY),2332,EDF ENERGY CUSTOMERS PLC,09/06/2021 00:00,252476,9.19,ED0321,EDF ENERGY CUSTOMERS PLC,30/8/2021 00:00:00,26/9/2021 00:00:00,P06-2022
,LEE VALLEY VELOPARK,PREMISES RELATED EXPENDITURE,ENERGY COSTS (ELECTRICITY),2332,KENT COUNTY COUNCIL (KCS),20/9/2021 00:00:00,252877,75.97,KE0007,KENT COUNTY COUNCIL (KCS),30/8/2021 00:00:00,26/9/2021 00:00:00,P06-2022
,LEE VALLEY VELOPARK,PREMISES RELATED EXPENDITURE,ENERGY COSTS (ELECTRICITY),2332,EDF ENERGY CUSTOMERS PLC,20/9/2021 00:00:00,253185,325.16,ED0321,EDF ENERGY CUSTOMERS PLC,30/8/2021 00:00:00,26/9/2021 00:00:00,P06-2022
,LEE VALLEY VELOPARK,PREMISES RELATED EXPENDITURE,ENERGY COSTS (ELECTRICITY),2332,KENT COUNTY COUNCIL (KCS),24/9/2021 00:00:00,253244,42.04,KE0007,KENT COUNTY COUNCIL (KCS),30/8/2021 00:00:00,26/9/2021 00:00:00,P06-2022
,LEE VALLEY VELOPARK,PREMISES RELATED EXPENDITURE,ENERGY COSTS (ELECTRICITY),2332,KENT COUNTY COUNCIL (KCS),20/9/2021 00:00:00,253245,169.22,KE0007,KENT COUNTY COUNCIL (KCS),30/8/2021 00:00:00,26/9/2021 00:00:00,P06-2022
,LEE VALLEY VELOPARK,PREMISES RELATED EXPENDITURE,ENERGY COSTS (ELECTRICITY),2332,KENT COUNTY COUNCIL (KCS),24/9/2021 00:00:00,253249,180.76,KE0007,KENT COUNTY COUNCIL (KCS),30/8/2021 00:00:00,26/9/2021 00:00:00,P06-2022
,LEE VALLEY VELOPARK,PREMISES RELATED EXPENDITURE,ENERGY COSTS (ELECTRICITY),2332,NPOWER LIMITED,24/9/2021 00:00:00,253262,12739.82,NP0123,NPOWER LIMITED,30/8/2021 00:00:00,26/9/2021 00:00:00,P06-2022
,LEE VALLEY VELOPARK,PREMISES RELATED EXPENDITURE,ENERGY COSTS (ELECTRICITY),2332,KENT COUNTY COUNCIL (KCS),24/9/2021 00:00:00,253321,1003.95,KE0007,KENT COUNTY COUNCIL (KCS),30/8/2021 00:00:00,26/9/2021 00:00:00,P06-2022
,LV HOCKEY AND TENNIS CENTRE,PREMISES RELATED EXPENDITURE,ENERGY COSTS (ELECTRICITY),2332,NPOWER LIMITED,20/9/2021 00:00:00,253263,8045.01,NP0123,NPOWER LIMITED,30/8/2021 00:00:00,26/9/2021 00:00:00,P06-2022
,LEE VALLEY RIDING CENTRE,PREMISES RELATED EXPENDITURE,ENERGY COSTS (ELECTRICITY),2332,NPOWER LIMITED,20/9/2021 00:00:00,253272,692.73,NP0123,NPOWER LIMITED,30/8/2021 00:00:00,26/9/2021 00:00:00,P06-2022
,LEE VALLEY RIDING CENTRE,PREMISES RELATED EXPENDITURE,ENERGY COSTS (ELECTRICITY),2332,NPOWER LIMITED,20/9/2021 00:00:00,253273,4210,NP0123,NPOWER LIMITED,30/8/2021 00:00:00,26/9/2021 00:00:00,P06-2022
,LEE VALLEY RIDING CENTRE,PREMISES RELATED EXPENDITURE,ENERGY COSTS (ELECTRICITY),2332,EDF ENERGY 1 LIMITED,24/9/2021 00:00:00,253326,56.34,ED0077,EDF ENERGY 1 LIMITED,30/8/2021 00:00:00,26/9/2021 00:00:00,P06-2022
P&V,FORMER LV LIDO SITE,PREMISES RELATED EXPENDITURE,ENERGY COSTS (ELECTRICITY),2332,KENT COUNTY COUNCIL (KCS),24/9/2021 00:00:00,253508,34.94,KE0007,KENT COUNTY COUNCIL (KCS),30/8/2021 00:00:00,26/9/2021 00:00:00,P06-2022
,LV LEISURE CENTRE CAMPSITE,PREMISES RELATED EXPENDITURE,ENERGY COSTS (ELECTRICITY),2332,NPOWER LIMITED,26/9/2021 00:00:00,253265,4310.21,NP0123,NPOWER LIMITED,30/8/2021 00:00:00,26/9/2021 00:00:00,P06-2022
,LEE VALLEY WHITE WATER CENTRE,PREMISES RELATED EXPENDITURE,ENERGY COSTS (ELECTRICITY),2332,NPOWER LIMITED,20/9/2021 00:00:00,253167,347.66,NP0123,NPOWER LIMITED,30/8/2021 00:00:00,26/9/2021 00:00:00,P06-2022
,LEE VALLEY WHITE WATER CENTRE,PREMISES RELATED EXPENDITURE,ENERGY COSTS (ELECTRICITY),2332,NPOWER LIMITED,20/9/2021 00:00:00,253266,148.05,NP0123,NPOWER LIMITED,30/8/2021 00:00:00,26/9/2021 00:00:00,P06-2022
,LEE VALLEY WHITE WATER CENTRE,PREMISES RELATED EXPENDITURE,ENERGY COSTS (ELECTRICITY),2332,NPOWER LIMITED,20/9/2021 00:00:00,253268,13712.72,NP0123,NPOWER LIMITED,30/8/2021 00:00:00,26/9/2021 00:00:00,P06-2022
,LEE VALLEY WHITE WATER CENTRE,PREMISES RELATED EXPENDITURE,ENERGY COSTS (ELECTRICITY),2332,NPOWER LIMITED,20/9/2021 00:00:00,253269,15071.98,NP0123,NPOWER LIMITED,30/8/2021 00:00:00,26/9/2021 00:00:00,P06-2022
,LEE VALLEY WHITE WATER CENTRE,PREMISES RELATED EXPENDITURE,ENERGY COSTS (ELECTRICITY),2332,NPOWER LIMITED,20/9/2021 00:00:00,253270,16067.64,NP0123,NPOWER LIMITED,30/8/2021 00:00:00,26/9/2021 00:00:00,P06-2022
,LEE VALLEY WHITE WATER CENTRE,PREMISES RELATED EXPENDITURE,ENERGY COSTS (ELECTRICITY),2332,NPOWER LIMITED,20/9/2021 00:00:00,253271,7898.94,NP0123,NPOWER LIMITED,30/8/2021 00:00:00,26/9/2021 00:00:00,P06-2022
,LEE VALLEY MARINA SPRINGFIELD,PREMISES RELATED EXPENDITURE,ENERGY COSTS (GAS),2333,KENT COUNTY COUNCIL (KCS),20/9/2021 00:00:00,252581,559.16,KE0007,KENT COUNTY COUNCIL (KCS),30/8/2021 00:00:00,26/9/2021 00:00:00,P06-2022
,LEE VALLEY MARINA SPRINGFIELD,PREMISES RELATED EXPENDITURE,ENERGY COSTS (GAS),2333,KENT COUNTY COUNCIL (KCS),20/9/2021 00:00:00,252582,100.17,KE0007,KENT COUNTY COUNCIL (KCS),30/8/2021 00:00:00,26/9/2021 00:00:00,P06-2022
,LEE VALLEY MARINA SPRINGFIELD,PREMISES RELATED EXPENDITURE,ENERGY COSTS (GAS),2333,KENT COUNTY COUNCIL (KCS),20/9/2021 00:00:00,252583,87.66,KE0007,KENT COUNTY COUNCIL (KCS),30/8/2021 00:00:00,26/9/2021 00:00:00,P06-2022
,LEE VALLEY MARINA SPRINGFIELD,PREMISES RELATED EXPENDITURE,ENERGY COSTS (GAS),2333,KENT COUNTY COUNCIL (KCS),20/9/2021 00:00:00,253103,101.22,KE0007,KENT COUNTY COUNCIL (KCS),30/8/2021 00:00:00,26/9/2021 00:00:00,P06-2022
,LEE VALLEY MARINA STANSTEAD,PREMISES RELATED EXPENDITURE,ENERGY COSTS (GAS),2333,KENT COUNTY COUNCIL (KCS),13/9/2021 00:00:00,252584,90.21,KE0007,KENT COUNTY COUNCIL (KCS),30/8/2021 00:00:00,26/9/2021 00:00:00,P06-2022
,LEE VALLEY MARINA STANSTEAD,PREMISES RELATED EXPENDITURE,ENERGY COSTS (GAS),2333,KENT COUNTY COUNCIL (KCS),13/9/2021 00:00:00,252585,123.42,KE0007,KENT COUNTY COUNCIL (KCS),30/8/2021 00:00:00,26/9/2021 00:00:00,P06-2022
,LEE VALLEY MARINA STANSTEAD,PREMISES RELATED EXPENDITURE,ENERGY COSTS (GAS),2333,KENT COUNTY COUNCIL (KCS),13/9/2021 00:00:00,252586,108.53,KE0007,KENT COUNTY COUNCIL (KCS),30/8/2021 00:00:00,26/9/2021 00:00:00,P06-2022
,LEE VALLEY MARINA STANSTEAD,PREMISES RELATED EXPENDITURE,ENERGY COSTS (GAS),2333,KENT COUNTY COUNCIL (KCS),13/9/2021 00:00:00,252587,121.24,KE0007,KENT COUNTY COUNCIL (KCS),30/8/2021 00:00:00,26/9/2021 00:00:00,P06-2022
,LEE VALLEY MARINA STANSTEAD,PREMISES RELATED EXPENDITURE,ENERGY COSTS (GAS),2333,KENT COUNTY COUNCIL (KCS),13/9/2021 00:00:00,252588,112.48,KE0007,KENT COUNTY COUNCIL (KCS),30/8/2021 00:00:00,26/9/2021 00:00:00,P06-2022
,LEE VALLEY MARINA STANSTEAD,PREMISES RELATED EXPENDITURE,ENERGY COSTS (GAS),2333,KENT COUNTY COUNCIL (KCS),13/9/2021 00:00:00,252589,85.04,KE0007,KENT COUNTY COUNCIL (KCS),30/8/2021 00:00:00,26/9/2021 00:00:00,P06-2022
,LEE VALLEY MARINA STANSTEAD,PREMISES RELATED EXPENDITURE,ENERGY COSTS (GAS),2333,KENT COUNTY COUNCIL (KCS),13/9/2021 00:00:00,252590,73.8,KE0007,KENT COUNTY COUNCIL (KCS),30/8/2021 00:00:00,26/9/2021 00:00:00,P06-2022
,LEE VALLEY MARINA STANSTEAD,PREMISES RELATED EXPENDITURE,ENERGY COSTS (GAS),2333,KENT COUNTY COUNCIL (KCS),13/9/2021 00:00:00,252591,346.31,KE0007,KENT COUNTY COUNCIL (KCS),30/8/2021 00:00:00,26/9/2021 00:00:00,P06-2022
,LEE VALLEY MARINA STANSTEAD,PREMISES RELATED EXPENDITURE,ENERGY COSTS (GAS),2333,KENT COUNTY COUNCIL (KCS),13/9/2021 00:00:00,252592,504.77,KE0007,KENT COUNTY COUNCIL (KCS),30/8/2021 00:00:00,26/9/2021 00:00:00,P06-2022
,LEE VALLEY MARINA STANSTEAD,PREMISES RELATED EXPENDITURE,ENERGY COSTS (GAS),2333,KENT COUNTY COUNCIL (KCS),13/9/2021 00:00:00,252593,385.24,KE0007,KENT COUNTY COUNCIL (KCS),30/8/2021 00:00:00,26/9/2021 00:00:00,P06-2022
,LEE VALLEY MARINA STANSTEAD,PREMISES RELATED EXPENDITURE,ENERGY COSTS (GAS),2333,KENT COUNTY COUNCIL (KCS),13/9/2021 00:00:00,252594,309.16,KE0007,KENT COUNTY COUNCIL (KCS),30/8/2021 00:00:00,26/9/2021 00:00:00,P06-2022
,LEE VALLEY MARINA STANSTEAD,PREMISES RELATED EXPENDITURE,ENERGY COSTS (GAS),2333,KENT COUNTY COUNCIL (KCS),13/9/2021 00:00:00,252595,276.23,KE0007,KENT COUNTY COUNCIL (KCS),30/8/2021 00:00:00,26/9/2021 00:00:00,P06-2022
,LEE VALLEY MARINA STANSTEAD,PREMISES RELATED EXPENDITURE,ENERGY COSTS (GAS),2333,KENT COUNTY COUNCIL (KCS),13/9/2021 00:00:00,252596,148.18,KE0007,KENT COUNTY COUNCIL (KCS),30/8/2021 00:00:00,26/9/2021 00:00:00,P06-2022
,LEE VALLEY MARINA STANSTEAD,PREMISES RELATED EXPENDITURE,ENERGY COSTS (GAS),2333,KENT COUNTY COUNCIL (KCS),13/9/2021 00:00:00,252597,91.41,KE0007,KENT COUNTY COUNCIL (KCS),30/8/2021 00:00:00,26/9/2021 00:00:00,P06-2022
,LEE VALLEY MARINA STANSTEAD,PREMISES RELATED EXPENDITURE,ENERGY COSTS (GAS),2333,KENT COUNTY COUNCIL (KCS),13/9/2021 00:00:00,252598,94.21,KE0007,KENT COUNTY COUNCIL (KCS),30/8/2021 00:00:00,26/9/2021 00:00:00,P06-2022
,LEE VALLEY MARINA STANSTEAD,PREMISES RELATED EXPENDITURE,ENERGY COSTS (GAS),2333,KENT COUNTY COUNCIL (KCS),24/9/2021 00:00:00,252961,82.56,KE0007,KENT COUNTY COUNCIL (KCS),30/8/2021 00:00:00,26/9/2021 00:00:00,P06-2022
,LEE VALLEY MARINA STANSTEAD,PREMISES RELATED EXPENDITURE,ENERGY COSTS (GAS),2333,KENT COUNTY COUNCIL (KCS),24/9/2021 00:00:00,252962,-90.21,KE0007,KENT COUNTY COUNCIL (KCS),30/8/2021 00:00:00,26/9/2021 00:00:00,P06-2022
,LEE VALLEY MARINA STANSTEAD,PREMISES RELATED EXPENDITURE,ENERGY COSTS (GAS),2333,KENT COUNTY COUNCIL (KCS),24/9/2021 00:00:00,252963,-123.42,KE0007,KENT COUNTY COUNCIL (KCS),30/8/2021 00:00:00,26/9/2021 00:00:00,P06-2022
,LEE VALLEY MARINA STANSTEAD,PREMISES RELATED EXPENDITURE,ENERGY COSTS (GAS),2333,KENT COUNTY COUNCIL (KCS),24/9/2021 00:00:00,252964,-108.53,KE0007,KENT COUNTY COUNCIL (KCS),30/8/2021 00:00:00,26/9/2021 00:00:00,P06-2022
,LEE VALLEY MARINA STANSTEAD,PREMISES RELATED EXPENDITURE,ENERGY COSTS (GAS),2333,KENT COUNTY COUNCIL (KCS),24/9/2021 00:00:00,252965,-121.24,KE0007,KENT COUNTY COUNCIL (KCS),30/8/2021 00:00:00,26/9/2021 00:00:00,P06-2022
,LEE VALLEY MARINA STANSTEAD,PREMISES RELATED EXPENDITURE,ENERGY COSTS (GAS),2333,KENT COUNTY COUNCIL (KCS),24/9/2021 00:00:00,252967,-112.48,KE0007,KENT COUNTY COUNCIL (KCS),30/8/2021 00:00:00,26/9/2021 00:00:00,P06-2022
,LEE VALLEY MARINA STANSTEAD,PREMISES RELATED EXPENDITURE,ENERGY COSTS (GAS),2333,KENT COUNTY COUNCIL (KCS),24/9/2021 00:00:00,253101,94.2,KE0007,KENT COUNTY COUNCIL (KCS),30/8/2021 00:00:00,26/9/2021 00:00:00,P06-2022
,LEE VALLEY WATERWORKS CENTRE,PREMISES RELATED EXPENDITURE,ENERGY COSTS (GAS),2333,KENT COUNTY COUNCIL (KCS),13/9/2021 00:00:00,252603,-363.84,KE0007,KENT COUNTY COUNCIL (KCS),30/8/2021 00:00:00,26/9/2021 00:00:00,P06-2022
,LEE VALLEY CAMPSITE,PREMISES RELATED EXPENDITURE,ENERGY COSTS (GAS),2333,KENT COUNTY COUNCIL (KCS),13/9/2021 00:00:00,252599,-286.03,KE0007,KENT COUNTY COUNCIL (KCS),30/8/2021 00:00:00,26/9/2021 00:00:00,P06-2022
,LEE VALLEY CAMPSITE,PREMISES RELATED EXPENDITURE,ENERGY COSTS (GAS),2333,KENT COUNTY COUNCIL (KCS),13/9/2021 00:00:00,252600,286.03,KE0007,KENT COUNTY COUNCIL (KCS),30/8/2021 00:00:00,26/9/2021 00:00:00,P06-2022
,LEE VALLEY CAMPSITE,PREMISES RELATED EXPENDITURE,ENERGY COSTS (GAS),2333,KENT COUNTY COUNCIL (KCS),13/9/2021 00:00:00,252601,412.02,KE0007,KENT COUNTY COUNCIL (KCS),30/8/2021 00:00:00,26/9/2021 00:00:00,P06-2022
,LEE VALLEY CAMPSITE,PREMISES RELATED EXPENDITURE,ENERGY COSTS (GAS),2333,KENT COUNTY COUNCIL (KCS),13/9/2021 00:00:00,252602,555.17,KE0007,KENT COUNTY COUNCIL (KCS),30/8/2021 00:00:00,26/9/2021 00:00:00,P06-2022
,LEE VALLEY CAMPSITE,PREMISES RELATED EXPENDITURE,ENERGY COSTS (GAS),2333,KENT COUNTY COUNCIL (KCS),20/9/2021 00:00:00,252958,-412.02,KE0007,KENT COUNTY COUNCIL (KCS),30/8/2021 00:00:00,26/9/2021 00:00:00,P06-2022
,LEE VALLEY CAMPSITE,PREMISES RELATED EXPENDITURE,ENERGY COSTS (GAS),2333,KENT COUNTY COUNCIL (KCS),20/9/2021 00:00:00,252959,-555.17,KE0007,KENT COUNTY COUNCIL (KCS),30/8/2021 00:00:00,26/9/2021 00:00:00,P06-2022
,LEE VALLEY CAMPSITE,PREMISES RELATED EXPENDITURE,ENERGY COSTS (GAS),2333,KENT COUNTY COUNCIL (KCS),20/9/2021 00:00:00,252960,242.01,KE0007,KENT COUNTY COUNCIL (KCS),30/8/2021 00:00:00,26/9/2021 00:00:00,P06-2022
,LEE VALLEY CAMPSITE,PREMISES RELATED EXPENDITURE,ENERGY COSTS (GAS),2333,KENT COUNTY COUNCIL (KCS),20/9/2021 00:00:00,253100,242.29,KE0007,KENT COUNTY COUNCIL (KCS),30/8/2021 00:00:00,26/9/2021 00:00:00,P06-2022
P&V,GUNPOWDER PARK,PREMISES RELATED EXPENDITURE,ENERGY COSTS (GAS),2333,KENT COUNTY COUNCIL (KCS),24/9/2021 00:00:00,253207,47.32,KE0007,KENT COUNTY COUNCIL (KCS),30/8/2021 00:00:00,26/9/2021 00:00:00,P06-2022
,LEE VALLEY RIDING CENTRE,PREMISES RELATED EXPENDITURE,ENERGY COSTS (GAS),2333,TOTALENERGIES GAS & POWER LIMI,20/9/2021 00:00:00,252936,131.38,TO0168,TOTALENERGIES GAS & POWER LIMITED,30/8/2021 00:00:00,26/9/2021 00:00:00,P06-2022
,LEE VALLEY RIDING CENTRE,PREMISES RELATED EXPENDITURE,ENERGY COSTS (GAS),2333,TOTALENERGIES GAS & POWER LIMI,20/9/2021 00:00:00,252937,131.96,TO0168,TOTALENERGIES GAS & POWER LIMITED,30/8/2021 00:00:00,26/9/2021 00:00:00,P06-2022
,LEE VALLEY RIDING CENTRE,PREMISES RELATED EXPENDITURE,ENERGY COSTS (GAS),2333,TOTALENERGIES GAS & POWER LIMI,20/9/2021 00:00:00,252938,244.04,TO0168,TOTALENERGIES GAS & POWER LIMITED,30/8/2021 00:00:00,26/9/2021 00:00:00,P06-2022
,LEE VALLEY RIDING CENTRE,PREMISES RELATED EXPENDITURE,ENERGY COSTS (GAS),2333,TOTALENERGIES GAS & POWER LIMI,20/9/2021 00:00:00,252939,197.61,TO0168,TOTALENERGIES GAS & POWER LIMITED,30/8/2021 00:00:00,26/9/2021 00:00:00,P06-2022
,LEE VALLEY RIDING CENTRE,PREMISES RELATED EXPENDITURE,ENERGY COSTS (GAS),2333,TOTALENERGIES GAS & POWER LIMI,20/9/2021 00:00:00,252940,246.05,TO0168,TOTALENERGIES GAS & POWER LIMITED,30/8/2021 00:00:00,26/9/2021 00:00:00,P06-2022
,LEE VALLEY RIDING CENTRE,PREMISES RELATED EXPENDITURE,ENERGY COSTS (GAS),2333,TOTALENERGIES GAS & POWER LIMI,20/9/2021 00:00:00,252941,240.44,TO0168,TOTALENERGIES GAS & POWER LIMITED,30/8/2021 00:00:00,26/9/2021 00:00:00,P06-2022
,LEE VALLEY RIDING CENTRE,PREMISES RELATED EXPENDITURE,ENERGY COSTS (GAS),2333,TOTALENERGIES GAS & POWER LIMI,20/9/2021 00:00:00,253095,124.6,TO0168,TOTALENERGIES GAS & POWER LIMITED,30/8/2021 00:00:00,26/9/2021 00:00:00,P06-2022
,LEE VALLEY RIDING CENTRE,PREMISES RELATED EXPENDITURE,ENERGY COSTS (GAS),2333,TOTALENERGIES GAS & POWER LIMI,20/9/2021 00:00:00,253096,124.36,TO0168,TOTALENERGIES GAS & POWER LIMITED,30/8/2021 00:00:00,26/9/2021 00:00:00,P06-2022
,LEE VALLEY RIDING CENTRE,PREMISES RELATED EXPENDITURE,ENERGY COSTS (GAS),2333,TOTALENERGIES GAS & POWER LIMI,20/9/2021 00:00:00,253097,93.5,TO0168,TOTALENERGIES GAS & POWER LIMITED,30/8/2021 00:00:00,26/9/2021 00:00:00,P06-2022
,LEE VALLEY RIDING CENTRE,PREMISES RELATED EXPENDITURE,ENERGY COSTS (GAS),2333,TOTALENERGIES GAS & POWER LIMI,20/9/2021 00:00:00,253098,68.34,TO0168,TOTALENERGIES GAS & POWER LIMITED,30/8/2021 00:00:00,26/9/2021 00:00:00,P06-2022
,LEE VALLEY RIDING CENTRE,PREMISES RELATED EXPENDITURE,ENERGY COSTS (GAS),2333,TOTALENERGIES GAS & POWER LIMI,20/9/2021 00:00:00,253099,79.66,TO0168,TOTALENERGIES GAS & POWER LIMITED,30/8/2021 00:00:00,26/9/2021 00:00:00,P06-2022
,LV LEISURE CENTRE CAMPSITE,PREMISES RELATED EXPENDITURE,ENERGY COSTS (GAS),2333,KENT COUNTY COUNCIL (KCS),13/9/2021 00:00:00,252686,-382.72,KE0007,KENT COUNTY COUNCIL (KCS),30/8/2021 00:00:00,26/9/2021 00:00:00,P06-2022
,LV LEISURE CENTRE CAMPSITE,PREMISES RELATED EXPENDITURE,ENERGY COSTS (GAS),2333,KENT COUNTY COUNCIL (KCS),13/9/2021 00:00:00,252687,368.07,KE0007,KENT COUNTY COUNCIL (KCS),30/8/2021 00:00:00,26/9/2021 00:00:00,P06-2022
,LV LEISURE CENTRE CAMPSITE,PREMISES RELATED EXPENDITURE,ENERGY COSTS (GAS),2333,KENT COUNTY COUNCIL (KCS),13/9/2021 00:00:00,252688,-779.94,KE0007,KENT COUNTY COUNCIL (KCS),30/8/2021 00:00:00,26/9/2021 00:00:00,P06-2022
,LV LEISURE CENTRE CAMPSITE,PREMISES RELATED EXPENDITURE,ENERGY COSTS (GAS),2333,KENT COUNTY COUNCIL (KCS),13/9/2021 00:00:00,252689,802.41,KE0007,KENT COUNTY COUNCIL (KCS),30/8/2021 00:00:00,26/9/2021 00:00:00,P06-2022
,LV LEISURE CENTRE CAMPSITE,PREMISES RELATED EXPENDITURE,ENERGY COSTS (GAS),2333,KENT COUNTY COUNCIL (KCS),13/9/2021 00:00:00,252690,1047.04,KE0007,KENT COUNTY COUNCIL (KCS),30/8/2021 00:00:00,26/9/2021 00:00:00,P06-2022
,LV LEISURE CENTRE CAMPSITE,PREMISES RELATED EXPENDITURE,ENERGY COSTS (GAS),2333,KENT COUNTY COUNCIL (KCS),13/9/2021 00:00:00,252691,-1638.68,KE0007,KENT COUNTY COUNCIL (KCS),30/8/2021 00:00:00,26/9/2021 00:00:00,P06-2022
,LV LEISURE CENTRE CAMPSITE,PREMISES RELATED EXPENDITURE,ENERGY COSTS (GAS),2333,KENT COUNTY COUNCIL (KCS),13/9/2021 00:00:00,252692,1633.26,KE0007,KENT COUNTY COUNCIL (KCS),30/8/2021 00:00:00,26/9/2021 00:00:00,P06-2022
,LV LEISURE CENTRE CAMPSITE,PREMISES RELATED EXPENDITURE,ENERGY COSTS (GAS),2333,KENT COUNTY COUNCIL (KCS),13/9/2021 00:00:00,252693,-1913.09,KE0007,KENT COUNTY COUNCIL (KCS),30/8/2021 00:00:00,26/9/2021 00:00:00,P06-2022
,LV LEISURE CENTRE CAMPSITE,PREMISES RELATED EXPENDITURE,ENERGY COSTS (GAS),2333,KENT COUNTY COUNCIL (KCS),13/9/2021 00:00:00,252694,1867.74,KE0007,KENT COUNTY COUNCIL (KCS),30/8/2021 00:00:00,26/9/2021 00:00:00,P06-2022
,LV LEISURE CENTRE CAMPSITE,PREMISES RELATED EXPENDITURE,ENERGY COSTS (GAS),2333,KENT COUNTY COUNCIL (KCS),13/9/2021 00:00:00,252695,-2116.46,KE0007,KENT COUNTY COUNCIL (KCS),30/8/2021 00:00:00,26/9/2021 00:00:00,P06-2022
,LV LEISURE CENTRE CAMPSITE,PREMISES RELATED EXPENDITURE,ENERGY COSTS (GAS),2333,KENT COUNTY COUNCIL (KCS),13/9/2021 00:00:00,252696,2159.47,KE0007,KENT COUNTY COUNCIL (KCS),30/8/2021 00:00:00,26/9/2021 00:00:00,P06-2022
,LV LEISURE CENTRE CAMPSITE,PREMISES RELATED EXPENDITURE,ENERGY COSTS (GAS),2333,KENT COUNTY COUNCIL (KCS),13/9/2021 00:00:00,252697,-1498.37,KE0007,KENT COUNTY COUNCIL (KCS),30/8/2021 00:00:00,26/9/2021 00:00:00,P06-2022
,LV LEISURE CENTRE CAMPSITE,PREMISES RELATED EXPENDITURE,ENERGY COSTS (GAS),2333,KENT COUNTY COUNCIL (KCS),13/9/2021 00:00:00,252698,1526.66,KE0007,KENT COUNTY COUNCIL (KCS),30/8/2021 00:00:00,26/9/2021 00:00:00,P06-2022
,LV LEISURE CENTRE CAMPSITE,PREMISES RELATED EXPENDITURE,ENERGY COSTS (GAS),2333,KENT COUNTY COUNCIL (KCS),13/9/2021 00:00:00,252699,-1463.66,KE0007,KENT COUNTY COUNCIL (KCS),30/8/2021 00:00:00,26/9/2021 00:00:00,P06-2022
,LV LEISURE CENTRE CAMPSITE,PREMISES RELATED EXPENDITURE,ENERGY COSTS (GAS),2333,KENT COUNTY COUNCIL (KCS),13/9/2021 00:00:00,252700,1452.32,KE0007,KENT COUNTY COUNCIL (KCS),30/8/2021 00:00:00,26/9/2021 00:00:00,P06-2022
,LV LEISURE CENTRE CAMPSITE,PREMISES RELATED EXPENDITURE,ENERGY COSTS (GAS),2333,KENT COUNTY COUNCIL (KCS),13/9/2021 00:00:00,252701,-1281.36,KE0007,KENT COUNTY COUNCIL (KCS),30/8/2021 00:00:00,26/9/2021 00:00:00,P06-2022
,LV LEISURE CENTRE CAMPSITE,PREMISES RELATED EXPENDITURE,ENERGY COSTS (GAS),2333,KENT COUNTY COUNCIL (KCS),13/9/2021 00:00:00,252702,1275.36,KE0007,KENT COUNTY COUNCIL (KCS),30/8/2021 00:00:00,26/9/2021 00:00:00,P06-2022
,LV LEISURE CENTRE CAMPSITE,PREMISES RELATED EXPENDITURE,ENERGY COSTS (GAS),2333,KENT COUNTY COUNCIL (KCS),13/9/2021 00:00:00,252703,633.9,KE0007,KENT COUNTY COUNCIL (KCS),30/8/2021 00:00:00,26/9/2021 00:00:00,P06-2022
,LV LEISURE CENTRE CAMPSITE,PREMISES RELATED EXPENDITURE,ENERGY COSTS (GAS),2333,KENT COUNTY COUNCIL (KCS),13/9/2021 00:00:00,252704,532.25,KE0007,KENT COUNTY COUNCIL (KCS),30/8/2021 00:00:00,26/9/2021 00:00:00,P06-2022
,LV LEISURE CENTRE CAMPSITE,PREMISES RELATED EXPENDITURE,ENERGY COSTS (GAS),2333,KENT COUNTY COUNCIL (KCS),20/9/2021 00:00:00,253102,475.18,KE0007,KENT COUNTY COUNCIL (KCS),30/8/2021 00:00:00,26/9/2021 00:00:00,P06-2022
,LEE VALLEY MARINA SPRINGFIELD,PREMISES RELATED EXPENDITURE,RENT (EXTERNAL),2442,THAMES WATER UTILITIES LIMITED,14/9/2021 00:00:00,251856,2618.75,TH0020,THAMES WATER UTILITIES LIMITED-  SAVILLS,30/8/2021 00:00:00,26/9/2021 00:00:00,P06-2022
P&V,NORTH AREA RANGERS,PREMISES RELATED EXPENDITURE,RENT (EXTERNAL),2442,ROYDON PARISH COUNCIL,09/06/2021 00:00,252202,1077.48,RO0025,ROYDON PARISH COUNCIL,30/8/2021 00:00:00,26/9/2021 00:00:00,P06-2022
P&V,NORTH AREA RANGERS,PREMISES RELATED EXPENDITURE,RENT (EXTERNAL),2442,NETWORK RAIL,09/06/2021 00:00,252435,279.41,RA0005,NETWORK RAIL,30/8/2021 00:00:00,26/9/2021 00:00:00,P06-2022
P&V,NORTH AREA RANGERS,PREMISES RELATED EXPENDITURE,RENT (EXTERNAL),2442,THAMES WATER UTILITIES LIMITED,13/9/2021 00:00:00,252573,68.75,TH0020,THAMES WATER UTILITIES LIMITED-  SAVILLS,30/8/2021 00:00:00,26/9/2021 00:00:00,P06-2022
P&V,RIVER LEE COUNTRY PARK,PREMISES RELATED EXPENDITURE,RENT (EXTERNAL),2442,CANAL & RIVER TRUST,24/9/2021 00:00:00,253091,7.5,BR0036,CANAL & RIVER TRUST,30/8/2021 00:00:00,26/9/2021 00:00:00,P06-2022
,LEE VALLEY MARINA SPRINGFIELD,PREMISES RELATED EXPENDITURE,BUSINESS RATES,2444,01/04/21-01/04/22,20/9/2021 00:00:00,251621,7396.44,WA0005,LONDON BOROUGH OF WALTHAM FOREST,30/8/2021 00:00:00,26/9/2021 00:00:00,P06-2022
,LEE VALLEY MARINA SPRINGFIELD,PREMISES RELATED EXPENDITURE,BUSINESS RATES,2444,31/03/20-01/04/20,20/9/2021 00:00:00,253171,77.94,WA0005,LONDON BOROUGH OF WALTHAM FOREST,30/8/2021 00:00:00,26/9/2021 00:00:00,P06-2022
,LEE VALLEY WATERWORKS CENTRE,PREMISES RELATED EXPENDITURE,BUSINESS RATES,2444,01/04/21-01/04/22,20/9/2021 00:00:00,251622,3948.2,WA0005,LONDON BOROUGH OF WALTHAM FOREST,30/8/2021 00:00:00,26/9/2021 00:00:00,P06-2022
,LEE VALLEY WATERWORKS CENTRE,PREMISES RELATED EXPENDITURE,BUSINESS RATES,2444,31/03/20-01/04/20,20/9/2021 00:00:00,253176,27.73,WA0005,LONDON BOROUGH OF WALTHAM FOREST,30/8/2021 00:00:00,26/9/2021 00:00:00,P06-2022
,LV HOCKEY AND TENNIS CENTRE,PREMISES RELATED EXPENDITURE,BUSINESS RATES,2444,01/04/21-01/04/22,20/9/2021 00:00:00,251620,48882.2,WA0005,LONDON BOROUGH OF WALTHAM FOREST,30/8/2021 00:00:00,26/9/2021 00:00:00,P06-2022
,LEE VALLEY RIDING CENTRE,PREMISES RELATED EXPENDITURE,BUSINESS RATES,2444,LONDON BOROUGH OF WALTHAM FORE,20/9/2021 00:00:00,251617,12356.33,WA0005,LONDON BOROUGH OF WALTHAM FOREST,30/8/2021 00:00:00,26/9/2021 00:00:00,P06-2022
,LEE VALLEY RIDING CENTRE,PREMISES RELATED EXPENDITURE,BUSINESS RATES,2444,31/03/20-01/04/20,20/9/2021 00:00:00,253174,96.13,WA0005,LONDON BOROUGH OF WALTHAM FOREST,30/8/2021 00:00:00,26/9/2021 00:00:00,P06-2022
CEO,RESIDENTIAL ACCOMMODATION,PREMISES RELATED EXPENDITURE,PROPERTY MANAGEMT/LETTING FEES,2447,P114096-SERVICE-Railway Cottage 6 Month Management Fee,20/9/2021 00:00:00,251879,750,WA0315,PAUL WALLACE ESTATE AGENTS,30/8/2021 00:00:00,26/9/2021 00:00:00,P06-2022
,LEE VALLEY MARINA STANSTEAD,PREMISES RELATED EXPENDITURE,WATER,2555,CASTLE WATER LIMITED,13/9/2021 00:00:00,252494,125.37,CA0625,CASTLE WATER LIMITED,30/8/2021 00:00:00,26/9/2021 00:00:00,P06-2022
,LEE VALLEY MARINA STANSTEAD,PREMISES RELATED EXPENDITURE,WATER,2555,CASTLE WATER LIMITED,13/9/2021 00:00:00,252494,131.16,CA0625,CASTLE WATER LIMITED,30/8/2021 00:00:00,26/9/2021 00:00:00,P06-2022
,LEE VALLEY CAMPSITE,PREMISES RELATED EXPENDITURE,WATER,2555,CASTLE WATER LIMITED,13/9/2021 00:00:00,252580,1834.16,CA0625,CASTLE WATER LIMITED,30/8/2021 00:00:00,26/9/2021 00:00:00,P06-2022
,LV LEISURE CENTRE CAMPSITE,PREMISES RELATED EXPENDITURE,WATER,2555,CASTLE WATER LIMITED,09/06/2021 00:00,252428,904.53,CA0625,CASTLE WATER LIMITED,30/8/2021 00:00:00,26/9/2021 00:00:00,P06-2022
,LV LEISURE CENTRE CAMPSITE,PREMISES RELATED EXPENDITURE,WATER,2555,CASTLE WATER LIMITED,20/9/2021 00:00:00,253196,144.7,CA0625,CASTLE WATER LIMITED,30/8/2021 00:00:00,26/9/2021 00:00:00,P06-2022
,LV LEISURE CENTRE CAMPSITE,PREMISES RELATED EXPENDITURE,WATER,2555,CASTLE WATER LIMITED,20/9/2021 00:00:00,253196,432.36,CA0625,CASTLE WATER LIMITED,30/8/2021 00:00:00,26/9/2021 00:00:00,P06-2022
,LEE VALLEY MARINA SPRINGFIELD,PREMISES RELATED EXPENDITURE,CLEANING & DOMESTIC SUPPLIES,2666,P113971-SERVICE-Site Cleaning for August 2021,09/07/2021 00:00,252335,912.33,MA0015,MAYFAIR CLEANING COMPANY LIMITED,30/8/2021 00:00:00,26/9/2021 00:00:00,P06-2022
,LEE VALLEY MARINA SPRINGFIELD,PREMISES RELATED EXPENDITURE,CLEANING & DOMESTIC SUPPLIES,2666,P112164-SERVICE-To supply items as requested,26/9/2021 00:00:00,253501,55.43,HY0043,HYGIENE SYSTEMS LTD,30/8/2021 00:00:00,26/9/2021 00:00:00,P06-2022
,LEE VALLEY MARINA STANSTEAD,PREMISES RELATED EXPENDITURE,CLEANING & DOMESTIC SUPPLIES,2666,P113869-SERVICE-cleaning services,09/08/2021 00:00,252413,100,TR0632,TONYA RENNIE T/A TR SERVICES,30/8/2021 00:00:00,26/9/2021 00:00:00,P06-2022
,LEE VALLEY WATERWORKS CENTRE,PREMISES RELATED EXPENDITURE,CLEANING & DOMESTIC SUPPLIES,2666,P113930-SERVICE-Cleaning WaterWorks Centre - Aug 2021,09/06/2021 00:00,252340,526.05,GL0214,GLENDALE GROUNDS MANAGEMENT LIMITED,30/8/2021 00:00:00,26/9/2021 00:00:00,P06-2022
,LEE VALLEY CAMPSITE,PREMISES RELATED EXPENDITURE,CLEANING & DOMESTIC SUPPLIES,2666,P113844-SERVICE-Cleaning materials,13/9/2021 00:00:00,252504,81.44,HY0043,HYGIENE SYSTEMS LTD,30/8/2021 00:00:00,26/9/2021 00:00:00,P06-2022
,LEE VALLEY CAMPSITE,PREMISES RELATED EXPENDITURE,CLEANING & DOMESTIC SUPPLIES,2666,P113844-SERVICE-Cleaning materials,13/9/2021 00:00:00,252505,55.23,HY0043,HYGIENE SYSTEMS LTD,30/8/2021 00:00:00,26/9/2021 00:00:00,P06-2022
,LEE VALLEY CAMPSITE,PREMISES RELATED EXPENDITURE,CLEANING & DOMESTIC SUPPLIES,2666,P114141-SERVICE-Monthly clean Sept - Oct 21,21/9/2021 00:00:00,252858,82.09,IN0012,INITIAL WASHROOM HYGIENE,30/8/2021 00:00:00,26/9/2021 00:00:00,P06-2022
,LEE VALLEY CAMPSITE,PREMISES RELATED EXPENDITURE,CLEANING & DOMESTIC SUPPLIES,2666,P113389-SERVICE-VARIOUS,20/9/2021 00:00:00,253134,23.77,HY0043,HYGIENE SYSTEMS LTD,30/8/2021 00:00:00,26/9/2021 00:00:00,P06-2022
,LEE VALLEY CAMPSITE,PREMISES RELATED EXPENDITURE,CLEANING & DOMESTIC SUPPLIES,2666,P113389-SERVICE-VARIOUS,20/9/2021 00:00:00,253135,-65.16,HY0043,HYGIENE SYSTEMS LTD,30/8/2021 00:00:00,26/9/2021 00:00:00,P06-2022
,LEE VALLEY CARAVAN PARK,PREMISES RELATED EXPENDITURE,CLEANING & DOMESTIC SUPPLIES,2666,P114214-SERVICE-Monthly service,20/9/2021 00:00:00,253206,90.39,IN0012,INITIAL WASHROOM HYGIENE,30/8/2021 00:00:00,26/9/2021 00:00:00,P06-2022
,LEE VALLEY VELOPARK,PREMISES RELATED EXPENDITURE,CLEANING & DOMESTIC SUPPLIES,2666,P114029-SERVICE-Cleaning Products,20/9/2021 00:00:00,253153,505.42,BR0025,BREEZE SOUTHERN LTD,30/8/2021 00:00:00,26/9/2021 00:00:00,P06-2022
,LV HOCKEY AND TENNIS CENTRE,PREMISES RELATED EXPENDITURE,CLEANING & DOMESTIC SUPPLIES,2666,P113781-SERVICE-Hygiene prducts August - Dec 2021,09/06/2021 00:00,252196,91.17,PE0015,PHS GROUP PLC,30/8/2021 00:00:00,26/9/2021 00:00:00,P06-2022
,LV HOCKEY AND TENNIS CENTRE,PREMISES RELATED EXPENDITURE,CLEANING & DOMESTIC SUPPLIES,2666,P113781-SERVICE-Hygiene prducts August - Dec 2021,09/06/2021 00:00,252345,364.82,PE0015,PHS GROUP PLC,30/8/2021 00:00:00,26/9/2021 00:00:00,P06-2022
,LEE VALLEY VELOPARK CATERING,PREMISES RELATED EXPENDITURE,CLEANING & DOMESTIC SUPPLIES,2666,P113875-SERVICE-Cleaning Products and Apron,09/06/2021 00:00,251853,63.5,360001,BIDFOOD,30/8/2021 00:00:00,26/9/2021 00:00:00,P06-2022
,LEE VALLEY VELOPARK CATERING,PREMISES RELATED EXPENDITURE,CLEANING & DOMESTIC SUPPLIES,2666,P113920-SERVICE-Cleaning Products,09/06/2021 00:00,252390,98.92,360001,BIDFOOD,30/8/2021 00:00:00,26/9/2021 00:00:00,P06-2022
,LV LEISURE CENTRE CAMPSITE,PREMISES RELATED EXPENDITURE,CLEANING & DOMESTIC SUPPLIES,2666,P113797-SERVICE-Cleaning supplies,09/06/2021 00:00,252454,447,HY0043,HYGIENE SYSTEMS LTD,30/8/2021 00:00:00,26/9/2021 00:00:00,P06-2022
,LEE VALLEY ATHLETICS CENTRE,PREMISES RELATED EXPENDITURE,CLEANING & DOMESTIC SUPPLIES,2666,P113531-SERVICE-LVAC CLEANING SUPPLIES EMAILED 12.8.21 AB,09/06/2021 00:00,251820,184,HY0043,HYGIENE SYSTEMS LTD,30/8/2021 00:00:00,26/9/2021 00:00:00,P06-2022
,LEE VALLEY ATHLETICS CENTRE,PREMISES RELATED EXPENDITURE,CLEANING & DOMESTIC SUPPLIES,2666,P114010-SERVICE-LVAC CLEANING SUPPLIES EMAIL A BEACKON 7.9.21,24/9/2021 00:00:00,253133,90.33,HY0043,HYGIENE SYSTEMS LTD,30/8/2021 00:00:00,26/9/2021 00:00:00,P06-2022
,LEE VALLEY ATHLETICS CENTRE,PREMISES RELATED EXPENDITURE,CLEANING & DOMESTIC SUPPLIES,2666,P113531-SERVICE-LVAC CLEANING SUPPLIES EMAILED 12.8.21 AB,26/9/2021 00:00:00,253534,44.7,HY0043,HYGIENE SYSTEMS LTD,30/8/2021 00:00:00,26/9/2021 00:00:00,P06-2022
,LEE VALLEY ATHLETICS CENTRE,PREMISES RELATED EXPENDITURE,CLEANING & DOMESTIC SUPPLIES,2666,P114010-SERVICE-LVAC CLEANING SUPPLIES EMAIL A BEACKON 7.9.21,26/9/2021 00:00:00,253535,85.45,HY0043,HYGIENE SYSTEMS LTD,30/8/2021 00:00:00,26/9/2021 00:00:00,P06-2022
,LEE VALLEY WHITE WATER CENTRE,PREMISES RELATED EXPENDITURE,CLEANING & DOMESTIC SUPPLIES,2666,P113614-SERVICE-Cleaning supplies,09/07/2021 00:00,251975,239.07,SU0595,SUMMIT HYGIENE LTD,30/8/2021 00:00:00,26/9/2021 00:00:00,P06-2022
,LEE VALLEY WHITE WATER CENTRE,PREMISES RELATED EXPENDITURE,CLEANING & DOMESTIC SUPPLIES,2666,P113614-SERVICE-Cleaning supplies,09/07/2021 00:00,252163,57.12,SU0595,SUMMIT HYGIENE LTD,30/8/2021 00:00:00,26/9/2021 00:00:00,P06-2022
,LEE VALLEY WHITE WATER CENTRE,PREMISES RELATED EXPENDITURE,CLEANING & DOMESTIC SUPPLIES,2666,P113697-SERVICE-Cleaning supplies,09/06/2021 00:00,252330,82.35,SU0595,SUMMIT HYGIENE LTD,30/8/2021 00:00:00,26/9/2021 00:00:00,P06-2022
,LEE VALLEY WHITE WATER CENTRE,PREMISES RELATED EXPENDITURE,CLEANING & DOMESTIC SUPPLIES,2666,P113614-SERVICE-Cleaning supplies,09/07/2021 00:00,252367,223.5,SU0595,SUMMIT HYGIENE LTD,30/8/2021 00:00:00,26/9/2021 00:00:00,P06-2022
,LEE VALLEY WHITE WATER CENTRE,PREMISES RELATED EXPENDITURE,CLEANING & DOMESTIC SUPPLIES,2666,P113807-SERVICE-Cleaning supplies,13/9/2021 00:00:00,252550,342.39,SU0595,SUMMIT HYGIENE LTD,30/8/2021 00:00:00,26/9/2021 00:00:00,P06-2022
,LEE VALLEY WHITE WATER CENTRE,PREMISES RELATED EXPENDITURE,CLEANING & DOMESTIC SUPPLIES,2666,P113554-SERVICE-fresh wild lemon,13/9/2021 00:00:00,252889,126.82,SU0595,SUMMIT HYGIENE LTD,30/8/2021 00:00:00,26/9/2021 00:00:00,P06-2022
P&V,LEE VALLEY FARM HOLYFIELDHALL,TRANSPORT RELATED EXPENDITURE,TRANSPORT RUNNING EXPENSES,3333,P113805-SERVICE-Diesel,09/07/2021 00:00,251968,2811,TE0052,TEAM FLITWICK,30/8/2021 00:00:00,26/9/2021 00:00:00,P06-2022
P&V,LEE VALLEY FARM HOLYFIELDHALL,TRANSPORT RELATED EXPENDITURE,TRANSPORT RUNNING EXPENSES,3333,P113804-SERVICE-BSP Male/BSP Female/Ferrule,13/9/2021 00:00:00,252123,60.25,HY0447,J W HYDRAULICS LTD,30/8/2021 00:00:00,26/9/2021 00:00:00,P06-2022
P&V,LEE VALLEY FARM HOLYFIELDHALL,TRANSPORT RELATED EXPENDITURE,TRANSPORT RUNNING EXPENSES,3333,P111469-SERVICE-Tractor Spares,09/07/2021 00:00,252326,144.02,RW0257,R. W. CRAWFORD AGRICULTURAL MACHINERY LTD,30/8/2021 00:00:00,26/9/2021 00:00:00,P06-2022
P&V,LEE VALLEY FARM HOLYFIELDHALL,TRANSPORT RELATED EXPENDITURE,TRANSPORT RUNNING EXPENSES,3333,P111469-SERVICE-Tractor Spares,09/07/2021 00:00,252327,147.05,RW0257,R. W. CRAWFORD AGRICULTURAL MACHINERY LTD,30/8/2021 00:00:00,26/9/2021 00:00:00,P06-2022
P&V,LEE VALLEY FARM HOLYFIELDHALL,TRANSPORT RELATED EXPENDITURE,TRANSPORT RUNNING EXPENSES,3333,P113979-SERVICE-Pentax P45,13/9/2021 00:00:00,252352,133.7,BE0066,BEARINGS AND DRIVES,30/8/2021 00:00:00,26/9/2021 00:00:00,P06-2022
P&V,LEE VALLEY FARM HOLYFIELDHALL,TRANSPORT RELATED EXPENDITURE,TRANSPORT RUNNING EXPENSES,3333,P113981-SERVICE-Parts,13/9/2021 00:00:00,252447,268.96,GR0022,GROUP COMPONENTS LIMITED,30/8/2021 00:00:00,26/9/2021 00:00:00,P06-2022
P&V,LEE VALLEY FARM HOLYFIELDHALL,TRANSPORT RELATED EXPENDITURE,TRANSPORT RUNNING EXPENSES,3333,P111468-SERVICE-Hose Repair/Sundries,09/08/2021 00:00,252461,74.11,HU0003,ALLIANCE AUTOMOTIVE UK CV LIMITED T/A,30/8/2021 00:00:00,26/9/2021 00:00:00,P06-2022
P&V,LEE VALLEY FARM HOLYFIELDHALL,TRANSPORT RELATED EXPENDITURE,TRANSPORT RUNNING EXPENSES,3333,P111461-SERVICE-Machinery Spares,09/08/2021 00:00,252474,372,SP0034,SPALDINGS (UK) LIMITED,30/8/2021 00:00:00,26/9/2021 00:00:00,P06-2022
P&V,LEE VALLEY FARM HOLYFIELDHALL,TRANSPORT RELATED EXPENDITURE,TRANSPORT RUNNING EXPENSES,3333,P113982-SERVICE-Airspear/Grain Fan,13/9/2021 00:00:00,252475,855,SP0034,SPALDINGS (UK) LIMITED,30/8/2021 00:00:00,26/9/2021 00:00:00,P06-2022
P&V,LEE VALLEY FARM HOLYFIELDHALL,TRANSPORT RELATED EXPENDITURE,TRANSPORT RUNNING EXPENSES,3333,P113006-SERVICE-Tyres,13/9/2021 00:00:00,252515,70,KB0006,KB TYRES LTD,30/8/2021 00:00:00,26/9/2021 00:00:00,P06-2022
P&V,LEE VALLEY FARM HOLYFIELDHALL,TRANSPORT RELATED EXPENDITURE,TRANSPORT RUNNING EXPENSES,3333,P114205-SERVICE-Parts,20/9/2021 00:00:00,252949,345.77,RW0257,R. W. CRAWFORD AGRICULTURAL MACHINERY LTD,30/8/2021 00:00:00,26/9/2021 00:00:00,P06-2022
P&V,LEE VALLEY FARM HOLYFIELDHALL,TRANSPORT RELATED EXPENDITURE,TRANSPORT RUNNING EXPENSES,3333,P111474-SERVICE-Tractor Spares,24/9/2021 00:00:00,252954,52.23,OL0059,OLIVER LANDPOWER LIMITED,30/8/2021 00:00:00,26/9/2021 00:00:00,P06-2022
P&V,LEE VALLEY FARM HOLYFIELDHALL,TRANSPORT RELATED EXPENDITURE,TRANSPORT RUNNING EXPENSES,3333,P114237-SERVICE-Parts,26/9/2021 00:00:00,253291,391,SP0034,SPALDINGS (UK) LIMITED,30/8/2021 00:00:00,26/9/2021 00:00:00,P06-2022
P&V,LEE VALLEY FARM HOLYFIELDHALL,TRANSPORT RELATED EXPENDITURE,TRANSPORT RUNNING EXPENSES,3333,P111474-SERVICE-Tractor Spares,24/9/2021 00:00:00,253343,-35.18,OL0059,OLIVER LANDPOWER LIMITED,30/8/2021 00:00:00,26/9/2021 00:00:00,P06-2022
,LEE VALLEY CAMPSITE,TRANSPORT RELATED EXPENDITURE,TRANSPORT RUNNING EXPENSES,3333,P113571-SERVICE-TRANSPORTATION,09/08/2021 00:00,252216,1700,LO0459,LONDON LODGES UK,30/8/2021 00:00:00,26/9/2021 00:00:00,P06-2022
,LEE VALLEY MARINA STANSTEAD,TRANSPORT RELATED EXPENDITURE,VEHICLE FUEL,3335,ALLSTAR BUSINESS SOLUTIONS LTD,09/08/2021 00:00,252303,155.66,AR0035,ALLSTAR BUSINESS SOLUTIONS LTD,30/8/2021 00:00:00,26/9/2021 00:00:00,P06-2022
P&V,LEE VALLEY FARM HOLYFIELDHALL,TRANSPORT RELATED EXPENDITURE,VEHICLE FUEL,3335,ALLSTAR BUSINESS SOLUTIONS LTD,09/08/2021 00:00,252303,223.69,AR0035,ALLSTAR BUSINESS SOLUTIONS LTD,30/8/2021 00:00:00,26/9/2021 00:00:00,P06-2022
,LEE VALLEY CAMPSITE,TRANSPORT RELATED EXPENDITURE,VEHICLE FUEL,3335,ALLSTAR BUSINESS SOLUTIONS LTD,09/08/2021 00:00,252303,112.59,AR0035,ALLSTAR BUSINESS SOLUTIONS LTD,30/8/2021 00:00:00,26/9/2021 00:00:00,P06-2022
,LEE VALLEY CARAVAN PARK,TRANSPORT RELATED EXPENDITURE,VEHICLE FUEL,3335,ALLSTAR BUSINESS SOLUTIONS LTD,09/08/2021 00:00,252303,174.52,AR0035,ALLSTAR BUSINESS SOLUTIONS LTD,30/8/2021 00:00:00,26/9/2021 00:00:00,P06-2022
P&V,NORTH AREA RANGERS,TRANSPORT RELATED EXPENDITURE,VEHICLE FUEL,3335,ALLSTAR BUSINESS SOLUTIONS LTD,09/08/2021 00:00,252303,102.81,AR0035,ALLSTAR BUSINESS SOLUTIONS LTD,30/8/2021 00:00:00,26/9/2021 00:00:00,P06-2022
P&V,SOUTH AREA RANGERS,TRANSPORT RELATED EXPENDITURE,VEHICLE FUEL,3335,ALLSTAR BUSINESS SOLUTIONS LTD,09/08/2021 00:00,252303,250.12,AR0035,ALLSTAR BUSINESS SOLUTIONS LTD,30/8/2021 00:00:00,26/9/2021 00:00:00,P06-2022
P&V,GUNPOWDER PARK,TRANSPORT RELATED EXPENDITURE,VEHICLE FUEL,3335,ALLSTAR BUSINESS SOLUTIONS LTD,09/08/2021 00:00,252303,85.7,AR0035,ALLSTAR BUSINESS SOLUTIONS LTD,30/8/2021 00:00:00,26/9/2021 00:00:00,P06-2022
P&V,RIVER LEE COUNTRY PARK,TRANSPORT RELATED EXPENDITURE,VEHICLE FUEL,3335,ALLSTAR BUSINESS SOLUTIONS LTD,09/08/2021 00:00,252303,482.8,AR0035,ALLSTAR BUSINESS SOLUTIONS LTD,30/8/2021 00:00:00,26/9/2021 00:00:00,P06-2022
P&V,RIVER LEE COUNTRY PARK,TRANSPORT RELATED EXPENDITURE,VEHICLE FUEL,3335,ALLSTAR BUSINESS SOLUTIONS LTD,09/08/2021 00:00,252303,79.42,AR0035,ALLSTAR BUSINESS SOLUTIONS LTD,30/8/2021 00:00:00,26/9/2021 00:00:00,P06-2022
,LEE VALLEY RIDING CENTRE,TRANSPORT RELATED EXPENDITURE,VEHICLE FUEL,3335,ALLSTAR BUSINESS SOLUTIONS LTD,09/08/2021 00:00,252304,121.7,AR0035,ALLSTAR BUSINESS SOLUTIONS LTD,30/8/2021 00:00:00,26/9/2021 00:00:00,P06-2022
P&V,MYDDELTON HOUSE,SUPPLIES AND SERVICES,EQUIPMENT & MATERIALS,4111,P113855-SERVICE-First Aid Pouch/Torch/Paddlock,09/06/2021 00:00,251965,44.13,SC0057,SCREWFIX DIRECT LTD,30/8/2021 00:00:00,26/9/2021 00:00:00,P06-2022
P&V,MYDDELTON HOUSE,SUPPLIES AND SERVICES,EQUIPMENT & MATERIALS,4111,P113855-SERVICE-First Aid Pouch/Torch/Paddlock,14/9/2021 00:00:00,252510,-21.65,SC0057,SCREWFIX DIRECT LTD,30/8/2021 00:00:00,26/9/2021 00:00:00,P06-2022
P&V,MYDDELTON HOUSE,SUPPLIES AND SERVICES,EQUIPMENT & MATERIALS,4111,P114091-SERVICE-Padlock,13/9/2021 00:00:00,252511,38.32,SC0057,SCREWFIX DIRECT LTD,30/8/2021 00:00:00,26/9/2021 00:00:00,P06-2022
P&V,MYDDELTON HOUSE,SUPPLIES AND SERVICES,EQUIPMENT & MATERIALS,4111,P114151-SERVICE-Q-Connect Compatible Solution HP 55A,26/9/2021 00:00:00,253529,118.05,TH0008,JKL SOLUTIONS LTD,30/8/2021 00:00:00,26/9/2021 00:00:00,P06-2022
,LEE VALLEY MARINA SPRINGFIELD,SUPPLIES AND SERVICES,EQUIPMENT & MATERIALS,4111,P113970-SERVICE-To supply items as requested,09/07/2021 00:00,252397,55.5,RE0191,RECA - UK LTD,30/8/2021 00:00:00,26/9/2021 00:00:00,P06-2022
,LEE VALLEY MARINA SPRINGFIELD,SUPPLIES AND SERVICES,EQUIPMENT & MATERIALS,4111,P113970-SERVICE-To supply items as requested,09/07/2021 00:00,252398,247.47,RE0191,RECA - UK LTD,30/8/2021 00:00:00,26/9/2021 00:00:00,P06-2022
,LEE VALLEY MARINA SPRINGFIELD,SUPPLIES AND SERVICES,EQUIPMENT & MATERIALS,4111,P113970-SERVICE-To supply items as requested,09/07/2021 00:00,252399,67.56,RE0191,RECA - UK LTD,30/8/2021 00:00:00,26/9/2021 00:00:00,P06-2022
,LEE VALLEY MARINA SPRINGFIELD,SUPPLIES AND SERVICES,EQUIPMENT & MATERIALS,4111,P113970-SERVICE-To supply items as requested,20/9/2021 00:00:00,253235,30.08,RE0191,RECA - UK LTD,30/8/2021 00:00:00,26/9/2021 00:00:00,P06-2022
,STANSTEAD RECHARGEABLE WORKS,SUPPLIES AND SERVICES,EQUIPMENT & MATERIALS,4111,P113208-SERVICE-tap for staff room,21/9/2021 00:00:00,252634,41.73,HO0349,HOMETREND SUPPLIES LTD,30/8/2021 00:00:00,26/9/2021 00:00:00,P06-2022
,STANSTEAD RECHARGEABLE WORKS,SUPPLIES AND SERVICES,EQUIPMENT & MATERIALS,4111,P113705-SERVICE-chandlery stock blacking,24/9/2021 00:00:00,253152,1056,SM0658,SML PAINTS AND COATINGS,30/8/2021 00:00:00,26/9/2021 00:00:00,P06-2022
,STANSTEAD RECHARGEABLE WORKS,SUPPLIES AND SERVICES,EQUIPMENT & MATERIALS,4111,P114123-SERVICE-anodes,24/9/2021 00:00:00,253200,979,MI0200,MIDLAND CHANDLERS LIMITED,30/8/2021 00:00:00,26/9/2021 00:00:00,P06-2022
,STANSTEAD RECHARGEABLE WORKS,SUPPLIES AND SERVICES,EQUIPMENT & MATERIALS,4111,P114107-SERVICE-blacking,24/9/2021 00:00:00,253283,655,SM0658,SML PAINTS AND COATINGS,30/8/2021 00:00:00,26/9/2021 00:00:00,P06-2022
,STANSTEAD RECHARGEABLE WORKS,SUPPLIES AND SERVICES,EQUIPMENT & MATERIALS,4111,P114107-SERVICE-blacking,26/9/2021 00:00:00,253490,628.8,SM0658,SML PAINTS AND COATINGS,30/8/2021 00:00:00,26/9/2021 00:00:00,P06-2022
,LEE VALLEY WATERWORKS CENTRE,SUPPLIES AND SERVICES,EQUIPMENT & MATERIALS,4111,P114018-SERVICE-1x Blackboard Paint 1 Litre,24/9/2021 00:00:00,252862,8.1,NE0223,NEW VENTURE PRODUCTS LTD,30/8/2021 00:00:00,26/9/2021 00:00:00,P06-2022
,LEE VALLEY WATERWORKS CENTRE,SUPPLIES AND SERVICES,EQUIPMENT & MATERIALS,4111,P114018-SERVICE-2x 2.5L Anti-Climb Paint Black,24/9/2021 00:00:00,252862,39.92,NE0223,NEW VENTURE PRODUCTS LTD,30/8/2021 00:00:00,26/9/2021 00:00:00,P06-2022
,LEE VALLEY WATERWORKS CENTRE,SUPPLIES AND SERVICES,EQUIPMENT & MATERIALS,4111,P114018-SERVICE-10x Anti Climb Paint Worning Signs,24/9/2021 00:00:00,252862,12.5,NE0223,NEW VENTURE PRODUCTS LTD,30/8/2021 00:00:00,26/9/2021 00:00:00,P06-2022
,LEE VALLEY WATERWORKS CENTRE,SUPPLIES AND SERVICES,EQUIPMENT & MATERIALS,4111,P114018-SERVICE-2x Osmo Woodstain Ebony 750ml,24/9/2021 00:00:00,252862,41.3,NE0223,NEW VENTURE PRODUCTS LTD,30/8/2021 00:00:00,26/9/2021 00:00:00,P06-2022
,LEE VALLEY CAMPSITE,SUPPLIES AND SERVICES,EQUIPMENT & MATERIALS,4111,P113711-SERVICE-Sanitised Door stickers all 3 campsites,13/9/2021 00:00:00,252313,375,SL0528,SLAM SIGNS LTD,30/8/2021 00:00:00,26/9/2021 00:00:00,P06-2022
,LEE VALLEY CAMPSITE,SUPPLIES AND SERVICES,EQUIPMENT & MATERIALS,4111,P113834-SERVICE-Glasses for sewardstone cabins,09/08/2021 00:00,252429,62.9,AM0406,AMAZON PAYMENTS UK LIMITED,30/8/2021 00:00:00,26/9/2021 00:00:00,P06-2022
,LEE VALLEY CAMPSITE,SUPPLIES AND SERVICES,EQUIPMENT & MATERIALS,4111,P114121-SERVICE-Repairs to Kubota,20/9/2021 00:00:00,253236,276,GE0440,GTEC'S,30/8/2021 00:00:00,26/9/2021 00:00:00,P06-2022
,LEE VALLEY CARAVAN PARK,SUPPLIES AND SERVICES,EQUIPMENT & MATERIALS,4111,P113932-SERVICE-Maintenance materials,09/06/2021 00:00,252317,42.2,BQ0164,TRADE UK ACCOUNT,30/8/2021 00:00:00,26/9/2021 00:00:00,P06-2022
,LEE VALLEY CARAVAN PARK,SUPPLIES AND SERVICES,EQUIPMENT & MATERIALS,4111,P113933-SERVICE-3 galvanised dustbins,09/06/2021 00:00,252318,67.5,BQ0164,TRADE UK ACCOUNT,30/8/2021 00:00:00,26/9/2021 00:00:00,P06-2022
,LEE VALLEY CARAVAN PARK,SUPPLIES AND SERVICES,EQUIPMENT & MATERIALS,4111,P113942-SERVICE-Cleaning materials,15/9/2021 00:00:00,252873,397.75,HY0043,HYGIENE SYSTEMS LTD,30/8/2021 00:00:00,26/9/2021 00:00:00,P06-2022
,LEE VALLEY CARAVAN PARK,SUPPLIES AND SERVICES,EQUIPMENT & MATERIALS,4111,P114291-SERVICE-repair lamp post,26/9/2021 00:00:00,253504,195,BR0018,BRADSHAW ELECTRICAL LIMITED,30/8/2021 00:00:00,26/9/2021 00:00:00,P06-2022
P&V,MYDDLETON HSE HERITAGE CENTRE,SUPPLIES AND SERVICES,EQUIPMENT & MATERIALS,4111,P113643-SERVICE-Till rolls - Prestige thermal roll 80x80mm,09/06/2021 00:00,251980,75.72,TH0008,JKL SOLUTIONS LTD,30/8/2021 00:00:00,26/9/2021 00:00:00,P06-2022
P&V,MYDDLETON HSE HERITAGE CENTRE,SUPPLIES AND SERVICES,EQUIPMENT & MATERIALS,4111,"P113648-SERVICE-Economy Business cards, Uncoated stock",09/06/2021 00:00,252171,27.09,SO0582,SOLOPRESS,30/8/2021 00:00:00,26/9/2021 00:00:00,P06-2022
P&V,MYDDLETON HSE HERITAGE CENTRE,SUPPLIES AND SERVICES,EQUIPMENT & MATERIALS,4111,P114064-SERVICE-Tea room utensils order,15/9/2021 00:00:00,252944,175.26,NI0014,NISBETS,30/8/2021 00:00:00,26/9/2021 00:00:00,P06-2022
P&V,MYDDLETON HSE HERITAGE CENTRE,SUPPLIES AND SERVICES,EQUIPMENT & MATERIALS,4111,P114064-SERVICE-Tea room utensils order,20/9/2021 00:00:00,253259,35.05,NI0014,NISBETS,30/8/2021 00:00:00,26/9/2021 00:00:00,P06-2022
P&V,MYDDLETON HSE HERITAGE CENTRE,SUPPLIES AND SERVICES,EQUIPMENT & MATERIALS,4111,P114178-SERVICE-Cup's order Sept 2021,22/9/2021 00:00:00,253260,45.92,NI0014,NISBETS,30/8/2021 00:00:00,26/9/2021 00:00:00,P06-2022
P&V,EAST INDIA DOCK AND BOW CREEK,SUPPLIES AND SERVICES,EQUIPMENT & MATERIALS,4111,P114186-SERVICE-2x hippo bags - 1 tonne sacks,20/9/2021 00:00:00,253140,15,BQ0164,TRADE UK ACCOUNT,30/8/2021 00:00:00,26/9/2021 00:00:00,P06-2022
P&V,NORTH AREA RANGERS,SUPPLIES AND SERVICES,EQUIPMENT & MATERIALS,4111,P113480-SERVICE-Delivery to address below,09/06/2021 00:00,252449,4.95,ST0038,ST JOHN AMBULANCE,30/8/2021 00:00:00,26/9/2021 00:00:00,P06-2022
P&V,NORTH AREA RANGERS,SUPPLIES AND SERVICES,EQUIPMENT & MATERIALS,4111,P113480-SERVICE-2x Box of 100 Vinyl Powder-Free Gloves - F126,09/06/2021 00:00,252449,11.5,ST0038,ST JOHN AMBULANCE,30/8/2021 00:00:00,26/9/2021 00:00:00,P06-2022
P&V,NORTH AREA RANGERS,SUPPLIES AND SERVICES,EQUIPMENT & MATERIALS,4111,P113480-SERVICE-2x Box of 100 Vinyl Powder-Free Gloves - F126,09/06/2021 00:00,252449,11.5,ST0038,ST JOHN AMBULANCE,30/8/2021 00:00:00,26/9/2021 00:00:00,P06-2022
P&V,NORTH AREA RANGERS,SUPPLIES AND SERVICES,EQUIPMENT & MATERIALS,4111,P113480-SERVICE-10x Pk10 Assorted Sizes Washproof Plasters -,09/06/2021 00:00,252449,5.21,ST0038,ST JOHN AMBULANCE,30/8/2021 00:00:00,26/9/2021 00:00:00,P06-2022
P&V,NORTH AREA RANGERS,SUPPLIES AND SERVICES,EQUIPMENT & MATERIALS,4111,P113480-SERVICE-1x Pack of 50 Washproof Plasters - F94020,09/06/2021 00:00,252449,3.5,ST0038,ST JOHN AMBULANCE,30/8/2021 00:00:00,26/9/2021 00:00:00,P06-2022
P&V,NORTH AREA RANGERS,SUPPLIES AND SERVICES,EQUIPMENT & MATERIALS,4111,P113480-SERVICE-5x Eye wash bottle - 250ml - F17880,26/9/2021 00:00:00,252825,15.5,ST0038,ST JOHN AMBULANCE,30/8/2021 00:00:00,26/9/2021 00:00:00,P06-2022
,LEE VALLEY VELOPARK,SUPPLIES AND SERVICES,EQUIPMENT & MATERIALS,4111,P113896-SERVICE-Suremix 60 Size V,09/08/2021 00:00,251045,51.3,BO0015,BOC LTD,30/8/2021 00:00:00,26/9/2021 00:00:00,P06-2022
,LEE VALLEY VELOPARK,SUPPLIES AND SERVICES,EQUIPMENT & MATERIALS,4111,P113917-SERVICE-Suremix 60 Size V,13/9/2021 00:00:00,252370,51.3,BO0015,BOC LTD,30/8/2021 00:00:00,26/9/2021 00:00:00,P06-2022
,LEE VALLEY VELOPARK,SUPPLIES AND SERVICES,EQUIPMENT & MATERIALS,4111,P113714-SERVICE-Bike Tyres,24/9/2021 00:00:00,253217,3260,CA0734,CAMBRIAN TYRES LTD T/A CONTI TYRES,30/8/2021 00:00:00,26/9/2021 00:00:00,P06-2022
,LV HOCKEY AND TENNIS CENTRE,SUPPLIES AND SERVICES,EQUIPMENT & MATERIALS,4111,P114023-SERVICE-Chlorine Dioxide Unit Repairs,20/9/2021 00:00:00,250596,675,GO0211,GOODWATER LTD,30/8/2021 00:00:00,26/9/2021 00:00:00,P06-2022
,LV HOCKEY AND TENNIS CENTRE,SUPPLIES AND SERVICES,EQUIPMENT & MATERIALS,4111,P113852-SERVICE-trophies for comps,09/06/2021 00:00,250808,32.08,BW0107,B & W DARTS AND TROPHIES LTD,30/8/2021 00:00:00,26/9/2021 00:00:00,P06-2022
,LV HOCKEY AND TENNIS CENTRE,SUPPLIES AND SERVICES,EQUIPMENT & MATERIALS,4111,P113852-SERVICE-trophies for comps,09/06/2021 00:00,251126,43.33,BW0107,B & W DARTS AND TROPHIES LTD,30/8/2021 00:00:00,26/9/2021 00:00:00,P06-2022
,LV HOCKEY AND TENNIS CENTRE,SUPPLIES AND SERVICES,EQUIPMENT & MATERIALS,4111,P114147-SERVICE-suremix,20/9/2021 00:00:00,252369,16.8,BO0015,BOC LTD,30/8/2021 00:00:00,26/9/2021 00:00:00,P06-2022
,LV HOCKEY AND TENNIS CENTRE,SUPPLIES AND SERVICES,EQUIPMENT & MATERIALS,4111,P112614-SERVICE-remote,09/06/2021 00:00,252375,65,BO0459,BODET UNITED KINGDOM,30/8/2021 00:00:00,26/9/2021 00:00:00,P06-2022
,LV HOCKEY AND TENNIS CENTRE,SUPPLIES AND SERVICES,EQUIPMENT & MATERIALS,4111,P113868-SERVICE-algoclear pro litre x10,09/06/2021 00:00,252415,1118,TH0296,THAMES VALLEY SPECIALIST PRODUCTS LTD,30/8/2021 00:00:00,26/9/2021 00:00:00,P06-2022
,LV HOCKEY AND TENNIS CENTRE,SUPPLIES AND SERVICES,EQUIPMENT & MATERIALS,4111,P114148-SERVICE-carbon stick maroon,20/9/2021 00:00:00,252455,50,RO0314,ROOS SPORTS LTD,30/8/2021 00:00:00,26/9/2021 00:00:00,P06-2022
,LV HOCKEY AND TENNIS CENTRE,SUPPLIES AND SERVICES,EQUIPMENT & MATERIALS,4111,P114148-SERVICE-hockey balls x 24,20/9/2021 00:00:00,252455,78,RO0314,ROOS SPORTS LTD,30/8/2021 00:00:00,26/9/2021 00:00:00,P06-2022
,LV HOCKEY AND TENNIS CENTRE,SUPPLIES AND SERVICES,EQUIPMENT & MATERIALS,4111,P113859-SERVICE-fairy non bio washing powder,13/9/2021 00:00:00,252521,22.34,TH0008,JKL SOLUTIONS LTD,30/8/2021 00:00:00,26/9/2021 00:00:00,P06-2022
,LEE VALLEY RIDING CENTRE,SUPPLIES AND SERVICES,EQUIPMENT & MATERIALS,4111,P113473-SERVICE-electric fencing cable repair,13/9/2021 00:00:00,252535,490,RE0094,REACT 2 IT (BUILDING & REFURBISHMENT) LTD,30/8/2021 00:00:00,26/9/2021 00:00:00,P06-2022
,LEE VALLEY RIDING CENTRE,SUPPLIES AND SERVICES,EQUIPMENT & MATERIALS,4111,P113684-SERVICE-hay st eamers x 4 plus discount,09/06/2021 00:00,252544,7167.5,HA0446,HAYGAIN LTD,30/8/2021 00:00:00,26/9/2021 00:00:00,P06-2022
,LV LEISURE CENTRE CAMPSITE,SUPPLIES AND SERVICES,EQUIPMENT & MATERIALS,4111,P114042-SERVICE-Maintenance equipment,20/9/2021 00:00:00,252509,61.52,SC0057,SCREWFIX DIRECT LTD,30/8/2021 00:00:00,26/9/2021 00:00:00,P06-2022
,LV LEISURE CENTRE CAMPSITE,SUPPLIES AND SERVICES,EQUIPMENT & MATERIALS,4111,P114194-SERVICE-Equipment and materials,26/9/2021 00:00:00,252890,18.72,SC0057,SCREWFIX DIRECT LTD,30/8/2021 00:00:00,26/9/2021 00:00:00,P06-2022
,LV LEISURE CENTRE CAMPSITE,SUPPLIES AND SERVICES,EQUIPMENT & MATERIALS,4111,P114196-SERVICE-Equipment and materials,26/9/2021 00:00:00,252916,60.49,BQ0164,TRADE UK ACCOUNT,30/8/2021 00:00:00,26/9/2021 00:00:00,P06-2022
,LV LEISURE CENTRE CAMPSITE,SUPPLIES AND SERVICES,EQUIPMENT & MATERIALS,4111,P114197-SERVICE-maintenance supplies,26/9/2021 00:00:00,253223,44.58,BQ0164,TRADE UK ACCOUNT,30/8/2021 00:00:00,26/9/2021 00:00:00,P06-2022
,LV LEISURE CENTRE GOLF COURSE,SUPPLIES AND SERVICES,EQUIPMENT & MATERIALS,4111,P113722-SERVICE-door stoppers,09/06/2021 00:00,252153,17.48,AM0406,AMAZON PAYMENTS UK LIMITED,30/8/2021 00:00:00,26/9/2021 00:00:00,P06-2022
,LV LEISURE CENTRE GOLF COURSE,SUPPLIES AND SERVICES,EQUIPMENT & MATERIALS,4111,P113819-SERVICE-Brake pads,15/9/2021 00:00:00,252430,49.9,AM0406,AMAZON PAYMENTS UK LIMITED,30/8/2021 00:00:00,26/9/2021 00:00:00,P06-2022
,LV LEISURE CENTRE GOLF COURSE,SUPPLIES AND SERVICES,EQUIPMENT & MATERIALS,4111,P114228-SERVICE-x2 motor cutters,26/9/2021 00:00:00,253549,175.28,LE0279,REESINK TURFCARE UK LIMITED,30/8/2021 00:00:00,26/9/2021 00:00:00,P06-2022
,LEE VALLEY ATHLETICS CENTRE,SUPPLIES AND SERVICES,EQUIPMENT & MATERIALS,4111,P113200-SERVICE-LVAC - 2 X MOIST 60 BULK BAGS TO N9 OAR,09/06/2021 00:00,252022,308.5,BA0196,BATHGATE SILICA SANDS LTD,30/8/2021 00:00:00,26/9/2021 00:00:00,P06-2022
,LEE VALLEY ATHLETICS CENTRE,SUPPLIES AND SERVICES,EQUIPMENT & MATERIALS,4111,P114269-SERVICE-10 X BOXES OF 12 CHALK BLOCKS @ 12.00,26/9/2021 00:00:00,253526,120,PR0133,PROATHLETICS,30/8/2021 00:00:00,26/9/2021 00:00:00,P06-2022
,LEE VALLEY ATHLETICS CENTRE,SUPPLIES AND SERVICES,EQUIPMENT & MATERIALS,4111,P114269-SERVICE-CARRAIGE,26/9/2021 00:00:00,253526,10.95,PR0133,PROATHLETICS,30/8/2021 00:00:00,26/9/2021 00:00:00,P06-2022
,LEE VALLEY WHITE WATER CENTRE,SUPPLIES AND SERVICES,EQUIPMENT & MATERIALS,4111,P111825-SERVICE-Mats and Equipment blanket order for MR and J,09/06/2021 00:00,251949,44.99,AM0406,AMAZON PAYMENTS UK LIMITED,30/8/2021 00:00:00,26/9/2021 00:00:00,P06-2022
,LEE VALLEY WHITE WATER CENTRE,SUPPLIES AND SERVICES,EQUIPMENT & MATERIALS,4111,P111825-SERVICE-Mats and Equipment blanket order for MR and J,09/06/2021 00:00,251950,5,AM0406,AMAZON PAYMENTS UK LIMITED,30/8/2021 00:00:00,26/9/2021 00:00:00,P06-2022
,LEE VALLEY WHITE WATER CENTRE,SUPPLIES AND SERVICES,EQUIPMENT & MATERIALS,4111,P111825-SERVICE-Mats and Equipment blanket order for MR and J,09/06/2021 00:00,251951,2.49,AM0406,AMAZON PAYMENTS UK LIMITED,30/8/2021 00:00:00,26/9/2021 00:00:00,P06-2022
,LEE VALLEY WHITE WATER CENTRE,SUPPLIES AND SERVICES,EQUIPMENT & MATERIALS,4111,P111825-SERVICE-Mats and Equipment blanket order for MR and J,13/9/2021 00:00:00,251952,9.99,AM0406,AMAZON PAYMENTS UK LIMITED,30/8/2021 00:00:00,26/9/2021 00:00:00,P06-2022
,LEE VALLEY WHITE WATER CENTRE,SUPPLIES AND SERVICES,EQUIPMENT & MATERIALS,4111,P111825-SERVICE-Mats and Equipment blanket order for MR and J,09/06/2021 00:00,252027,13.12,AM0406,AMAZON PAYMENTS UK LIMITED,30/8/2021 00:00:00,26/9/2021 00:00:00,P06-2022
,LEE VALLEY WHITE WATER CENTRE,SUPPLIES AND SERVICES,EQUIPMENT & MATERIALS,4111,P111825-SERVICE-Mats and Equipment blanket order for MR and J,09/06/2021 00:00,252028,11.16,AM0406,AMAZON PAYMENTS UK LIMITED,30/8/2021 00:00:00,26/9/2021 00:00:00,P06-2022
,LEE VALLEY WHITE WATER CENTRE,SUPPLIES AND SERVICES,EQUIPMENT & MATERIALS,4111,P111825-SERVICE-Mats and Equipment blanket order for MR and J,09/06/2021 00:00,252154,9.96,AM0406,AMAZON PAYMENTS UK LIMITED,30/8/2021 00:00:00,26/9/2021 00:00:00,P06-2022
,LEE VALLEY WHITE WATER CENTRE,SUPPLIES AND SERVICES,EQUIPMENT & MATERIALS,4111,P111825-SERVICE-Mats and Equipment blanket order for MR and J,09/06/2021 00:00,252155,9.16,AM0406,AMAZON PAYMENTS UK LIMITED,30/8/2021 00:00:00,26/9/2021 00:00:00,P06-2022
,LEE VALLEY WHITE WATER CENTRE,SUPPLIES AND SERVICES,EQUIPMENT & MATERIALS,4111,P111825-SERVICE-Mats and Equipment blanket order for MR and J,09/06/2021 00:00,252156,12.49,AM0406,AMAZON PAYMENTS UK LIMITED,30/8/2021 00:00:00,26/9/2021 00:00:00,P06-2022
,LEE VALLEY WHITE WATER CENTRE,SUPPLIES AND SERVICES,EQUIPMENT & MATERIALS,4111,P111825-SERVICE-Mats and Equipment blanket order for MR and J,09/06/2021 00:00,252157,6.66,AM0406,AMAZON PAYMENTS UK LIMITED,30/8/2021 00:00:00,26/9/2021 00:00:00,P06-2022
,LEE VALLEY WHITE WATER CENTRE,SUPPLIES AND SERVICES,EQUIPMENT & MATERIALS,4111,P111825-SERVICE-Mats and Equipment blanket order for MR and J,13/9/2021 00:00:00,252671,6.66,AM0406,AMAZON PAYMENTS UK LIMITED,30/8/2021 00:00:00,26/9/2021 00:00:00,P06-2022
,LEE VALLEY WHITE WATER CENTRE,SUPPLIES AND SERVICES,EQUIPMENT & MATERIALS,4111,P111825-SERVICE-Mats and Equipment blanket order for MR and J,20/9/2021 00:00:00,252911,88.32,AM0406,AMAZON PAYMENTS UK LIMITED,30/8/2021 00:00:00,26/9/2021 00:00:00,P06-2022
,LEE VALLEY WHITE WATER CENTRE,SUPPLIES AND SERVICES,EQUIPMENT & MATERIALS,4111,P111825-SERVICE-Mats and Equipment blanket order for MR and J,20/9/2021 00:00:00,253106,2,AM0406,AMAZON PAYMENTS UK LIMITED,30/8/2021 00:00:00,26/9/2021 00:00:00,P06-2022
,LEE VALLEY WHITE WATER CENTRE,SUPPLIES AND SERVICES,EQUIPMENT & MATERIALS,4111,P111825-SERVICE-Mats and Equipment blanket order for MR and J,20/9/2021 00:00:00,253107,5.78,AM0406,AMAZON PAYMENTS UK LIMITED,30/8/2021 00:00:00,26/9/2021 00:00:00,P06-2022
,LEE VALLEY WHITE WATER CENTRE,SUPPLIES AND SERVICES,EQUIPMENT & MATERIALS,4111,P111825-SERVICE-Mats and Equipment blanket order for MR and J,24/9/2021 00:00:00,253108,13.18,AM0406,AMAZON PAYMENTS UK LIMITED,30/8/2021 00:00:00,26/9/2021 00:00:00,P06-2022
,LEE VALLEY WHITE WATER CENTRE,SUPPLIES AND SERVICES,EQUIPMENT & MATERIALS,4111,P111825-SERVICE-Mats and Equipment blanket order for MR and J,24/9/2021 00:00:00,253284,35.99,AM0406,AMAZON PAYMENTS UK LIMITED,30/8/2021 00:00:00,26/9/2021 00:00:00,P06-2022
,LEE VALLEY WHITE WATER CENTRE,SUPPLIES AND SERVICES,EQUIPMENT & MATERIALS,4111,P113428-SERVICE-Litter pickers,26/9/2021 00:00:00,253517,11.12,AM0406,AMAZON PAYMENTS UK LIMITED,30/8/2021 00:00:00,26/9/2021 00:00:00,P06-2022
,LEE VALLEY WHITE WATER CENTRE,SUPPLIES AND SERVICES,EQUIPMENT & MATERIALS,4111,P114189-SERVICE-IPHONE CGARGER LEAD,26/9/2021 00:00:00,253518,3.53,AM0406,AMAZON PAYMENTS UK LIMITED,30/8/2021 00:00:00,26/9/2021 00:00:00,P06-2022
,LEE VALLEY CAMPSITE,SUPPLIES AND SERVICES,EQUIPMENT MAINTENANCE,4112,P114163-SERVICE-Replace Bollard P31,20/9/2021 00:00:00,253123,215,BR0018,BRADSHAW ELECTRICAL LIMITED,30/8/2021 00:00:00,26/9/2021 00:00:00,P06-2022
,LEE VALLEY CAMPSITE,SUPPLIES AND SERVICES,EQUIPMENT MAINTENANCE,4112,P114164-SERVICE-PA TESTING,20/9/2021 00:00:00,253124,429,BR0018,BRADSHAW ELECTRICAL LIMITED,30/8/2021 00:00:00,26/9/2021 00:00:00,P06-2022
,LEE VALLEY CARAVAN PARK,SUPPLIES AND SERVICES,EQUIPMENT MAINTENANCE,4112,P113862-SERVICE-replace bollard light & maintenance,09/06/2021 00:00,252004,80,BR0018,BRADSHAW ELECTRICAL LIMITED,30/8/2021 00:00:00,26/9/2021 00:00:00,P06-2022
,LEE VALLEY CARAVAN PARK,SUPPLIES AND SERVICES,EQUIPMENT MAINTENANCE,4112,P113863-SERVICE-Attend to WiFi supply,09/06/2021 00:00,252007,60,BR0018,BRADSHAW ELECTRICAL LIMITED,30/8/2021 00:00:00,26/9/2021 00:00:00,P06-2022
,LEE VALLEY CARAVAN PARK,SUPPLIES AND SERVICES,EQUIPMENT MAINTENANCE,4112,P113908-SERVICE-Survey as to why there is a blockage,09/07/2021 00:00,252209,400,CO0550,CONVERT WATER LTD,30/8/2021 00:00:00,26/9/2021 00:00:00,P06-2022
,LEE VALLEY CARAVAN PARK,SUPPLIES AND SERVICES,EQUIPMENT MAINTENANCE,4112,P113934-SERVICE-toilet seat,09/06/2021 00:00,252320,29.16,SC0057,SCREWFIX DIRECT LTD,30/8/2021 00:00:00,26/9/2021 00:00:00,P06-2022
,LEE VALLEY CARAVAN PARK,SUPPLIES AND SERVICES,EQUIPMENT MAINTENANCE,4112,P107298-SERVICE-Gas cert Hamilton,09/08/2021 00:00,252469,60,MY0475,MY GAS HEATING CO LTD,30/8/2021 00:00:00,26/9/2021 00:00:00,P06-2022
,LEE VALLEY CARAVAN PARK,SUPPLIES AND SERVICES,EQUIPMENT MAINTENANCE,4112,P107299-SERVICE-Gas cert Serena,09/08/2021 00:00,252470,60,MY0475,MY GAS HEATING CO LTD,30/8/2021 00:00:00,26/9/2021 00:00:00,P06-2022
,LEE VALLEY CARAVAN PARK,SUPPLIES AND SERVICES,EQUIPMENT MAINTENANCE,4112,P114120-SERVICE-washing machine callout,15/9/2021 00:00:00,252857,113,AL0434,ALLSOP & FRANCIS,30/8/2021 00:00:00,26/9/2021 00:00:00,P06-2022
,LEE VALLEY CARAVAN PARK,SUPPLIES AND SERVICES,EQUIPMENT MAINTENANCE,4112,P114015-SERVICE-Investigate fault on CCTV,15/9/2021 00:00:00,252893,145.99,DP0314,DPP DETER PREVENT PROTECT,30/8/2021 00:00:00,26/9/2021 00:00:00,P06-2022
,LEE VALLEY CARAVAN PARK,SUPPLIES AND SERVICES,EQUIPMENT MAINTENANCE,4112,P114094-SERVICE-Service mowers,20/9/2021 00:00:00,253237,88,GE0440,GTEC'S,30/8/2021 00:00:00,26/9/2021 00:00:00,P06-2022
P&V,MYDDELTON HOUSE GARDENS,SUPPLIES AND SERVICES,EQUIPMENT MAINTENANCE,4112,P111647-SERVICE-Jump Plate - deck model RCK48-G23    2009 mod,20/9/2021 00:00:00,252524,48,BR0143,GEORGE BROWNS LTD,30/8/2021 00:00:00,26/9/2021 00:00:00,P06-2022
P&V,MYDDELTON HOUSE GARDENS,SUPPLIES AND SERVICES,EQUIPMENT MAINTENANCE,4112,P111647-SERVICE-Jump Plate - deck model RCK48-G23    2009 mod,20/9/2021 00:00:00,253203,-48,BR0143,GEORGE BROWNS LTD,30/8/2021 00:00:00,26/9/2021 00:00:00,P06-2022
P&V,NORTH AREA RANGERS,SUPPLIES AND SERVICES,EQUIPMENT MAINTENANCE,4112,P113334-SERVICE-Service Generator,09/08/2021 00:00,251038,296.92,EN0309,PRH ENGINEERING LIMITED,30/8/2021 00:00:00,26/9/2021 00:00:00,P06-2022
P&V,NORTH AREA RANGERS,SUPPLIES AND SERVICES,EQUIPMENT MAINTENANCE,4112,P113642-SERVICE-BCS Mower / Baler Reparis,09/08/2021 00:00,252558,705.86,DO0027,ERNEST DOE & SONS LTD,30/8/2021 00:00:00,26/9/2021 00:00:00,P06-2022
P&V,NORTH AREA RANGERS,SUPPLIES AND SERVICES,EQUIPMENT MAINTENANCE,4112,P113641-SERVICE-BCS Repair & Service,09/08/2021 00:00,252559,620.99,DO0027,ERNEST DOE & SONS LTD,30/8/2021 00:00:00,26/9/2021 00:00:00,P06-2022
P&V,SOUTH AREA RANGERS,SUPPLIES AND SERVICES,EQUIPMENT MAINTENANCE,4112,P113631-SERVICE-BCS Repairs - AA00520812,09/06/2021 00:00,252334,585.27,AP0245,APS LIMITED,30/8/2021 00:00:00,26/9/2021 00:00:00,P06-2022
P&V,RIVER LEE COUNTRY PARK,SUPPLIES AND SERVICES,EQUIPMENT MAINTENANCE,4112,P113839-SERVICE-Hedge Trimmer Repairs/Service,09/08/2021 00:00,252560,261.65,DO0027,ERNEST DOE & SONS LTD,30/8/2021 00:00:00,26/9/2021 00:00:00,P06-2022
,LEE VALLEY VELOPARK,SUPPLIES AND SERVICES,EQUIPMENT MAINTENANCE,4112,P113898-SERVICE-John Deere Service,13/9/2021 00:00:00,252173,601.72,AP0245,APS LIMITED,30/8/2021 00:00:00,26/9/2021 00:00:00,P06-2022
,LV LEISURE CENTRE GOLF COURSE,SUPPLIES AND SERVICES,EQUIPMENT MAINTENANCE,4112,"P114052-SERVICE-Parts- bottom blade, screw soc hd and nut m8",15/9/2021 00:00:00,252898,522.55,LE0279,REESINK TURFCARE UK LIMITED,30/8/2021 00:00:00,26/9/2021 00:00:00,P06-2022
,LEE VALLEY WHITE WATER CENTRE,SUPPLIES AND SERVICES,EQUIPMENT MAINTENANCE,4112,P113575-SERVICE-Courier for repair of radios,09/06/2021 00:00,252306,45,LE0055,LEE COURIERS LTD,30/8/2021 00:00:00,26/9/2021 00:00:00,P06-2022
,LEE VALLEY WHITE WATER CENTRE,SUPPLIES AND SERVICES,EQUIPMENT MAINTENANCE,4112,P113941-SERVICE-Dry suit repairs,09/07/2021 00:00,252489,785.88,HA0169,HAMMOND DRYSUITS LTD,30/8/2021 00:00:00,26/9/2021 00:00:00,P06-2022
,LEE VALLEY WHITE WATER CENTRE,SUPPLIES AND SERVICES,EQUIPMENT MAINTENANCE,4112,P113928-SERVICE-Reparis to radios as per quote RSLQT21001821,20/9/2021 00:00:00,252972,664.87,LO0133,RADIOCOMS SYSTEMS LTD,30/8/2021 00:00:00,26/9/2021 00:00:00,P06-2022
R&B,INFORMATION TECHNOLOGY,SUPPLIES AND SERVICES,IT CORE SYSTEMS,4113,P113944-SERVICE-Business Tax Portal 21/22,13/9/2021 00:00:00,252165,1174.82,CE0021,ADVANCED BUSINESS SOLUTIONS,30/8/2021 00:00:00,26/9/2021 00:00:00,P06-2022
R&B,INFORMATION TECHNOLOGY,SUPPLIES AND SERVICES,IT CORE SYSTEMS,4113,P111362-SERVICE-Hosted Payroll May 21- March 22,13/9/2021 00:00:00,252201,542.51,PA0453,PAYROLL BUSINESS SOLUTIONS LTD,30/8/2021 00:00:00,26/9/2021 00:00:00,P06-2022
R&B,INFORMATION TECHNOLOGY,SUPPLIES AND SERVICES,IT CORE SYSTEMS,4113,P114268-SERVICE-Monthly Service fee's 15 Sep - 14 Oct 21,26/9/2021 00:00:00,253193,351,CO0440,VERIFONE SERVICES UK & IRELAND LTD,30/8/2021 00:00:00,26/9/2021 00:00:00,P06-2022
R&B,INFORMATION TECHNOLOGY,SUPPLIES AND SERVICES,IT CORE SYSTEMS,4113,P111362-SERVICE-Hosted Payroll May 21- March 22,26/9/2021 00:00:00,253546,542.51,PA0453,PAYROLL BUSINESS SOLUTIONS LTD,30/8/2021 00:00:00,26/9/2021 00:00:00,P06-2022
,LSC INFORMATION TECHNOLOGY,SUPPLIES AND SERVICES,IT CORE SYSTEMS,4113,P113699-SERVICE-Page Band7 Payment - 12 Months - PAY-BA7-RET/,13/9/2021 00:00:00,252331,2923.56,CO0440,VERIFONE SERVICES UK & IRELAND LTD,30/8/2021 00:00:00,26/9/2021 00:00:00,P06-2022
,LSC INFORMATION TECHNOLOGY,SUPPLIES AND SERVICES,IT CORE SYSTEMS,4113,P113699-SERVICE-Page Band7 Payment - 12 Months - PAY-BA7-RET/,26/9/2021 00:00:00,252332,1875,CO0440,VERIFONE SERVICES UK & IRELAND LTD,30/8/2021 00:00:00,26/9/2021 00:00:00,P06-2022
,LSC INFORMATION TECHNOLOGY,SUPPLIES AND SERVICES,IT CORE SYSTEMS,4113,P114102-SERVICE-Licence and Support Selima Applications,15/9/2021 00:00:00,252708,1343.7,SE0251,ACCESS UK LTD (FRMLY SELIMA),30/8/2021 00:00:00,26/9/2021 00:00:00,P06-2022
,LSC INFORMATION TECHNOLOGY,SUPPLIES AND SERVICES,IT CORE SYSTEMS,4113,P113699-SERVICE-Page Band7 Payment - 12 Months - PAY-BA7-RET/,26/9/2021 00:00:00,253192,375,CO0440,VERIFONE SERVICES UK & IRELAND LTD,30/8/2021 00:00:00,26/9/2021 00:00:00,P06-2022
R&B,INFORMATION TECHNOLOGY,SUPPLIES AND SERVICES,IT NETWORK & TELECOMS COSTS,4114,P111480-SERVICE-Monthly SIP Apr 21-Mar 22,13/9/2021 00:00:00,252371,145.84,FR0131,VOICEFLEX LTD,30/8/2021 00:00:00,26/9/2021 00:00:00,P06-2022
R&B,INFORMATION TECHNOLOGY,SUPPLIES AND SERVICES,IT NETWORK & TELECOMS COSTS,4114,P113370-SERVICE-MPLS for all sites Aug 21,13/9/2021 00:00:00,252432,11996.86,PP0200,PPSNET LIMITED,30/8/2021 00:00:00,26/9/2021 00:00:00,P06-2022
R&B,INFORMATION TECHNOLOGY,SUPPLIES AND SERVICES,IT NETWORK & TELECOMS COSTS,4114,P114088-SERVICE-MPLS for all sites Sept 21,13/9/2021 00:00:00,252433,11996.86,PP0200,PPSNET LIMITED,30/8/2021 00:00:00,26/9/2021 00:00:00,P06-2022
,LEE VALLEY CARAVAN PARK,SUPPLIES AND SERVICES,IT NETWORK & TELECOMS COSTS,4114,MY O2,09/08/2021 00:00,252373,54,O20134,MY O2,30/8/2021 00:00:00,26/9/2021 00:00:00,P06-2022
P&V,FISHERIES MANAGEMENT,SUPPLIES AND SERVICES,EQUIPMENT HIRE,4115,"P113792-SERVICE-12 weeks hire at Stansted Innings, Marsh Lane",09/06/2021 00:00,251964,92,TO0092,TOILETS+ LTD,30/8/2021 00:00:00,26/9/2021 00:00:00,P06-2022
P&V,FISHERIES MANAGEMENT,SUPPLIES AND SERVICES,EQUIPMENT HIRE,4115,"P113792-SERVICE-12 weeks hire at Stansted Innings, Marsh Lane",24/9/2021 00:00:00,253292,92,TO0092,TOILETS+ LTD,30/8/2021 00:00:00,26/9/2021 00:00:00,P06-2022
P&V,MYDDELTON HOUSE,SUPPLIES AND SERVICES,IT HARDWARE & SOFTWARE COSTS,4116,ZEN INTERNET LTD,09/06/2021 00:00,252187,29.5,ZE0007,ZEN INTERNET LTD,30/8/2021 00:00:00,26/9/2021 00:00:00,P06-2022
P&V,MYDDELTON HOUSE,SUPPLIES AND SERVICES,IT HARDWARE & SOFTWARE COSTS,4116,ZEN INTERNET LTD,20/9/2021 00:00:00,252919,42,ZE0007,ZEN INTERNET LTD,30/8/2021 00:00:00,26/9/2021 00:00:00,P06-2022
R&B,INFORMATION TECHNOLOGY,SUPPLIES AND SERVICES,IT HARDWARE & SOFTWARE COSTS,4116,P111692-SERVICE-Email filtering & large Files,20/9/2021 00:00:00,252945,738,IQ0022,IQUAL,30/8/2021 00:00:00,26/9/2021 00:00:00,P06-2022
,LEE VALLEY MARINA SPRINGFIELD,SUPPLIES AND SERVICES,IT HARDWARE & SOFTWARE COSTS,4116,ZEN INTERNET LTD,20/9/2021 00:00:00,252921,38,ZE0007,ZEN INTERNET LTD,30/8/2021 00:00:00,26/9/2021 00:00:00,P06-2022
,LEE VALLEY MARINA STANSTEAD,SUPPLIES AND SERVICES,IT HARDWARE & SOFTWARE COSTS,4116,ZEN INTERNET LTD,20/9/2021 00:00:00,252920,31.32,ZE0007,ZEN INTERNET LTD,30/8/2021 00:00:00,26/9/2021 00:00:00,P06-2022
,LEE VALLEY CARAVAN PARK,SUPPLIES AND SERVICES,IT HARDWARE & SOFTWARE COSTS,4116,P114054-SERVICE-Fibre Connection Sept  21,20/9/2021 00:00:00,252434,835,PP0200,PPSNET LIMITED,30/8/2021 00:00:00,26/9/2021 00:00:00,P06-2022
,LEE VALLEY VELOPARK,SUPPLIES AND SERVICES,IT HARDWARE & SOFTWARE COSTS,4116,P113201-SERVICE-Setup of New Swiss Timing Hardware,09/06/2021 00:00,252168,1280,SW0443,THE SWATCH GROUP (UK) LIMITED,30/8/2021 00:00:00,26/9/2021 00:00:00,P06-2022
,LEE VALLEY RIDING CENTRE,SUPPLIES AND SERVICES,IT HARDWARE & SOFTWARE COSTS,4116,ZEN INTERNET LTD,14/9/2021 00:00:00,252523,31.32,ZE0007,ZEN INTERNET LTD,30/8/2021 00:00:00,26/9/2021 00:00:00,P06-2022
,LEE VALLEY WHITE WATER CENTRE,SUPPLIES AND SERVICES,IT HARDWARE & SOFTWARE COSTS,4116,ZEN INTERNET LTD,26/9/2021 00:00:00,253274,13.49,ZE0007,ZEN INTERNET LTD,30/8/2021 00:00:00,26/9/2021 00:00:00,P06-2022
,LEE VALLEY WHITE WATER CENTRE,SUPPLIES AND SERVICES,IT HARDWARE & SOFTWARE COSTS,4116,ZEN INTERNET LTD,26/9/2021 00:00:00,253290,17.83,ZE0007,ZEN INTERNET LTD,30/8/2021 00:00:00,26/9/2021 00:00:00,P06-2022
,LEE VALLEY ATHLETICS CENTRE,SUPPLIES AND SERVICES,VENDING AGREEMENTS,4117,P113899-SERVICE-LVAC INV 9296497327 & CREDIT 5506916509,09/07/2021 00:00,252358,-12.74,BR0019,BRAKE BROTHERS LIMITED,30/8/2021 00:00:00,26/9/2021 00:00:00,P06-2022
,LEE VALLEY ATHLETICS CENTRE,SUPPLIES AND SERVICES,VENDING AGREEMENTS,4117,BRAKE BROTHERS LIMITED,09/06/2021 00:00,252359,-742.74,BR0019,BRAKE BROTHERS LIMITED,30/8/2021 00:00:00,26/9/2021 00:00:00,P06-2022
,LEE VALLEY ATHLETICS CENTRE,SUPPLIES AND SERVICES,VENDING AGREEMENTS,4117,BRAKE BROTHERS LIMITED,09/06/2021 00:00,252359,31.94,BR0019,BRAKE BROTHERS LIMITED,30/8/2021 00:00:00,26/9/2021 00:00:00,P06-2022
,LEE VALLEY ATHLETICS CENTRE,SUPPLIES AND SERVICES,VENDING AGREEMENTS,4117,P113899-SERVICE-LVAC INV 9296497327 & CREDIT 5506916509,09/06/2021 00:00,252359,742.74,BR0019,BRAKE BROTHERS LIMITED,30/8/2021 00:00:00,26/9/2021 00:00:00,P06-2022
,LEE VALLEY ATHLETICS CENTRE,SUPPLIES AND SERVICES,VENDING AGREEMENTS,4117,BRAKE BROTHERS LIMITED,09/06/2021 00:00,252359,710.8,BR0019,BRAKE BROTHERS LIMITED,30/8/2021 00:00:00,26/9/2021 00:00:00,P06-2022
,LEE VALLEY ATHLETICS CENTRE,SUPPLIES AND SERVICES,VENDING AGREEMENTS,4117,BRAKE BROTHERS LIMITED,20/9/2021 00:00:00,252616,-88.54,BR0019,BRAKE BROTHERS LIMITED,30/8/2021 00:00:00,26/9/2021 00:00:00,P06-2022
,LEE VALLEY ATHLETICS CENTRE,SUPPLIES AND SERVICES,VENDING AGREEMENTS,4117,BRAKE BROTHERS LIMITED,20/9/2021 00:00:00,252616,20.98,BR0019,BRAKE BROTHERS LIMITED,30/8/2021 00:00:00,26/9/2021 00:00:00,P06-2022
,LEE VALLEY ATHLETICS CENTRE,SUPPLIES AND SERVICES,VENDING AGREEMENTS,4117,BRAKE BROTHERS LIMITED,20/9/2021 00:00:00,252616,67.56,BR0019,BRAKE BROTHERS LIMITED,30/8/2021 00:00:00,26/9/2021 00:00:00,P06-2022
,LEE VALLEY ATHLETICS CENTRE,SUPPLIES AND SERVICES,VENDING AGREEMENTS,4117,P114135-SERVICE-LVAC 3.9.21 INV 9296504373,20/9/2021 00:00:00,252616,88.54,BR0019,BRAKE BROTHERS LIMITED,30/8/2021 00:00:00,26/9/2021 00:00:00,P06-2022
,LEE VALLEY MARINA SPRINGFIELD,SUPPLIES AND SERVICES,IT MAINTENANCE AGREEMENTS,4119,P114089-SERVICE-Support &  Data Aug 21,13/9/2021 00:00:00,252503,75.2,CY0653,CYBERTILL,30/8/2021 00:00:00,26/9/2021 00:00:00,P06-2022
,LEE VALLEY MARINA STANSTEAD,SUPPLIES AND SERVICES,IT MAINTENANCE AGREEMENTS,4119,P114089-SERVICE-Support & data Aug 21,13/9/2021 00:00:00,252503,75.19,CY0653,CYBERTILL,30/8/2021 00:00:00,26/9/2021 00:00:00,P06-2022
,LEE VALLEY CAMPSITE,SUPPLIES AND SERVICES,IT MAINTENANCE AGREEMENTS,4119,P111852-SERVICE-Monthlt Subscription may 21 - Oct 21 Sewardst,13/9/2021 00:00:00,252013,145.5,NE0218,NETGUIDES LIMITED,30/8/2021 00:00:00,26/9/2021 00:00:00,P06-2022
,LEE VALLEY CAMPSITE,SUPPLIES AND SERVICES,IT MAINTENANCE AGREEMENTS,4119,P111852-SERVICE-Monthlt Subscription may 21 - Oct 21 Sewardst,24/9/2021 00:00:00,253215,145.5,NE0218,NETGUIDES LIMITED,30/8/2021 00:00:00,26/9/2021 00:00:00,P06-2022
,LEE VALLEY CARAVAN PARK,SUPPLIES AND SERVICES,IT MAINTENANCE AGREEMENTS,4119,P111852-SERVICE-Monthly Subscription May 21 - Oct 21 DW,13/9/2021 00:00:00,252013,145.5,NE0218,NETGUIDES LIMITED,30/8/2021 00:00:00,26/9/2021 00:00:00,P06-2022
,LEE VALLEY CARAVAN PARK,SUPPLIES AND SERVICES,IT MAINTENANCE AGREEMENTS,4119,P111852-SERVICE-Monthly Subscription May 21 - Oct 21 DW,24/9/2021 00:00:00,253215,145.5,NE0218,NETGUIDES LIMITED,30/8/2021 00:00:00,26/9/2021 00:00:00,P06-2022
P&V,ALMOST WILD CAMPSITE,SUPPLIES AND SERVICES,IT MAINTENANCE AGREEMENTS,4119,P111852-SERVICE-Monthly Subscription May 21 - Oct 21 AWC,13/9/2021 00:00:00,252013,145.5,NE0218,NETGUIDES LIMITED,30/8/2021 00:00:00,26/9/2021 00:00:00,P06-2022
P&V,ALMOST WILD CAMPSITE,SUPPLIES AND SERVICES,IT MAINTENANCE AGREEMENTS,4119,P111852-SERVICE-Monthly Subscription May 21 - Oct 21 AWC,24/9/2021 00:00:00,253215,145.5,NE0218,NETGUIDES LIMITED,30/8/2021 00:00:00,26/9/2021 00:00:00,P06-2022
,LV LEISURE CENTRE CAMPSITE,SUPPLIES AND SERVICES,IT MAINTENANCE AGREEMENTS,4119,P111852-SERVICE-Monthly Subscription May 21 - Oct 21 Edmonton,13/9/2021 00:00:00,252013,145.5,NE0218,NETGUIDES LIMITED,30/8/2021 00:00:00,26/9/2021 00:00:00,P06-2022
,LV LEISURE CENTRE CAMPSITE,SUPPLIES AND SERVICES,IT MAINTENANCE AGREEMENTS,4119,P111852-SERVICE-Monthly Subscription May 21 - Oct 21 Edmonton,24/9/2021 00:00:00,253215,145.5,NE0218,NETGUIDES LIMITED,30/8/2021 00:00:00,26/9/2021 00:00:00,P06-2022
,LV LEISURE CENTRE GOLF COURSE,SUPPLIES AND SERVICES,IT MAINTENANCE AGREEMENTS,4119,P114053-SERVICE-Digitickets Services Aug 2021,20/9/2021 00:00:00,252477,581.84,DI0304,DIGITAL TICKETING SYSTEMS LTD (DIGITICKETS),30/8/2021 00:00:00,26/9/2021 00:00:00,P06-2022
P&V,GUNPOWDER PARK,SUPPLIES AND SERVICES,MATERIALS (LOCKS),4124,P113328-SERVICE-Delivery,09/06/2021 00:00,252337,4,LO0020,LOCK AND KEY SERVICES,30/8/2021 00:00:00,26/9/2021 00:00:00,P06-2022
P&V,GUNPOWDER PARK,SUPPLIES AND SERVICES,MATERIALS (LOCKS),4124,P113328-SERVICE-5x ASSA Keys - B3.2,09/06/2021 00:00,252337,58.32,LO0020,LOCK AND KEY SERVICES,30/8/2021 00:00:00,26/9/2021 00:00:00,P06-2022
P&V,NORTH AREA RANGERS,SUPPLIES AND SERVICES,MATERIALS (GROUNDS MAINT),4125,P112769-SERVICE-2x Standard 303 Needles,26/9/2021 00:00:00,253605,30,ST0301,STEM INJECTION SYSTEMS (EUROPE) LTD,30/8/2021 00:00:00,26/9/2021 00:00:00,P06-2022
P&V,NORTH AREA RANGERS,SUPPLIES AND SERVICES,MATERIALS (GROUNDS MAINT),4125,P112769-SERVICE-Delivery,26/9/2021 00:00:00,253605,4.5,ST0301,STEM INJECTION SYSTEMS (EUROPE) LTD,30/8/2021 00:00:00,26/9/2021 00:00:00,P06-2022
P&V,NORTH AREA RANGERS,SUPPLIES AND SERVICES,MATERIALS (GROUNDS MAINT),4125,P112769-SERVICE-1x Short Needle,26/9/2021 00:00:00,253605,22.22,ST0301,STEM INJECTION SYSTEMS (EUROPE) LTD,30/8/2021 00:00:00,26/9/2021 00:00:00,P06-2022
,LV LEISURE CENTRE CAMPSITE,SUPPLIES AND SERVICES,MATERIALS (GROUNDS MAINT),4125,P113966-SERVICE-Maintenance supplies,13/9/2021 00:00:00,252315,10.14,BQ0164,TRADE UK ACCOUNT,30/8/2021 00:00:00,26/9/2021 00:00:00,P06-2022
,LV LEISURE CENTRE CAMPSITE,SUPPLIES AND SERVICES,MATERIALS (GROUNDS MAINT),4125,P113967-SERVICE-Maintenance supplies,13/9/2021 00:00:00,252316,65.43,BQ0164,TRADE UK ACCOUNT,30/8/2021 00:00:00,26/9/2021 00:00:00,P06-2022
,LV LEISURE CENTRE GOLF COURSE,SUPPLIES AND SERVICES,MATERIALS (GROUNDS MAINT),4125,P113638-SERVICE-Grass seeds 20kg,09/06/2021 00:00,252212,676,CA0698,CAMBRIDGE GOLF COMPANY,30/8/2021 00:00:00,26/9/2021 00:00:00,P06-2022
,LV LEISURE CENTRE GOLF COURSE,SUPPLIES AND SERVICES,MATERIALS (GROUNDS MAINT),4125,P113639-SERVICE-Iron sand,09/06/2021 00:00,252213,709.5,CA0698,CAMBRIDGE GOLF COMPANY,30/8/2021 00:00:00,26/9/2021 00:00:00,P06-2022
P&V,MYDDELTON HOUSE GARDENS,SUPPLIES AND SERVICES,MATERIALS (PLANTS & SHRUBS),4126,P112767-SERVICE-Plant order June order no 16613,13/9/2021 00:00:00,252856,492.52,CH0718,CHAPEL COTTAGE PLANTS LIMITED,30/8/2021 00:00:00,26/9/2021 00:00:00,P06-2022
P&V,MYDDELTON HOUSE GARDENS,SUPPLIES AND SERVICES,MATERIALS (PLANTS & SHRUBS),4126,P114240-SERVICE-Plant order September 2021,26/9/2021 00:00:00,253120,98.26,BA0627,BALL COLEGRAVE LTD,30/8/2021 00:00:00,26/9/2021 00:00:00,P06-2022
P&V,MYDDELTON HOUSE GARDENS,SUPPLIES AND SERVICES,MATERIALS (PLANTS & SHRUBS),4126,P114177-SERVICE-Delivery,26/9/2021 00:00:00,253227,1.66,CH0298,CHILTERN SEEDS,30/8/2021 00:00:00,26/9/2021 00:00:00,P06-2022
P&V,MYDDELTON HOUSE GARDENS,SUPPLIES AND SERVICES,MATERIALS (PLANTS & SHRUBS),4126,P114177-SERVICE-Seed order September 2021,26/9/2021 00:00:00,253227,8.82,CH0298,CHILTERN SEEDS,30/8/2021 00:00:00,26/9/2021 00:00:00,P06-2022
,STANSTEAD RECHARGEABLE WORKS,SUPPLIES AND SERVICES,MATERIALS (TOOLS & PLANT),4127,P113518-SERVICE-trailer tires,09/06/2021 00:00,251467,45,KB0006,KB TYRES LTD,30/8/2021 00:00:00,26/9/2021 00:00:00,P06-2022
,STANSTEAD RECHARGEABLE WORKS,SUPPLIES AND SERVICES,MATERIALS (TOOLS & PLANT),4127,P113518-SERVICE-trailer tires,26/9/2021 00:00:00,252314,21,KB0006,KB TYRES LTD,30/8/2021 00:00:00,26/9/2021 00:00:00,P06-2022
,STANSTEAD RECHARGEABLE WORKS,SUPPLIES AND SERVICES,MATERIALS (TOOLS & PLANT),4127,P113518-SERVICE-additional to meet invoice,26/9/2021 00:00:00,252314,172,KB0006,KB TYRES LTD,30/8/2021 00:00:00,26/9/2021 00:00:00,P06-2022
,STANSTEAD RECHARGEABLE WORKS,SUPPLIES AND SERVICES,MATERIALS (TOOLS & PLANT),4127,P113937-SERVICE-marina services,09/08/2021 00:00,252493,630,WA0251,M J MARINE SERVICES,30/8/2021 00:00:00,26/9/2021 00:00:00,P06-2022
,STANSTEAD RECHARGEABLE WORKS,SUPPLIES AND SERVICES,MATERIALS (TOOLS & PLANT),4127,P113975-SERVICE-marina works & parts supplied,24/9/2021 00:00:00,253127,246.5,EN0309,PRH ENGINEERING LIMITED,30/8/2021 00:00:00,26/9/2021 00:00:00,P06-2022
,SPRINGFIELD RECHARGEABLE WORKS,SUPPLIES AND SERVICES,MATERIALS (ENG OTHER),4130,P113332-SERVICE-Hite 80 Ton Crane on Wednesday 11th August 20,09/06/2021 00:00,251855,800,BA0339,BALDWINS CRANE HIRE LTD,30/8/2021 00:00:00,26/9/2021 00:00:00,P06-2022
,SPRINGFIELD RECHARGEABLE WORKS,SUPPLIES AND SERVICES,MATERIALS (ENG OTHER),4130,P113332-SERVICE-To Provide insurance @ 15%,09/06/2021 00:00,251855,120,BA0339,BALDWINS CRANE HIRE LTD,30/8/2021 00:00:00,26/9/2021 00:00:00,P06-2022
,SPRINGFIELD RECHARGEABLE WORKS,SUPPLIES AND SERVICES,MATERIALS (ENG OTHER),4130,P113835-SERVICE-To Provide Insurance @15%,20/9/2021 00:00:00,253240,120,BA0339,BALDWINS CRANE HIRE LTD,30/8/2021 00:00:00,26/9/2021 00:00:00,P06-2022
,SPRINGFIELD RECHARGEABLE WORKS,SUPPLIES AND SERVICES,MATERIALS (ENG OTHER),4130,P113835-SERVICE-Hire 80 Ton Crane on Wednesday 8th September,20/9/2021 00:00:00,253240,800,BA0339,BALDWINS CRANE HIRE LTD,30/8/2021 00:00:00,26/9/2021 00:00:00,P06-2022
,LEE VALLEY WHITE WATER CENTRE,SUPPLIES AND SERVICES,MATERIALS (CHEMICALS),4131,P113615-SERVICE-Chemicals,09/06/2021 00:00,252161,273.43,AL0074,BRENNTAG UK GROUP LIMITED,30/8/2021 00:00:00,26/9/2021 00:00:00,P06-2022
,LEE VALLEY WHITE WATER CENTRE,SUPPLIES AND SERVICES,MATERIALS (CHEMICALS),4131,P113615-SERVICE-Chemicals,09/06/2021 00:00,252162,-56,AL0074,BRENNTAG UK GROUP LIMITED,30/8/2021 00:00:00,26/9/2021 00:00:00,P06-2022
,LEE VALLEY WHITE WATER CENTRE,SUPPLIES AND SERVICES,MATERIALS (CHEMICALS),4131,P113615-SERVICE-Chemicals,09/06/2021 00:00,252206,273.43,AL0074,BRENNTAG UK GROUP LIMITED,30/8/2021 00:00:00,26/9/2021 00:00:00,P06-2022
,LEE VALLEY WHITE WATER CENTRE,SUPPLIES AND SERVICES,MATERIALS (CHEMICALS),4131,P113615-SERVICE-Chemicals,09/06/2021 00:00,252364,273.43,AL0074,BRENNTAG UK GROUP LIMITED,30/8/2021 00:00:00,26/9/2021 00:00:00,P06-2022
,LEE VALLEY WHITE WATER CENTRE,SUPPLIES AND SERVICES,MATERIALS (CHEMICALS),4131,P113615-SERVICE-Chemicals,13/9/2021 00:00:00,252669,273.43,AL0074,BRENNTAG UK GROUP LIMITED,30/8/2021 00:00:00,26/9/2021 00:00:00,P06-2022
,LEE VALLEY WHITE WATER CENTRE,SUPPLIES AND SERVICES,MATERIALS (CHEMICALS),4131,P113615-SERVICE-Chemicals,20/9/2021 00:00:00,253146,176.2,AL0074,BRENNTAG UK GROUP LIMITED,30/8/2021 00:00:00,26/9/2021 00:00:00,P06-2022
,LEE VALLEY WHITE WATER CENTRE,SUPPLIES AND SERVICES,MATERIALS (CHEMICALS),4131,P113615-SERVICE-Chemicals,20/9/2021 00:00:00,253147,273.43,AL0074,BRENNTAG UK GROUP LIMITED,30/8/2021 00:00:00,26/9/2021 00:00:00,P06-2022
,LEE VALLEY WHITE WATER CENTRE,SUPPLIES AND SERVICES,MATERIALS (CHEMICALS),4131,P113615-SERVICE-Chemicals,26/9/2021 00:00:00,253496,273.43,AL0074,BRENNTAG UK GROUP LIMITED,30/8/2021 00:00:00,26/9/2021 00:00:00,P06-2022
,LV LEISURE CENTRE GOLF COURSE,SUPPLIES AND SERVICES,MATERIALS (MEDICAL),4132,P112738-SERVICE-medical masks,09/08/2021 00:00,252481,4.99,AM0406,AMAZON PAYMENTS UK LIMITED,30/8/2021 00:00:00,26/9/2021 00:00:00,P06-2022
P&V,LEE VALLEY FARM HOLYFIELDHALL,SUPPLIES AND SERVICES,FEED,4133,P113803-SERVICE-Topgrass,09/08/2021 00:00,251891,2848,BO0246,FOR FARMERS UK LTD,30/8/2021 00:00:00,26/9/2021 00:00:00,P06-2022
P&V,LEE VALLEY FARM HOLYFIELDHALL,SUPPLIES AND SERVICES,FEED,4133,P113806-SERVICE-Selcoplus,09/07/2021 00:00,252170,3306.42,BO0246,FOR FARMERS UK LTD,30/8/2021 00:00:00,26/9/2021 00:00:00,P06-2022
P&V,LEE VALLEY FARM HOLYFIELDHALL,SUPPLIES AND SERVICES,FEED,4133,P113980-SERVICE-Beef Grower/Optima,09/08/2021 00:00,252436,5264.8,BO0246,FOR FARMERS UK LTD,30/8/2021 00:00:00,26/9/2021 00:00:00,P06-2022
P&V,LEE VALLEY FARM HOLYFIELDHALL,SUPPLIES AND SERVICES,FEED,4133,P114208-SERVICE-Dairy Meal,24/9/2021 00:00:00,253225,1690.24,HE0449,HEYGATES COUNTRY FEEDS LTD,30/8/2021 00:00:00,26/9/2021 00:00:00,P06-2022
P&V,LEE VALLEY FARM HOLYFIELDHALL,SUPPLIES AND SERVICES,FEED,4133,P114207-SERVICE-Beef Nuts/Dairy Meal,26/9/2021 00:00:00,253226,2327.5,HE0449,HEYGATES COUNTRY FEEDS LTD,30/8/2021 00:00:00,26/9/2021 00:00:00,P06-2022
P&V,LEE VALLEY FARM HOLYFIELDHALL,SUPPLIES AND SERVICES,FEED,4133,P114295-SERVICE-Nutrimol,26/9/2021 00:00:00,253494,1974,BO0246,FOR FARMERS UK LTD,30/8/2021 00:00:00,26/9/2021 00:00:00,P06-2022
,LEE VALLEY RIDING CENTRE,SUPPLIES AND SERVICES,FEED,4133,P113364-SERVICE-Top up feed,09/06/2021 00:00,252032,2190.4,DO0029,M C DOWLING & SONS,30/8/2021 00:00:00,26/9/2021 00:00:00,P06-2022
,LEE VALLEY RIDING CENTRE,SUPPLIES AND SERVICES,FEED,4133,P113364-SERVICE-Top up feed,09/06/2021 00:00,252328,807.1,DO0029,M C DOWLING & SONS,30/8/2021 00:00:00,26/9/2021 00:00:00,P06-2022
,LEE VALLEY RIDING CENTRE,SUPPLIES AND SERVICES,FEED,4133,P113364-SERVICE-Top up feed,13/9/2021 00:00:00,252610,884.3,DO0029,M C DOWLING & SONS,30/8/2021 00:00:00,26/9/2021 00:00:00,P06-2022
,LEE VALLEY RIDING CENTRE,SUPPLIES AND SERVICES,FEED,4133,P113364-SERVICE-Top up feed,20/9/2021 00:00:00,252922,1118.2,DO0029,M C DOWLING & SONS,30/8/2021 00:00:00,26/9/2021 00:00:00,P06-2022
,LEE VALLEY RIDING CENTRE,SUPPLIES AND SERVICES,BEDDING,4134,P113364-SERVICE-top up bedding,09/06/2021 00:00,252328,630,DO0029,M C DOWLING & SONS,30/8/2021 00:00:00,26/9/2021 00:00:00,P06-2022
,LEE VALLEY RIDING CENTRE,SUPPLIES AND SERVICES,BEDDING,4134,P113364-SERVICE-top up bedding,13/9/2021 00:00:00,252610,630,DO0029,M C DOWLING & SONS,30/8/2021 00:00:00,26/9/2021 00:00:00,P06-2022
,LEE VALLEY RIDING CENTRE,SUPPLIES AND SERVICES,BEDDING,4134,P113364-SERVICE-top up bedding,20/9/2021 00:00:00,252922,877.95,DO0029,M C DOWLING & SONS,30/8/2021 00:00:00,26/9/2021 00:00:00,P06-2022
,LEE VALLEY RIDING CENTRE,SUPPLIES AND SERVICES,BEDDING,4134,P113364-SERVICE-top up bedding,24/9/2021 00:00:00,253304,1348.65,DO0029,M C DOWLING & SONS,30/8/2021 00:00:00,26/9/2021 00:00:00,P06-2022
,LEE VALLEY RIDING CENTRE,SUPPLIES AND SERVICES,BEDDING,4134,P113364-SERVICE-top up bedding,24/9/2021 00:00:00,253351,1513.4,DO0029,M C DOWLING & SONS,30/8/2021 00:00:00,26/9/2021 00:00:00,P06-2022
,LEE VALLEY RIDING CENTRE,SUPPLIES AND SERVICES,BEDDING,4134,P113364-SERVICE-bedding,24/9/2021 00:00:00,253351,440.2,DO0029,M C DOWLING & SONS,30/8/2021 00:00:00,26/9/2021 00:00:00,P06-2022
P&V,LEE VALLEY FARM HOLYFIELDHALL,SUPPLIES AND SERVICES,SPRAYS,4136,P113503-SERVICE-Spray Test,13/9/2021 00:00:00,252614,170,SP0036,SPRAYTEC LTD,30/8/2021 00:00:00,26/9/2021 00:00:00,P06-2022
P&V,LEE VALLEY FARM HOLYFIELDHALL,SUPPLIES AND SERVICES,SPRAYS,4136,P114072-SERVICE-Roundup/De Sangosse Blaze,13/9/2021 00:00:00,252618,1566.5,HA0013,HARLOW AGRICULTURAL MERCHANTS,30/8/2021 00:00:00,26/9/2021 00:00:00,P06-2022
P&V,LEE VALLEY FARM HOLYFIELDHALL,SUPPLIES AND SERVICES,SPRAYS,4136,P114073-SERVICE-Roundup/De Sangosse Blaze,20/9/2021 00:00:00,252619,767.75,HA0013,HARLOW AGRICULTURAL MERCHANTS,30/8/2021 00:00:00,26/9/2021 00:00:00,P06-2022
P&V,LEE VALLEY FARM HOLYFIELDHALL,SUPPLIES AND SERVICES,SPRAYS,4136,P113984-SERVICE-Spraying,14/9/2021 00:00:00,252872,170,SP0036,SPRAYTEC LTD,30/8/2021 00:00:00,26/9/2021 00:00:00,P06-2022
P&V,LEE VALLEY FARM HOLYFIELDHALL,SUPPLIES AND SERVICES,SPRAYS,4136,P113503-SERVICE-Additional Labour,14/9/2021 00:00:00,252872,60,SP0036,SPRAYTEC LTD,30/8/2021 00:00:00,26/9/2021 00:00:00,P06-2022
P&V,LEE VALLEY FARM HOLYFIELDHALL,SUPPLIES AND SERVICES,SPRAYS,4136,P113503-SERVICE-Spray Test,14/9/2021 00:00:00,252872,35,SP0036,SPRAYTEC LTD,30/8/2021 00:00:00,26/9/2021 00:00:00,P06-2022
P&V,LEE VALLEY FARM HOLYFIELDHALL,SUPPLIES AND SERVICES,DAIRY SUNDRIES,4138,P113154-SERVICE-50 Straws Semen,09/08/2021 00:00,251067,900,WO0350,WORLD WIDE SIRES,30/8/2021 00:00:00,26/9/2021 00:00:00,P06-2022
P&V,LEE VALLEY FARM HOLYFIELDHALL,SUPPLIES AND SERVICES,DAIRY SUNDRIES,4138,P113857-SERVICE-Dead Animal Removal,13/9/2021 00:00:00,251997,140,MA0074,W MARTIN & SON LIMITED,30/8/2021 00:00:00,26/9/2021 00:00:00,P06-2022
P&V,LEE VALLEY FARM HOLYFIELDHALL,SUPPLIES AND SERVICES,DAIRY SUNDRIES,4138,P113978-SERVICE-Beeline Material/Labour,13/9/2021 00:00:00,252347,789.45,MI0023,MILL DAIRY SERVICES,30/8/2021 00:00:00,26/9/2021 00:00:00,P06-2022
P&V,LEE VALLEY FARM HOLYFIELDHALL,SUPPLIES AND SERVICES,DAIRY SUNDRIES,4138,P113486-SERVICE-Dairy Sundries,09/08/2021 00:00,252348,289.88,MI0023,MILL DAIRY SERVICES,30/8/2021 00:00:00,26/9/2021 00:00:00,P06-2022
P&V,LEE VALLEY FARM HOLYFIELDHALL,SUPPLIES AND SERVICES,DAIRY SUNDRIES,4138,P112434-SERVICE-Oxygen,09/08/2021 00:00,252368,41.4,BO0015,BOC LTD,30/8/2021 00:00:00,26/9/2021 00:00:00,P06-2022
P&V,LEE VALLEY FARM HOLYFIELDHALL,SUPPLIES AND SERVICES,DAIRY SUNDRIES,4138,P111472-SERVICE-Farm Sundries,09/08/2021 00:00,252385,8.73,FA0099,FARM & COUNTRY SUPPLIES LTD,30/8/2021 00:00:00,26/9/2021 00:00:00,P06-2022
P&V,LEE VALLEY FARM HOLYFIELDHALL,SUPPLIES AND SERVICES,DAIRY SUNDRIES,4138,P111472-SERVICE-Farm Sundries,09/08/2021 00:00,252386,143.28,FA0099,FARM & COUNTRY SUPPLIES LTD,30/8/2021 00:00:00,26/9/2021 00:00:00,P06-2022
P&V,LEE VALLEY FARM HOLYFIELDHALL,SUPPLIES AND SERVICES,DAIRY SUNDRIES,4138,P111472-SERVICE-Farm Sundries,09/08/2021 00:00,252387,128.71,FA0099,FARM & COUNTRY SUPPLIES LTD,30/8/2021 00:00:00,26/9/2021 00:00:00,P06-2022
P&V,LEE VALLEY FARM HOLYFIELDHALL,SUPPLIES AND SERVICES,DAIRY SUNDRIES,4138,FARM & COUNTRY SUPPLIES LTD,09/08/2021 00:00,252387,-128.71,FA0099,FARM & COUNTRY SUPPLIES LTD,30/8/2021 00:00:00,26/9/2021 00:00:00,P06-2022
P&V,LEE VALLEY FARM HOLYFIELDHALL,SUPPLIES AND SERVICES,DAIRY SUNDRIES,4138,FARM & COUNTRY SUPPLIES LTD,09/08/2021 00:00,252387,90.03,FA0099,FARM & COUNTRY SUPPLIES LTD,30/8/2021 00:00:00,26/9/2021 00:00:00,P06-2022
P&V,LEE VALLEY FARM HOLYFIELDHALL,SUPPLIES AND SERVICES,DAIRY SUNDRIES,4138,FARM & COUNTRY SUPPLIES LTD,09/08/2021 00:00,252387,38.68,FA0099,FARM & COUNTRY SUPPLIES LTD,30/8/2021 00:00:00,26/9/2021 00:00:00,P06-2022
P&V,LEE VALLEY FARM HOLYFIELDHALL,SUPPLIES AND SERVICES,DAIRY SUNDRIES,4138,P113857-SERVICE-Dead Animal Removal,13/9/2021 00:00:00,252561,178,MA0074,W MARTIN & SON LIMITED,30/8/2021 00:00:00,26/9/2021 00:00:00,P06-2022
P&V,LEE VALLEY FARM HOLYFIELDHALL,SUPPLIES AND SERVICES,DAIRY SUNDRIES,4138,P112946-SERVICE-Dead Animal Removal,09/08/2021 00:00,252562,52,MA0074,W MARTIN & SON LIMITED,30/8/2021 00:00:00,26/9/2021 00:00:00,P06-2022
P&V,LEE VALLEY FARM HOLYFIELDHALL,SUPPLIES AND SERVICES,DAIRY SUNDRIES,4138,P113486-SERVICE-Dairy Sundries,13/9/2021 00:00:00,252621,10.8,MI0023,MILL DAIRY SERVICES,30/8/2021 00:00:00,26/9/2021 00:00:00,P06-2022
P&V,LEE VALLEY FARM HOLYFIELDHALL,SUPPLIES AND SERVICES,DAIRY SUNDRIES,4138,P113481-SERVICE-Baled Sawdust,20/9/2021 00:00:00,252942,3648,NW0222,NW RESOURCES LTD,30/8/2021 00:00:00,26/9/2021 00:00:00,P06-2022
P&V,LEE VALLEY FARM HOLYFIELDHALL,SUPPLIES AND SERVICES,DAIRY SUNDRIES,4138,P113857-SERVICE-Dead Animal Removal,26/9/2021 00:00:00,253497,68,MA0074,W MARTIN & SON LIMITED,30/8/2021 00:00:00,26/9/2021 00:00:00,P06-2022
P&V,LEE VALLEY FARM HOLYFIELDHALL,SUPPLIES AND SERVICES,DAIRY SUNDRIES,4138,P114209-SERVICE-100 Gravel Bags,26/9/2021 00:00:00,253503,175,AR0460,ARK AGRICULTURE LTD,30/8/2021 00:00:00,26/9/2021 00:00:00,P06-2022
P&V,LEE VALLEY FARM HOLYFIELDHALL,SUPPLIES AND SERVICES,DAIRY SUNDRIES,4138,P111464-SERVICE-Dairy Sundries,26/9/2021 00:00:00,253565,33.22,MI0023,MILL DAIRY SERVICES,30/8/2021 00:00:00,26/9/2021 00:00:00,P06-2022
P&V,LEE VALLEY FARM HOLYFIELDHALL,SUPPLIES AND SERVICES,DAIRY SUNDRIES,4138,P111464-SERVICE-Dairy Sundries,26/9/2021 00:00:00,253566,10.8,MI0023,MILL DAIRY SERVICES,30/8/2021 00:00:00,26/9/2021 00:00:00,P06-2022
P&V,LEE VALLEY FARM HOLYFIELDHALL,SUPPLIES AND SERVICES,DAIRY SUNDRIES,4138,P114294-SERVICE-Dairy Sundries,26/9/2021 00:00:00,253567,348.05,MI0023,MILL DAIRY SERVICES,30/8/2021 00:00:00,26/9/2021 00:00:00,P06-2022
,LV HOCKEY AND TENNIS CENTRE,SUPPLIES AND SERVICES,FOOD AND DRINK PURCHASES,4140,BIDFOOD,13/9/2021 00:00:00,251929,18.75,360001,BIDFOOD,30/8/2021 00:00:00,26/9/2021 00:00:00,P06-2022
,LV HOCKEY AND TENNIS CENTRE,SUPPLIES AND SERVICES,FOOD AND DRINK PURCHASES,4140,BIDFOOD,13/9/2021 00:00:00,251929,-174.5,360001,BIDFOOD,30/8/2021 00:00:00,26/9/2021 00:00:00,P06-2022
,LV HOCKEY AND TENNIS CENTRE,SUPPLIES AND SERVICES,FOOD AND DRINK PURCHASES,4140,P114025-SERVICE-RESALE STOCK FOOD AND BEVERAGES,13/9/2021 00:00:00,251929,174.5,360001,BIDFOOD,30/8/2021 00:00:00,26/9/2021 00:00:00,P06-2022
,LV HOCKEY AND TENNIS CENTRE,SUPPLIES AND SERVICES,FOOD AND DRINK PURCHASES,4140,BIDFOOD,13/9/2021 00:00:00,251929,155.75,360001,BIDFOOD,30/8/2021 00:00:00,26/9/2021 00:00:00,P06-2022
,LEE VALLEY VELOPARK CATERING,SUPPLIES AND SERVICES,FOOD AND DRINK PURCHASES,4140,P113731-SERVICE-Sandwiches,09/06/2021 00:00,250784,32.47,SI0589,SIMPLY LUNCH LTD,30/8/2021 00:00:00,26/9/2021 00:00:00,P06-2022
,LEE VALLEY VELOPARK CATERING,SUPPLIES AND SERVICES,FOOD AND DRINK PURCHASES,4140,P113742-SERVICE-Cafe Food Products,09/06/2021 00:00,251118,547.4,360001,BIDFOOD,30/8/2021 00:00:00,26/9/2021 00:00:00,P06-2022
,LEE VALLEY VELOPARK CATERING,SUPPLIES AND SERVICES,FOOD AND DRINK PURCHASES,4140,P113761-SERVICE-Cafe Food Products,09/06/2021 00:00,251290,797.88,360001,BIDFOOD,30/8/2021 00:00:00,26/9/2021 00:00:00,P06-2022
,LEE VALLEY VELOPARK CATERING,SUPPLIES AND SERVICES,FOOD AND DRINK PURCHASES,4140,BIDFOOD,09/06/2021 00:00,251290,374.99,360001,BIDFOOD,30/8/2021 00:00:00,26/9/2021 00:00:00,P06-2022
,LEE VALLEY VELOPARK CATERING,SUPPLIES AND SERVICES,FOOD AND DRINK PURCHASES,4140,BIDFOOD,09/06/2021 00:00,251290,-797.88,360001,BIDFOOD,30/8/2021 00:00:00,26/9/2021 00:00:00,P06-2022
,LEE VALLEY VELOPARK CATERING,SUPPLIES AND SERVICES,FOOD AND DRINK PURCHASES,4140,BIDFOOD,09/06/2021 00:00,251290,422.89,360001,BIDFOOD,30/8/2021 00:00:00,26/9/2021 00:00:00,P06-2022
,LEE VALLEY VELOPARK CATERING,SUPPLIES AND SERVICES,FOOD AND DRINK PURCHASES,4140,BIDFOOD,13/9/2021 00:00:00,251447,-941.83,360001,BIDFOOD,30/8/2021 00:00:00,26/9/2021 00:00:00,P06-2022
,LEE VALLEY VELOPARK CATERING,SUPPLIES AND SERVICES,FOOD AND DRINK PURCHASES,4140,BIDFOOD,13/9/2021 00:00:00,251447,450.9,360001,BIDFOOD,30/8/2021 00:00:00,26/9/2021 00:00:00,P06-2022
,LEE VALLEY VELOPARK CATERING,SUPPLIES AND SERVICES,FOOD AND DRINK PURCHASES,4140,BIDFOOD,13/9/2021 00:00:00,251447,490.93,360001,BIDFOOD,30/8/2021 00:00:00,26/9/2021 00:00:00,P06-2022
,LEE VALLEY VELOPARK CATERING,SUPPLIES AND SERVICES,FOOD AND DRINK PURCHASES,4140,P114031-SERVICE-Food and Drinks Order,13/9/2021 00:00:00,251447,941.83,360001,BIDFOOD,30/8/2021 00:00:00,26/9/2021 00:00:00,P06-2022
,LEE VALLEY VELOPARK CATERING,SUPPLIES AND SERVICES,FOOD AND DRINK PURCHASES,4140,P113870-SERVICE-Food and Drink Order,09/06/2021 00:00,251842,2402.24,360001,BIDFOOD,30/8/2021 00:00:00,26/9/2021 00:00:00,P06-2022
,LEE VALLEY VELOPARK CATERING,SUPPLIES AND SERVICES,FOOD AND DRINK PURCHASES,4140,BIDFOOD,09/06/2021 00:00,251842,2281.38,360001,BIDFOOD,30/8/2021 00:00:00,26/9/2021 00:00:00,P06-2022
,LEE VALLEY VELOPARK CATERING,SUPPLIES AND SERVICES,FOOD AND DRINK PURCHASES,4140,BIDFOOD,09/06/2021 00:00,251842,-2402.24,360001,BIDFOOD,30/8/2021 00:00:00,26/9/2021 00:00:00,P06-2022
,LEE VALLEY VELOPARK CATERING,SUPPLIES AND SERVICES,FOOD AND DRINK PURCHASES,4140,BIDFOOD,09/06/2021 00:00,251842,120.86,360001,BIDFOOD,30/8/2021 00:00:00,26/9/2021 00:00:00,P06-2022
,LEE VALLEY VELOPARK CATERING,SUPPLIES AND SERVICES,FOOD AND DRINK PURCHASES,4140,P113870-SERVICE-Food and Drink Order,09/06/2021 00:00,251843,-347.6,360001,BIDFOOD,30/8/2021 00:00:00,26/9/2021 00:00:00,P06-2022
,LEE VALLEY VELOPARK CATERING,SUPPLIES AND SERVICES,FOOD AND DRINK PURCHASES,4140,BIDFOOD,09/06/2021 00:00,251844,1011.91,360001,BIDFOOD,30/8/2021 00:00:00,26/9/2021 00:00:00,P06-2022
,LEE VALLEY VELOPARK CATERING,SUPPLIES AND SERVICES,FOOD AND DRINK PURCHASES,4140,BIDFOOD,09/06/2021 00:00,251844,311.84,360001,BIDFOOD,30/8/2021 00:00:00,26/9/2021 00:00:00,P06-2022
,LEE VALLEY VELOPARK CATERING,SUPPLIES AND SERVICES,FOOD AND DRINK PURCHASES,4140,P113872-SERVICE-Food and Drink Order,09/06/2021 00:00,251844,1323.75,360001,BIDFOOD,30/8/2021 00:00:00,26/9/2021 00:00:00,P06-2022
,LEE VALLEY VELOPARK CATERING,SUPPLIES AND SERVICES,FOOD AND DRINK PURCHASES,4140,BIDFOOD,09/06/2021 00:00,251844,-1323.75,360001,BIDFOOD,30/8/2021 00:00:00,26/9/2021 00:00:00,P06-2022
,LEE VALLEY VELOPARK CATERING,SUPPLIES AND SERVICES,FOOD AND DRINK PURCHASES,4140,P113873-SERVICE-Drinks Order,09/06/2021 00:00,251846,71.16,360001,BIDFOOD,30/8/2021 00:00:00,26/9/2021 00:00:00,P06-2022
,LEE VALLEY VELOPARK CATERING,SUPPLIES AND SERVICES,FOOD AND DRINK PURCHASES,4140,P113874-SERVICE-Chopping Board,09/06/2021 00:00,251850,55,360001,BIDFOOD,30/8/2021 00:00:00,26/9/2021 00:00:00,P06-2022
,LEE VALLEY VELOPARK CATERING,SUPPLIES AND SERVICES,FOOD AND DRINK PURCHASES,4140,P113876-SERVICE-Food and Drink Order,09/06/2021 00:00,251854,1022.33,360001,BIDFOOD,30/8/2021 00:00:00,26/9/2021 00:00:00,P06-2022
,LEE VALLEY VELOPARK CATERING,SUPPLIES AND SERVICES,FOOD AND DRINK PURCHASES,4140,BIDFOOD,09/06/2021 00:00,251854,-1022.33,360001,BIDFOOD,30/8/2021 00:00:00,26/9/2021 00:00:00,P06-2022
,LEE VALLEY VELOPARK CATERING,SUPPLIES AND SERVICES,FOOD AND DRINK PURCHASES,4140,BIDFOOD,09/06/2021 00:00,251854,283.33,360001,BIDFOOD,30/8/2021 00:00:00,26/9/2021 00:00:00,P06-2022
,LEE VALLEY VELOPARK CATERING,SUPPLIES AND SERVICES,FOOD AND DRINK PURCHASES,4140,BIDFOOD,09/06/2021 00:00,251854,739,360001,BIDFOOD,30/8/2021 00:00:00,26/9/2021 00:00:00,P06-2022
,LEE VALLEY VELOPARK CATERING,SUPPLIES AND SERVICES,FOOD AND DRINK PURCHASES,4140,P113878-SERVICE-Sandwich Order,09/06/2021 00:00,251937,70.43,SI0589,SIMPLY LUNCH LTD,30/8/2021 00:00:00,26/9/2021 00:00:00,P06-2022
,LEE VALLEY VELOPARK CATERING,SUPPLIES AND SERVICES,FOOD AND DRINK PURCHASES,4140,P113876-SERVICE-Food and Drink Order,09/06/2021 00:00,251958,-7.97,360001,BIDFOOD,30/8/2021 00:00:00,26/9/2021 00:00:00,P06-2022
,LEE VALLEY VELOPARK CATERING,SUPPLIES AND SERVICES,FOOD AND DRINK PURCHASES,4140,P113883-SERVICE-Food and Drink Order,09/06/2021 00:00,252012,587.16,360001,BIDFOOD,30/8/2021 00:00:00,26/9/2021 00:00:00,P06-2022
,LEE VALLEY VELOPARK CATERING,SUPPLIES AND SERVICES,FOOD AND DRINK PURCHASES,4140,BIDFOOD,09/06/2021 00:00,252012,555.06,360001,BIDFOOD,30/8/2021 00:00:00,26/9/2021 00:00:00,P06-2022
,LEE VALLEY VELOPARK CATERING,SUPPLIES AND SERVICES,FOOD AND DRINK PURCHASES,4140,BIDFOOD,09/06/2021 00:00,252012,-587.16,360001,BIDFOOD,30/8/2021 00:00:00,26/9/2021 00:00:00,P06-2022
,LEE VALLEY VELOPARK CATERING,SUPPLIES AND SERVICES,FOOD AND DRINK PURCHASES,4140,BIDFOOD,09/06/2021 00:00,252012,32.1,360001,BIDFOOD,30/8/2021 00:00:00,26/9/2021 00:00:00,P06-2022
,LEE VALLEY VELOPARK CATERING,SUPPLIES AND SERVICES,FOOD AND DRINK PURCHASES,4140,P113910-SERVICE-Food and Drinks Order,09/06/2021 00:00,252193,1305.77,360001,BIDFOOD,30/8/2021 00:00:00,26/9/2021 00:00:00,P06-2022
,LEE VALLEY VELOPARK CATERING,SUPPLIES AND SERVICES,FOOD AND DRINK PURCHASES,4140,BIDFOOD,09/06/2021 00:00,252193,-1305.77,360001,BIDFOOD,30/8/2021 00:00:00,26/9/2021 00:00:00,P06-2022
,LEE VALLEY VELOPARK CATERING,SUPPLIES AND SERVICES,FOOD AND DRINK PURCHASES,4140,BIDFOOD,09/06/2021 00:00,252193,897.54,360001,BIDFOOD,30/8/2021 00:00:00,26/9/2021 00:00:00,P06-2022
,LEE VALLEY VELOPARK CATERING,SUPPLIES AND SERVICES,FOOD AND DRINK PURCHASES,4140,BIDFOOD,09/06/2021 00:00,252193,408.23,360001,BIDFOOD,30/8/2021 00:00:00,26/9/2021 00:00:00,P06-2022
,LEE VALLEY VELOPARK CATERING,SUPPLIES AND SERVICES,FOOD AND DRINK PURCHASES,4140,P113912-SERVICE-Food and Drink Order,09/06/2021 00:00,252208,63.64,SI0589,SIMPLY LUNCH LTD,30/8/2021 00:00:00,26/9/2021 00:00:00,P06-2022
,LEE VALLEY VELOPARK CATERING,SUPPLIES AND SERVICES,FOOD AND DRINK PURCHASES,4140,ROMBOUTS COFFEE GB LIMITED,09/06/2021 00:00,252363,210.6,RO0216,ROMBOUTS COFFEE GB LIMITED,30/8/2021 00:00:00,26/9/2021 00:00:00,P06-2022
,LEE VALLEY VELOPARK CATERING,SUPPLIES AND SERVICES,FOOD AND DRINK PURCHASES,4140,ROMBOUTS COFFEE GB LIMITED,09/06/2021 00:00,252363,317.54,RO0216,ROMBOUTS COFFEE GB LIMITED,30/8/2021 00:00:00,26/9/2021 00:00:00,P06-2022
,LEE VALLEY VELOPARK CATERING,SUPPLIES AND SERVICES,FOOD AND DRINK PURCHASES,4140,ROMBOUTS COFFEE GB LIMITED,09/06/2021 00:00,252363,-528.14,RO0216,ROMBOUTS COFFEE GB LIMITED,30/8/2021 00:00:00,26/9/2021 00:00:00,P06-2022
,LEE VALLEY VELOPARK CATERING,SUPPLIES AND SERVICES,FOOD AND DRINK PURCHASES,4140,P113916-SERVICE-Coffee Products,09/06/2021 00:00,252363,528.14,RO0216,ROMBOUTS COFFEE GB LIMITED,30/8/2021 00:00:00,26/9/2021 00:00:00,P06-2022
,LEE VALLEY VELOPARK CATERING,SUPPLIES AND SERVICES,FOOD AND DRINK PURCHASES,4140,P113919-SERVICE-Stocktaking,09/06/2021 00:00,252380,266,VE0038,VENNERS LTD,30/8/2021 00:00:00,26/9/2021 00:00:00,P06-2022
,LEE VALLEY VELOPARK CATERING,SUPPLIES AND SERVICES,FOOD AND DRINK PURCHASES,4140,P113921-SERVICE-Food Products,09/06/2021 00:00,252392,212.37,360001,BIDFOOD,30/8/2021 00:00:00,26/9/2021 00:00:00,P06-2022
,LEE VALLEY VELOPARK CATERING,SUPPLIES AND SERVICES,FOOD AND DRINK PURCHASES,4140,BIDFOOD,09/06/2021 00:00,252392,-212.37,360001,BIDFOOD,30/8/2021 00:00:00,26/9/2021 00:00:00,P06-2022
,LEE VALLEY VELOPARK CATERING,SUPPLIES AND SERVICES,FOOD AND DRINK PURCHASES,4140,BIDFOOD,09/06/2021 00:00,252392,51.71,360001,BIDFOOD,30/8/2021 00:00:00,26/9/2021 00:00:00,P06-2022
,LEE VALLEY VELOPARK CATERING,SUPPLIES AND SERVICES,FOOD AND DRINK PURCHASES,4140,BIDFOOD,09/06/2021 00:00,252392,160.66,360001,BIDFOOD,30/8/2021 00:00:00,26/9/2021 00:00:00,P06-2022
,LEE VALLEY VELOPARK CATERING,SUPPLIES AND SERVICES,FOOD AND DRINK PURCHASES,4140,P113924-SERVICE-Catering Services and Staff,09/06/2021 00:00,252444,818.75,SH0256,SHARRONS EVENT CATERING COMPANY LTD,30/8/2021 00:00:00,26/9/2021 00:00:00,P06-2022
,LEE VALLEY VELOPARK CATERING,SUPPLIES AND SERVICES,FOOD AND DRINK PURCHASES,4140,P114026-SERVICE-Food and Drink Order,20/9/2021 00:00:00,252491,133.77,SI0589,SIMPLY LUNCH LTD,30/8/2021 00:00:00,26/9/2021 00:00:00,P06-2022
,LEE VALLEY VELOPARK CATERING,SUPPLIES AND SERVICES,FOOD AND DRINK PURCHASES,4140,BIDFOOD,20/9/2021 00:00:00,252518,-560.38,360001,BIDFOOD,30/8/2021 00:00:00,26/9/2021 00:00:00,P06-2022
,LEE VALLEY VELOPARK CATERING,SUPPLIES AND SERVICES,FOOD AND DRINK PURCHASES,4140,P114172-SERVICE-Food and Drink Order,20/9/2021 00:00:00,252518,560.38,360001,BIDFOOD,30/8/2021 00:00:00,26/9/2021 00:00:00,P06-2022
,LEE VALLEY VELOPARK CATERING,SUPPLIES AND SERVICES,FOOD AND DRINK PURCHASES,4140,BIDFOOD,20/9/2021 00:00:00,252518,514.3,360001,BIDFOOD,30/8/2021 00:00:00,26/9/2021 00:00:00,P06-2022
,LEE VALLEY VELOPARK CATERING,SUPPLIES AND SERVICES,FOOD AND DRINK PURCHASES,4140,BIDFOOD,20/9/2021 00:00:00,252518,46.08,360001,BIDFOOD,30/8/2021 00:00:00,26/9/2021 00:00:00,P06-2022
,LEE VALLEY VELOPARK CATERING,SUPPLIES AND SERVICES,FOOD AND DRINK PURCHASES,4140,P113870-SERVICE-Food and Drink Order,20/9/2021 00:00:00,252677,-44.99,360001,BIDFOOD,30/8/2021 00:00:00,26/9/2021 00:00:00,P06-2022
,LEE VALLEY VELOPARK CATERING,SUPPLIES AND SERVICES,FOOD AND DRINK PURCHASES,4140,BIDFOOD,20/9/2021 00:00:00,252680,405.77,360001,BIDFOOD,30/8/2021 00:00:00,26/9/2021 00:00:00,P06-2022
,LEE VALLEY VELOPARK CATERING,SUPPLIES AND SERVICES,FOOD AND DRINK PURCHASES,4140,BIDFOOD,20/9/2021 00:00:00,252680,-565.64,360001,BIDFOOD,30/8/2021 00:00:00,26/9/2021 00:00:00,P06-2022
,LEE VALLEY VELOPARK CATERING,SUPPLIES AND SERVICES,FOOD AND DRINK PURCHASES,4140,BIDFOOD,20/9/2021 00:00:00,252680,159.87,360001,BIDFOOD,30/8/2021 00:00:00,26/9/2021 00:00:00,P06-2022
,LEE VALLEY VELOPARK CATERING,SUPPLIES AND SERVICES,FOOD AND DRINK PURCHASES,4140,P114174-SERVICE-Food and Drink Order,20/9/2021 00:00:00,252680,565.64,360001,BIDFOOD,30/8/2021 00:00:00,26/9/2021 00:00:00,P06-2022
,LEE VALLEY VELOPARK CATERING,SUPPLIES AND SERVICES,FOOD AND DRINK PURCHASES,4140,P114173-SERVICE-Coffee Beans,20/9/2021 00:00:00,252896,126.36,RO0216,ROMBOUTS COFFEE GB LIMITED,30/8/2021 00:00:00,26/9/2021 00:00:00,P06-2022
,LV HOCKEY AND TENNIS CATERING,SUPPLIES AND SERVICES,FOOD AND DRINK PURCHASES,4140,BIDFOOD,24/9/2021 00:00:00,252674,-550.34,360001,BIDFOOD,30/8/2021 00:00:00,26/9/2021 00:00:00,P06-2022
,LV HOCKEY AND TENNIS CATERING,SUPPLIES AND SERVICES,FOOD AND DRINK PURCHASES,4140,BIDFOOD,24/9/2021 00:00:00,252674,375.86,360001,BIDFOOD,30/8/2021 00:00:00,26/9/2021 00:00:00,P06-2022
,LV HOCKEY AND TENNIS CATERING,SUPPLIES AND SERVICES,FOOD AND DRINK PURCHASES,4140,BIDFOOD,24/9/2021 00:00:00,252674,174.48,360001,BIDFOOD,30/8/2021 00:00:00,26/9/2021 00:00:00,P06-2022
,LV HOCKEY AND TENNIS CATERING,SUPPLIES AND SERVICES,FOOD AND DRINK PURCHASES,4140,P114249-SERVICE-food and drink purchases,24/9/2021 00:00:00,252674,550.34,360001,BIDFOOD,30/8/2021 00:00:00,26/9/2021 00:00:00,P06-2022
,LV HOCKEY AND TENNIS CATERING,SUPPLIES AND SERVICES,FOOD AND DRINK PURCHASES,4140,P114249-SERVICE-food and drink purchases,24/9/2021 00:00:00,253184,929.14,360001,BIDFOOD,30/8/2021 00:00:00,26/9/2021 00:00:00,P06-2022
,LV HOCKEY AND TENNIS CATERING,SUPPLIES AND SERVICES,FOOD AND DRINK PURCHASES,4140,BIDFOOD,24/9/2021 00:00:00,253184,-929.14,360001,BIDFOOD,30/8/2021 00:00:00,26/9/2021 00:00:00,P06-2022
,LV HOCKEY AND TENNIS CATERING,SUPPLIES AND SERVICES,FOOD AND DRINK PURCHASES,4140,BIDFOOD,24/9/2021 00:00:00,253184,717.69,360001,BIDFOOD,30/8/2021 00:00:00,26/9/2021 00:00:00,P06-2022
,LV HOCKEY AND TENNIS CATERING,SUPPLIES AND SERVICES,FOOD AND DRINK PURCHASES,4140,BIDFOOD,24/9/2021 00:00:00,253184,211.45,360001,BIDFOOD,30/8/2021 00:00:00,26/9/2021 00:00:00,P06-2022
,LV HOCKEY AND TENNIS CATERING,SUPPLIES AND SERVICES,FOOD AND DRINK PURCHASES,4140,P114249-SERVICE-food and drink purchases,24/9/2021 00:00:00,253353,-13.45,360001,BIDFOOD,30/8/2021 00:00:00,26/9/2021 00:00:00,P06-2022
,LV WHITE WATER CATERING,SUPPLIES AND SERVICES,FOOD AND DRINK PURCHASES,4140,BIDFOOD,20/9/2021 00:00:00,251910,759.23,360001,BIDFOOD,30/8/2021 00:00:00,26/9/2021 00:00:00,P06-2022
,LV WHITE WATER CATERING,SUPPLIES AND SERVICES,FOOD AND DRINK PURCHASES,4140,BIDFOOD,20/9/2021 00:00:00,251910,874.54,360001,BIDFOOD,30/8/2021 00:00:00,26/9/2021 00:00:00,P06-2022
,LV WHITE WATER CATERING,SUPPLIES AND SERVICES,FOOD AND DRINK PURCHASES,4140,BIDFOOD,20/9/2021 00:00:00,251910,-1633.77,360001,BIDFOOD,30/8/2021 00:00:00,26/9/2021 00:00:00,P06-2022
,LV WHITE WATER CATERING,SUPPLIES AND SERVICES,FOOD AND DRINK PURCHASES,4140,P113762-SERVICE-front of house food,20/9/2021 00:00:00,251910,1633.77,360001,BIDFOOD,30/8/2021 00:00:00,26/9/2021 00:00:00,P06-2022
,LV WHITE WATER CATERING,SUPPLIES AND SERVICES,FOOD AND DRINK PURCHASES,4140,P113567-SERVICE-sandwiches,20/9/2021 00:00:00,252003,650.74,AN0324,ANCHOR CATERING,30/8/2021 00:00:00,26/9/2021 00:00:00,P06-2022
,LV WHITE WATER CATERING,SUPPLIES AND SERVICES,FOOD AND DRINK PURCHASES,4140,BIDFOOD,09/06/2021 00:00,252194,370.11,360001,BIDFOOD,30/8/2021 00:00:00,26/9/2021 00:00:00,P06-2022
,LV WHITE WATER CATERING,SUPPLIES AND SERVICES,FOOD AND DRINK PURCHASES,4140,BIDFOOD,09/06/2021 00:00,252194,-381.03,360001,BIDFOOD,30/8/2021 00:00:00,26/9/2021 00:00:00,P06-2022
,LV WHITE WATER CATERING,SUPPLIES AND SERVICES,FOOD AND DRINK PURCHASES,4140,BIDFOOD,09/06/2021 00:00,252194,10.92,360001,BIDFOOD,30/8/2021 00:00:00,26/9/2021 00:00:00,P06-2022
,LV WHITE WATER CATERING,SUPPLIES AND SERVICES,FOOD AND DRINK PURCHASES,4140,P113696-SERVICE-kitchen food,09/06/2021 00:00,252194,381.03,360001,BIDFOOD,30/8/2021 00:00:00,26/9/2021 00:00:00,P06-2022
,LV WHITE WATER CATERING,SUPPLIES AND SERVICES,FOOD AND DRINK PURCHASES,4140,P114169-SERVICE-drinks 10/09,20/9/2021 00:00:00,252321,611.93,DA0268,DAYLA DRINKS,30/8/2021 00:00:00,26/9/2021 00:00:00,P06-2022
,LV WHITE WATER CATERING,SUPPLIES AND SERVICES,FOOD AND DRINK PURCHASES,4140,P113760-SERVICE-sandwich bags,09/06/2021 00:00,252354,105.1,CA0585,CAFE CONNECTIONS,30/8/2021 00:00:00,26/9/2021 00:00:00,P06-2022
,LV WHITE WATER CATERING,SUPPLIES AND SERVICES,FOOD AND DRINK PURCHASES,4140,P113646-SERVICE-coffee beans,09/07/2021 00:00,252378,-17.49,RO0216,ROMBOUTS COFFEE GB LIMITED,30/8/2021 00:00:00,26/9/2021 00:00:00,P06-2022
,LV WHITE WATER CATERING,SUPPLIES AND SERVICES,FOOD AND DRINK PURCHASES,4140,P113696-SERVICE-kitchen food,09/06/2021 00:00,252389,-2.7,360001,BIDFOOD,30/8/2021 00:00:00,26/9/2021 00:00:00,P06-2022
,LV WHITE WATER CATERING,SUPPLIES AND SERVICES,FOOD AND DRINK PURCHASES,4140,P113814-SERVICE-milk,09/06/2021 00:00,252391,157.5,360001,BIDFOOD,30/8/2021 00:00:00,26/9/2021 00:00:00,P06-2022
,LV WHITE WATER CATERING,SUPPLIES AND SERVICES,FOOD AND DRINK PURCHASES,4140,P113825-SERVICE-kitchen food 3008,09/06/2021 00:00,252393,677.54,360001,BIDFOOD,30/8/2021 00:00:00,26/9/2021 00:00:00,P06-2022
,LV WHITE WATER CATERING,SUPPLIES AND SERVICES,FOOD AND DRINK PURCHASES,4140,P113695-SERVICE-sandwiches,09/06/2021 00:00,252401,726.89,AN0324,ANCHOR CATERING,30/8/2021 00:00:00,26/9/2021 00:00:00,P06-2022
,LV WHITE WATER CATERING,SUPPLIES AND SERVICES,FOOD AND DRINK PURCHASES,4140,P113817-SERVICE-Cups,09/06/2021 00:00,252416,274.36,CA0585,CAFE CONNECTIONS,30/8/2021 00:00:00,26/9/2021 00:00:00,P06-2022
,LV WHITE WATER CATERING,SUPPLIES AND SERVICES,FOOD AND DRINK PURCHASES,4140,P113818-SERVICE-coffee,09/06/2021 00:00,252437,437.34,RO0216,ROMBOUTS COFFEE GB LIMITED,30/8/2021 00:00:00,26/9/2021 00:00:00,P06-2022
,LV WHITE WATER CATERING,SUPPLIES AND SERVICES,FOOD AND DRINK PURCHASES,4140,ROMBOUTS COFFEE GB LIMITED,09/06/2021 00:00,252437,192,RO0216,ROMBOUTS COFFEE GB LIMITED,30/8/2021 00:00:00,26/9/2021 00:00:00,P06-2022
,LV WHITE WATER CATERING,SUPPLIES AND SERVICES,FOOD AND DRINK PURCHASES,4140,ROMBOUTS COFFEE GB LIMITED,09/06/2021 00:00,252437,-437.34,RO0216,ROMBOUTS COFFEE GB LIMITED,30/8/2021 00:00:00,26/9/2021 00:00:00,P06-2022
,LV WHITE WATER CATERING,SUPPLIES AND SERVICES,FOOD AND DRINK PURCHASES,4140,ROMBOUTS COFFEE GB LIMITED,09/06/2021 00:00,252437,245.34,RO0216,ROMBOUTS COFFEE GB LIMITED,30/8/2021 00:00:00,26/9/2021 00:00:00,P06-2022
,LV WHITE WATER CATERING,SUPPLIES AND SERVICES,FOOD AND DRINK PURCHASES,4140,BIDFOOD,20/9/2021 00:00:00,252451,525.25,360001,BIDFOOD,30/8/2021 00:00:00,26/9/2021 00:00:00,P06-2022
,LV WHITE WATER CATERING,SUPPLIES AND SERVICES,FOOD AND DRINK PURCHASES,4140,P113816-SERVICE-wc 300821,20/9/2021 00:00:00,252451,1156.19,360001,BIDFOOD,30/8/2021 00:00:00,26/9/2021 00:00:00,P06-2022
,LV WHITE WATER CATERING,SUPPLIES AND SERVICES,FOOD AND DRINK PURCHASES,4140,BIDFOOD,20/9/2021 00:00:00,252451,630.94,360001,BIDFOOD,30/8/2021 00:00:00,26/9/2021 00:00:00,P06-2022
,LV WHITE WATER CATERING,SUPPLIES AND SERVICES,FOOD AND DRINK PURCHASES,4140,BIDFOOD,20/9/2021 00:00:00,252451,-1156.19,360001,BIDFOOD,30/8/2021 00:00:00,26/9/2021 00:00:00,P06-2022
,LV WHITE WATER CATERING,SUPPLIES AND SERVICES,FOOD AND DRINK PURCHASES,4140,P113262-SERVICE-fridges meneded,09/07/2021 00:00,252468,307,MA0417,MARSTAN FACILITIES LTD,30/8/2021 00:00:00,26/9/2021 00:00:00,P06-2022
,LV WHITE WATER CATERING,SUPPLIES AND SERVICES,FOOD AND DRINK PURCHASES,4140,P113825-SERVICE-kitchen food 3008,20/9/2021 00:00:00,252516,424.13,360001,BIDFOOD,30/8/2021 00:00:00,26/9/2021 00:00:00,P06-2022
,LV WHITE WATER CATERING,SUPPLIES AND SERVICES,FOOD AND DRINK PURCHASES,4140,P113988-SERVICE-Ad hoc Bidfood order 07.09.21,20/9/2021 00:00:00,252516,26,360001,BIDFOOD,30/8/2021 00:00:00,26/9/2021 00:00:00,P06-2022
,LV WHITE WATER CATERING,SUPPLIES AND SERVICES,FOOD AND DRINK PURCHASES,4140,BIDFOOD,20/9/2021 00:00:00,252516,-26,360001,BIDFOOD,30/8/2021 00:00:00,26/9/2021 00:00:00,P06-2022
,LV WHITE WATER CATERING,SUPPLIES AND SERVICES,FOOD AND DRINK PURCHASES,4140,BIDFOOD,20/9/2021 00:00:00,252516,15.15,360001,BIDFOOD,30/8/2021 00:00:00,26/9/2021 00:00:00,P06-2022
,LV WHITE WATER CATERING,SUPPLIES AND SERVICES,FOOD AND DRINK PURCHASES,4140,BIDFOOD,20/9/2021 00:00:00,252516,10.85,360001,BIDFOOD,30/8/2021 00:00:00,26/9/2021 00:00:00,P06-2022
,LV WHITE WATER CATERING,SUPPLIES AND SERVICES,FOOD AND DRINK PURCHASES,4140,P113816-SERVICE-wc 300821,20/9/2021 00:00:00,252530,-14.99,360001,BIDFOOD,30/8/2021 00:00:00,26/9/2021 00:00:00,P06-2022
,LV WHITE WATER CATERING,SUPPLIES AND SERVICES,FOOD AND DRINK PURCHASES,4140,BIDFOOD,20/9/2021 00:00:00,252531,96.05,360001,BIDFOOD,30/8/2021 00:00:00,26/9/2021 00:00:00,P06-2022
,LV WHITE WATER CATERING,SUPPLIES AND SERVICES,FOOD AND DRINK PURCHASES,4140,BIDFOOD,20/9/2021 00:00:00,252531,-81.9,360001,BIDFOOD,30/8/2021 00:00:00,26/9/2021 00:00:00,P06-2022
,LV WHITE WATER CATERING,SUPPLIES AND SERVICES,FOOD AND DRINK PURCHASES,4140,BIDFOOD,20/9/2021 00:00:00,252531,-14.15,360001,BIDFOOD,30/8/2021 00:00:00,26/9/2021 00:00:00,P06-2022
,LV WHITE WATER CATERING,SUPPLIES AND SERVICES,FOOD AND DRINK PURCHASES,4140,P113816-SERVICE-wc 300821,20/9/2021 00:00:00,252531,-96.05,360001,BIDFOOD,30/8/2021 00:00:00,26/9/2021 00:00:00,P06-2022
,LV WHITE WATER CATERING,SUPPLIES AND SERVICES,FOOD AND DRINK PURCHASES,4140,P113825-SERVICE-kitchen food 3008,20/9/2021 00:00:00,252532,234.04,360001,BIDFOOD,30/8/2021 00:00:00,26/9/2021 00:00:00,P06-2022
,LV WHITE WATER CATERING,SUPPLIES AND SERVICES,FOOD AND DRINK PURCHASES,4140,P113823-SERVICE-sandwiches wc 300821,20/9/2021 00:00:00,252579,831.17,AN0324,ANCHOR CATERING,30/8/2021 00:00:00,26/9/2021 00:00:00,P06-2022
,LV WHITE WATER CATERING,SUPPLIES AND SERVICES,FOOD AND DRINK PURCHASES,4140,P113825-SERVICE-kitchen food 3008,20/9/2021 00:00:00,252672,-290.51,360001,BIDFOOD,30/8/2021 00:00:00,26/9/2021 00:00:00,P06-2022
,LV WHITE WATER CATERING,SUPPLIES AND SERVICES,FOOD AND DRINK PURCHASES,4140,P113825-SERVICE-kitchen food 3008,20/9/2021 00:00:00,252675,-45.2,360001,BIDFOOD,30/8/2021 00:00:00,26/9/2021 00:00:00,P06-2022
,LV WHITE WATER CATERING,SUPPLIES AND SERVICES,FOOD AND DRINK PURCHASES,4140,P113820-SERVICE-front of house wc 060921,20/9/2021 00:00:00,252676,109.2,360001,BIDFOOD,30/8/2021 00:00:00,26/9/2021 00:00:00,P06-2022
,LV WHITE WATER CATERING,SUPPLIES AND SERVICES,FOOD AND DRINK PURCHASES,4140,BIDFOOD,20/9/2021 00:00:00,252864,550.73,360001,BIDFOOD,30/8/2021 00:00:00,26/9/2021 00:00:00,P06-2022
,LV WHITE WATER CATERING,SUPPLIES AND SERVICES,FOOD AND DRINK PURCHASES,4140,BIDFOOD,20/9/2021 00:00:00,252864,-877.47,360001,BIDFOOD,30/8/2021 00:00:00,26/9/2021 00:00:00,P06-2022
,LV WHITE WATER CATERING,SUPPLIES AND SERVICES,FOOD AND DRINK PURCHASES,4140,BIDFOOD,20/9/2021 00:00:00,252864,326.74,360001,BIDFOOD,30/8/2021 00:00:00,26/9/2021 00:00:00,P06-2022
,LV WHITE WATER CATERING,SUPPLIES AND SERVICES,FOOD AND DRINK PURCHASES,4140,P113988-SERVICE-Ad hoc Bidfood order 07.09.21,20/9/2021 00:00:00,252864,877.47,360001,BIDFOOD,30/8/2021 00:00:00,26/9/2021 00:00:00,P06-2022
,LV WHITE WATER CATERING,SUPPLIES AND SERVICES,FOOD AND DRINK PURCHASES,4140,P113821-SERVICE-cups,20/9/2021 00:00:00,252881,460.58,CA0585,CAFE CONNECTIONS,30/8/2021 00:00:00,26/9/2021 00:00:00,P06-2022
,LV WHITE WATER CATERING,SUPPLIES AND SERVICES,FOOD AND DRINK PURCHASES,4140,ROMBOUTS COFFEE GB LIMITED,20/9/2021 00:00:00,252888,64,RO0216,ROMBOUTS COFFEE GB LIMITED,30/8/2021 00:00:00,26/9/2021 00:00:00,P06-2022
,LV WHITE WATER CATERING,SUPPLIES AND SERVICES,FOOD AND DRINK PURCHASES,4140,ROMBOUTS COFFEE GB LIMITED,20/9/2021 00:00:00,252888,571.82,RO0216,ROMBOUTS COFFEE GB LIMITED,30/8/2021 00:00:00,26/9/2021 00:00:00,P06-2022
,LV WHITE WATER CATERING,SUPPLIES AND SERVICES,FOOD AND DRINK PURCHASES,4140,P113822-SERVICE-coffee,20/9/2021 00:00:00,252888,635.82,RO0216,ROMBOUTS COFFEE GB LIMITED,30/8/2021 00:00:00,26/9/2021 00:00:00,P06-2022
,LV WHITE WATER CATERING,SUPPLIES AND SERVICES,FOOD AND DRINK PURCHASES,4140,ROMBOUTS COFFEE GB LIMITED,20/9/2021 00:00:00,252888,-635.82,RO0216,ROMBOUTS COFFEE GB LIMITED,30/8/2021 00:00:00,26/9/2021 00:00:00,P06-2022
,LV WHITE WATER CATERING,SUPPLIES AND SERVICES,FOOD AND DRINK PURCHASES,4140,P113828-SERVICE-kiychen food wc 0609,20/9/2021 00:00:00,252901,500,360001,BIDFOOD,30/8/2021 00:00:00,26/9/2021 00:00:00,P06-2022
,LV WHITE WATER CATERING,SUPPLIES AND SERVICES,FOOD AND DRINK PURCHASES,4140,P113988-SERVICE-Ad hoc Bidfood order 07.09.21,20/9/2021 00:00:00,252901,72.2,360001,BIDFOOD,30/8/2021 00:00:00,26/9/2021 00:00:00,P06-2022
,LV WHITE WATER CATERING,SUPPLIES AND SERVICES,FOOD AND DRINK PURCHASES,4140,P113820-SERVICE-front of house wc 060921,20/9/2021 00:00:00,252951,-109.2,360001,BIDFOOD,30/8/2021 00:00:00,26/9/2021 00:00:00,P06-2022
,LV WHITE WATER CATERING,SUPPLIES AND SERVICES,FOOD AND DRINK PURCHASES,4140,P113831-SERVICE-drinks,20/9/2021 00:00:00,252953,499.32,DA0268,DAYLA DRINKS,30/8/2021 00:00:00,26/9/2021 00:00:00,P06-2022
,LV WHITE WATER CATERING,SUPPLIES AND SERVICES,FOOD AND DRINK PURCHASES,4140,P114146-SERVICE-kitchen food,20/9/2021 00:00:00,253118,398.22,360001,BIDFOOD,30/8/2021 00:00:00,26/9/2021 00:00:00,P06-2022
,LV WHITE WATER CATERING,SUPPLIES AND SERVICES,FOOD AND DRINK PURCHASES,4140,P114133-SERVICE-CUOS LIDS,20/9/2021 00:00:00,253150,322.11,CA0585,CAFE CONNECTIONS,30/8/2021 00:00:00,26/9/2021 00:00:00,P06-2022
,LV WHITE WATER CATERING,SUPPLIES AND SERVICES,FOOD AND DRINK PURCHASES,4140,P113827-SERVICE-sandwiches wc 0609,20/9/2021 00:00:00,253154,788.15,AN0324,ANCHOR CATERING,30/8/2021 00:00:00,26/9/2021 00:00:00,P06-2022
,LV WHITE WATER CATERING,SUPPLIES AND SERVICES,FOOD AND DRINK PURCHASES,4140,ROMBOUTS COFFEE GB LIMITED,21/9/2021 00:00:00,253202,64,RO0216,ROMBOUTS COFFEE GB LIMITED,30/8/2021 00:00:00,26/9/2021 00:00:00,P06-2022
,LV WHITE WATER CATERING,SUPPLIES AND SERVICES,FOOD AND DRINK PURCHASES,4140,ROMBOUTS COFFEE GB LIMITED,21/9/2021 00:00:00,253202,189.54,RO0216,ROMBOUTS COFFEE GB LIMITED,30/8/2021 00:00:00,26/9/2021 00:00:00,P06-2022
,LV WHITE WATER CATERING,SUPPLIES AND SERVICES,FOOD AND DRINK PURCHASES,4140,ROMBOUTS COFFEE GB LIMITED,21/9/2021 00:00:00,253202,-253.54,RO0216,ROMBOUTS COFFEE GB LIMITED,30/8/2021 00:00:00,26/9/2021 00:00:00,P06-2022
,LV WHITE WATER CATERING,SUPPLIES AND SERVICES,FOOD AND DRINK PURCHASES,4140,P114134-SERVICE-COFFEE,21/9/2021 00:00:00,253202,253.54,RO0216,ROMBOUTS COFFEE GB LIMITED,30/8/2021 00:00:00,26/9/2021 00:00:00,P06-2022
,LV WHITE WATER CATERING,SUPPLIES AND SERVICES,FOOD AND DRINK PURCHASES,4140,P114132-SERVICE-TILL ROLLS,20/9/2021 00:00:00,253213,144.29,TH0008,JKL SOLUTIONS LTD,30/8/2021 00:00:00,26/9/2021 00:00:00,P06-2022
,LV WHITE WATER CATERING,SUPPLIES AND SERVICES,FOOD AND DRINK PURCHASES,4140,BIDFOOD,20/9/2021 00:00:00,253231,77.58,360001,BIDFOOD,30/8/2021 00:00:00,26/9/2021 00:00:00,P06-2022
,LV WHITE WATER CATERING,SUPPLIES AND SERVICES,FOOD AND DRINK PURCHASES,4140,P114146-SERVICE-kitchen food,20/9/2021 00:00:00,253231,461.78,360001,BIDFOOD,30/8/2021 00:00:00,26/9/2021 00:00:00,P06-2022
,LV WHITE WATER CATERING,SUPPLIES AND SERVICES,FOOD AND DRINK PURCHASES,4140,P113793-SERVICE-function food,20/9/2021 00:00:00,253231,111.28,360001,BIDFOOD,30/8/2021 00:00:00,26/9/2021 00:00:00,P06-2022
,LV WHITE WATER CATERING,SUPPLIES AND SERVICES,FOOD AND DRINK PURCHASES,4140,P113816-SERVICE-wc 300821,20/9/2021 00:00:00,253231,261.95,360001,BIDFOOD,30/8/2021 00:00:00,26/9/2021 00:00:00,P06-2022
,LV WHITE WATER CATERING,SUPPLIES AND SERVICES,FOOD AND DRINK PURCHASES,4140,P113988-SERVICE-Ad hoc Bidfood order 07.09.21,20/9/2021 00:00:00,253231,24.33,360001,BIDFOOD,30/8/2021 00:00:00,26/9/2021 00:00:00,P06-2022
,LV WHITE WATER CATERING,SUPPLIES AND SERVICES,FOOD AND DRINK PURCHASES,4140,BIDFOOD,20/9/2021 00:00:00,253231,-111.28,360001,BIDFOOD,30/8/2021 00:00:00,26/9/2021 00:00:00,P06-2022
,LV WHITE WATER CATERING,SUPPLIES AND SERVICES,FOOD AND DRINK PURCHASES,4140,BIDFOOD,20/9/2021 00:00:00,253231,33.7,360001,BIDFOOD,30/8/2021 00:00:00,26/9/2021 00:00:00,P06-2022
,LV WHITE WATER CATERING,SUPPLIES AND SERVICES,FOOD AND DRINK PURCHASES,4140,P114167-SERVICE-drinks,24/9/2021 00:00:00,253306,403.69,DA0268,DAYLA DRINKS,30/8/2021 00:00:00,26/9/2021 00:00:00,P06-2022
,LV WHITE WATER CATERING,SUPPLIES AND SERVICES,FOOD AND DRINK PURCHASES,4140,P114201-SERVICE-kitchen food,26/9/2021 00:00:00,253352,836.43,360001,BIDFOOD,30/8/2021 00:00:00,26/9/2021 00:00:00,P06-2022
,LV WHITE WATER CATERING,SUPPLIES AND SERVICES,FOOD AND DRINK PURCHASES,4140,BIDFOOD,26/9/2021 00:00:00,253352,-836.43,360001,BIDFOOD,30/8/2021 00:00:00,26/9/2021 00:00:00,P06-2022
,LV WHITE WATER CATERING,SUPPLIES AND SERVICES,FOOD AND DRINK PURCHASES,4140,BIDFOOD,26/9/2021 00:00:00,253352,824.22,360001,BIDFOOD,30/8/2021 00:00:00,26/9/2021 00:00:00,P06-2022
,LV WHITE WATER CATERING,SUPPLIES AND SERVICES,FOOD AND DRINK PURCHASES,4140,BIDFOOD,26/9/2021 00:00:00,253352,12.21,360001,BIDFOOD,30/8/2021 00:00:00,26/9/2021 00:00:00,P06-2022
,LV WHITE WATER CATERING,SUPPLIES AND SERVICES,FOOD AND DRINK PURCHASES,4140,P114273-SERVICE-disposables,26/9/2021 00:00:00,253539,868.72,CA0585,CAFE CONNECTIONS,30/8/2021 00:00:00,26/9/2021 00:00:00,P06-2022
CEO,PR/COMMUNICATIONS,SUPPLIES AND SERVICES,CLOTHING & UNIFORMS,4225,P114049-SERVICE-Names badges x 15 + P&P,26/9/2021 00:00:00,253525,106.5,RE0055,RECOGNITION EXPRESS THAMES VALLEY,30/8/2021 00:00:00,26/9/2021 00:00:00,P06-2022
P&V,MYDDELTON HOUSE GARDENS,SUPPLIES AND SERVICES,CLOTHING & UNIFORMS,4225,DIRECT BOOT & SHOE SUPPLIES,26/9/2021 00:00:00,253341,-32.97,DI0017,DIRECT BOOT & SHOE SUPPLIES,30/8/2021 00:00:00,26/9/2021 00:00:00,P06-2022
P&V,MYDDELTON HOUSE GARDENS,SUPPLIES AND SERVICES,CLOTHING & UNIFORMS,4225,DIRECT BOOT & SHOE SUPPLIES,26/9/2021 00:00:00,253341,24.99,DI0017,DIRECT BOOT & SHOE SUPPLIES,30/8/2021 00:00:00,26/9/2021 00:00:00,P06-2022
P&V,MYDDELTON HOUSE GARDENS,SUPPLIES AND SERVICES,CLOTHING & UNIFORMS,4225,DIRECT BOOT & SHOE SUPPLIES,26/9/2021 00:00:00,253341,7.98,DI0017,DIRECT BOOT & SHOE SUPPLIES,30/8/2021 00:00:00,26/9/2021 00:00:00,P06-2022
P&V,MYDDELTON HOUSE GARDENS,SUPPLIES AND SERVICES,CLOTHING & UNIFORMS,4225,P114113-SERVICE-Protective Boots (footwear),26/9/2021 00:00:00,253341,32.97,DI0017,DIRECT BOOT & SHOE SUPPLIES,30/8/2021 00:00:00,26/9/2021 00:00:00,P06-2022
P&V,MYDDELTON HOUSE GARDENS,SUPPLIES AND SERVICES,CLOTHING & UNIFORMS,4225,P114254-SERVICE-Protective boots(footwear) x 2,26/9/2021 00:00:00,253502,82.96,DI0017,DIRECT BOOT & SHOE SUPPLIES,30/8/2021 00:00:00,26/9/2021 00:00:00,P06-2022
P&V,SOUTH AREA RANGERS,SUPPLIES AND SERVICES,CLOTHING & UNIFORMS,4225,P113402-SERVICE-2x LW Op Trousers Long W40 - Black,09/08/2021 00:00,252188,42.5,IL0177,KEELA INTERNATION LTD,30/8/2021 00:00:00,26/9/2021 00:00:00,P06-2022
P&V,SOUTH AREA RANGERS,SUPPLIES AND SERVICES,CLOTHING & UNIFORMS,4225,P113402-SERVICE-1x LW Op Trousers Reg W36 - Black,09/08/2021 00:00,252188,21.25,IL0177,KEELA INTERNATION LTD,30/8/2021 00:00:00,26/9/2021 00:00:00,P06-2022
P&V,SOUTH AREA RANGERS,SUPPLIES AND SERVICES,CLOTHING & UNIFORMS,4225,P113402-SERVICE-3x Peru Cargo Trouser - Long W42 - Black,09/08/2021 00:00,252188,63.75,IL0177,KEELA INTERNATION LTD,30/8/2021 00:00:00,26/9/2021 00:00:00,P06-2022
P&V,SOUTH AREA RANGERS,SUPPLIES AND SERVICES,CLOTHING & UNIFORMS,4225,P113715-SERVICE-1x Husqvarna Technical Brushcutting Jacket,20/9/2021 00:00:00,252606,72.39,JO0109,F R JONES & SON,30/8/2021 00:00:00,26/9/2021 00:00:00,P06-2022
P&V,SOUTH AREA RANGERS,SUPPLIES AND SERVICES,CLOTHING & UNIFORMS,4225,P113715-SERVICE-5x Stihl Advance Ergo MS Work Gloves,20/9/2021 00:00:00,252606,83.35,JO0109,F R JONES & SON,30/8/2021 00:00:00,26/9/2021 00:00:00,P06-2022
P&V,RIVER LEE COUNTRY PARK,SUPPLIES AND SERVICES,CLOTHING & UNIFORMS,4225,P113402-SERVICE-2x LW Op Trousers Reg W34 - Black,09/08/2021 00:00,252188,42.5,IL0177,KEELA INTERNATION LTD,30/8/2021 00:00:00,26/9/2021 00:00:00,P06-2022
P&V,POLICY & PERFORMANCE (L&E),SUPPLIES AND SERVICES,CLOTHING & UNIFORMS,4225,P113752-SERVICE-Enbroidery of logo on Hoodie and waterproof j,13/9/2021 00:00:00,252189,14.97,DI0017,DIRECT BOOT & SHOE SUPPLIES,30/8/2021 00:00:00,26/9/2021 00:00:00,P06-2022
,LV LEISURE CENTRE GOLF COURSE,SUPPLIES AND SERVICES,CLOTHING & UNIFORMS,4225,P113832-SERVICE-Uniform,09/08/2021 00:00,252376,94.86,DI0017,DIRECT BOOT & SHOE SUPPLIES,30/8/2021 00:00:00,26/9/2021 00:00:00,P06-2022
,LEE VALLEY WHITE WATER CENTRE,SUPPLIES AND SERVICES,CLOTHING & UNIFORMS,4225,P112885-SERVICE-12 X SIMPLE VINYL CUT/SUB CHEST PRINT,13/9/2021 00:00:00,252578,60,PE0246,PEAK UK KAYAKING COMPANY LTD,30/8/2021 00:00:00,26/9/2021 00:00:00,P06-2022
,LEE VALLEY WHITE WATER CENTRE,SUPPLIES AND SERVICES,CLOTHING & UNIFORMS,4225,P112885-SERVICE-4 x TECWIK SHORTSLEEVED M,13/9/2021 00:00:00,252578,64.46,PE0246,PEAK UK KAYAKING COMPANY LTD,30/8/2021 00:00:00,26/9/2021 00:00:00,P06-2022
,LEE VALLEY WHITE WATER CENTRE,SUPPLIES AND SERVICES,CLOTHING & UNIFORMS,4225,P112885-SERVICE-2 X BAGZ SHORTS UNLINED S,13/9/2021 00:00:00,252578,35.92,PE0246,PEAK UK KAYAKING COMPANY LTD,30/8/2021 00:00:00,26/9/2021 00:00:00,P06-2022
,LEE VALLEY WHITE WATER CENTRE,SUPPLIES AND SERVICES,CLOTHING & UNIFORMS,4225,P112885-SERVICE-8 x TECWIK SHORTSLEEVED S,13/9/2021 00:00:00,252578,128.93,PE0246,PEAK UK KAYAKING COMPANY LTD,30/8/2021 00:00:00,26/9/2021 00:00:00,P06-2022
CEO,PR/COMMUNICATIONS,SUPPLIES AND SERVICES,OFFICE EXPENSES,4311,P114045-SERVICE-Letterheads and business cards,24/9/2021 00:00:00,253342,260,BE0505,BELMONT PRESS,30/8/2021 00:00:00,26/9/2021 00:00:00,P06-2022
P&V,"ASSET PROTECTION, MAINT, DEVEL",SUPPLIES AND SERVICES,OFFICE EXPENSES,4311,P114247-SERVICE-APMD Office Supplies,26/9/2021 00:00:00,253532,20.63,TH0008,JKL SOLUTIONS LTD,30/8/2021 00:00:00,26/9/2021 00:00:00,P06-2022
,LEE VALLEY MARINA SPRINGFIELD,SUPPLIES AND SERVICES,OFFICE EXPENSES,4311,P113605-SERVICE-To supply items as requested,26/9/2021 00:00:00,253531,107.74,TH0008,JKL SOLUTIONS LTD,30/8/2021 00:00:00,26/9/2021 00:00:00,P06-2022
,LEE VALLEY CAMPSITE,SUPPLIES AND SERVICES,OFFICE EXPENSES,4311,P114166-SERVICE-Stationery,20/9/2021 00:00:00,253131,75.97,TH0008,JKL SOLUTIONS LTD,30/8/2021 00:00:00,26/9/2021 00:00:00,P06-2022
P&V,YOUTH AND SCHOOLS,SUPPLIES AND SERVICES,OFFICE EXPENSES,4311,OFFICE KEY,09/06/2021 00:00,252160,7.5,FI0001,DIRECTOR OF FINANCE - CASH,30/8/2021 00:00:00,26/9/2021 00:00:00,P06-2022
P&V,YOUTH AND SCHOOLS,SUPPLIES AND SERVICES,OFFICE EXPENSES,4311,BATTERIES,09/06/2021 00:00,252160,6.67,FI0001,DIRECTOR OF FINANCE - CASH,30/8/2021 00:00:00,26/9/2021 00:00:00,P06-2022
P&V,YOUTH AND SCHOOLS,SUPPLIES AND SERVICES,OFFICE EXPENSES,4311,BATTERIES,09/06/2021 00:00,252160,6.67,FI0001,DIRECTOR OF FINANCE - CASH,30/8/2021 00:00:00,26/9/2021 00:00:00,P06-2022
P&V,YOUTH AND SCHOOLS,SUPPLIES AND SERVICES,OFFICE EXPENSES,4311,OFFICE KEYS,09/06/2021 00:00,252160,20.83,FI0001,DIRECTOR OF FINANCE - CASH,30/8/2021 00:00:00,26/9/2021 00:00:00,P06-2022
,LV HOCKEY AND TENNIS CENTRE,SUPPLIES AND SERVICES,OFFICE EXPENSES,4311,P114024-SERVICE-stocktaking,13/9/2021 00:00:00,252382,133,VE0038,VENNERS LTD,30/8/2021 00:00:00,26/9/2021 00:00:00,P06-2022
,LV HOCKEY AND TENNIS CENTRE,SUPPLIES AND SERVICES,OFFICE EXPENSES,4311,P113859-SERVICE-pdq thermal credit rolls x 2,13/9/2021 00:00:00,252521,31.6,TH0008,JKL SOLUTIONS LTD,30/8/2021 00:00:00,26/9/2021 00:00:00,P06-2022
,LV HOCKEY AND TENNIS CENTRE,SUPPLIES AND SERVICES,OFFICE EXPENSES,4311,P113859-SERVICE-couin bag pack of 5000,13/9/2021 00:00:00,252521,24.97,TH0008,JKL SOLUTIONS LTD,30/8/2021 00:00:00,26/9/2021 00:00:00,P06-2022
,LV HOCKEY AND TENNIS CENTRE,SUPPLIES AND SERVICES,OFFICE EXPENSES,4311,P113859-SERVICE-value x ball rubber grip blue,13/9/2021 00:00:00,252521,2.69,TH0008,JKL SOLUTIONS LTD,30/8/2021 00:00:00,26/9/2021 00:00:00,P06-2022
,LV HOCKEY AND TENNIS CENTRE,SUPPLIES AND SERVICES,OFFICE EXPENSES,4311,P113859-SERVICE-value x retractable ball pen rubber grip blk,13/9/2021 00:00:00,252521,2.57,TH0008,JKL SOLUTIONS LTD,30/8/2021 00:00:00,26/9/2021 00:00:00,P06-2022
,LV HOCKEY AND TENNIS CENTRE,SUPPLIES AND SERVICES,OFFICE EXPENSES,4311,P113859-SERVICE-value x rubber bands 75g,13/9/2021 00:00:00,252521,2.83,TH0008,JKL SOLUTIONS LTD,30/8/2021 00:00:00,26/9/2021 00:00:00,P06-2022
,LV HOCKEY AND TENNIS CENTRE,SUPPLIES AND SERVICES,OFFICE EXPENSES,4311,P113859-SERVICE-reliance medical hse 1 med 1 large,13/9/2021 00:00:00,252521,6.09,TH0008,JKL SOLUTIONS LTD,30/8/2021 00:00:00,26/9/2021 00:00:00,P06-2022
,LEE VALLEY RIDING CENTRE,SUPPLIES AND SERVICES,OFFICE EXPENSES,4311,P113940-SERVICE-dry white markers x 3,20/9/2021 00:00:00,253148,3.94,TH0008,JKL SOLUTIONS LTD,30/8/2021 00:00:00,26/9/2021 00:00:00,P06-2022
,LEE VALLEY RIDING CENTRE,SUPPLIES AND SERVICES,OFFICE EXPENSES,4311,P113940-SERVICE-expanding file,20/9/2021 00:00:00,253149,14.36,TH0008,JKL SOLUTIONS LTD,30/8/2021 00:00:00,26/9/2021 00:00:00,P06-2022
,LEE VALLEY RIDING CENTRE,SUPPLIES AND SERVICES,OFFICE EXPENSES,4311,P113940-SERVICE-eyewash,20/9/2021 00:00:00,253149,10.87,TH0008,JKL SOLUTIONS LTD,30/8/2021 00:00:00,26/9/2021 00:00:00,P06-2022
,LEE VALLEY RIDING CENTRE,SUPPLIES AND SERVICES,OFFICE EXPENSES,4311,P113940-SERVICE-reliance medical instant ice pack x2,20/9/2021 00:00:00,253149,38.48,TH0008,JKL SOLUTIONS LTD,30/8/2021 00:00:00,26/9/2021 00:00:00,P06-2022
,LEE VALLEY RIDING CENTRE,SUPPLIES AND SERVICES,OFFICE EXPENSES,4311,P113940-SERVICE-dry white markers x 3,20/9/2021 00:00:00,253149,0.02,TH0008,JKL SOLUTIONS LTD,30/8/2021 00:00:00,26/9/2021 00:00:00,P06-2022
,LEE VALLEY RIDING CENTRE,SUPPLIES AND SERVICES,OFFICE EXPENSES,4311,P113940-SERVICE-stapler plastic black x2,20/9/2021 00:00:00,253149,3.94,TH0008,JKL SOLUTIONS LTD,30/8/2021 00:00:00,26/9/2021 00:00:00,P06-2022
,LEE VALLEY RIDING CENTRE,SUPPLIES AND SERVICES,OFFICE EXPENSES,4311,P113940-SERVICE-prestiage thermal creditcard roll x2,20/9/2021 00:00:00,253149,31.6,TH0008,JKL SOLUTIONS LTD,30/8/2021 00:00:00,26/9/2021 00:00:00,P06-2022
,LEE VALLEY RIDING CENTRE,SUPPLIES AND SERVICES,OFFICE EXPENSES,4311,P113940-SERVICE-value scissors 6inch x2,20/9/2021 00:00:00,253149,1.08,TH0008,JKL SOLUTIONS LTD,30/8/2021 00:00:00,26/9/2021 00:00:00,P06-2022
,LEE VALLEY RIDING CENTRE,SUPPLIES AND SERVICES,OFFICE EXPENSES,4311,P114150-SERVICE-ValueX BALLPOINT BLACK PENS X2,20/9/2021 00:00:00,253214,4.54,TH0008,JKL SOLUTIONS LTD,30/8/2021 00:00:00,26/9/2021 00:00:00,P06-2022
,LEE VALLEY RIDING CENTRE,SUPPLIES AND SERVICES,OFFICE EXPENSES,4311,P114150-SERVICE-ALCOHOL PUMP HAND SANITISER X 5,20/9/2021 00:00:00,253214,9,TH0008,JKL SOLUTIONS LTD,30/8/2021 00:00:00,26/9/2021 00:00:00,P06-2022
,LEE VALLEY RIDING CENTRE,SUPPLIES AND SERVICES,OFFICE EXPENSES,4311,P114150-SERVICE-BLU TAK 12 PACK,20/9/2021 00:00:00,253214,13.39,TH0008,JKL SOLUTIONS LTD,30/8/2021 00:00:00,26/9/2021 00:00:00,P06-2022
,LEE VALLEY RIDING CENTRE,SUPPLIES AND SERVICES,OFFICE EXPENSES,4311,P114150-SERVICE-VALUEX SCISSORS,20/9/2021 00:00:00,253214,2.16,TH0008,JKL SOLUTIONS LTD,30/8/2021 00:00:00,26/9/2021 00:00:00,P06-2022
,LEE VALLEY RIDING CENTRE,SUPPLIES AND SERVICES,OFFICE EXPENSES,4311,P114150-SERVICE-DYMP PAPER TAPE X2,20/9/2021 00:00:00,253214,11.84,TH0008,JKL SOLUTIONS LTD,30/8/2021 00:00:00,26/9/2021 00:00:00,P06-2022
,LV LEISURE CENTRE CAMPSITE,SUPPLIES AND SERVICES,OFFICE EXPENSES,4311,LENDOBOX LTD,09/06/2021 00:00,251883,12.5,LE0456,LENDOBOX LTD,30/8/2021 00:00:00,26/9/2021 00:00:00,P06-2022
,LV LEISURE CENTRE CAMPSITE,SUPPLIES AND SERVICES,OFFICE EXPENSES,4311,LENDOBOX LTD,09/06/2021 00:00,251883,-207.5,LE0456,LENDOBOX LTD,30/8/2021 00:00:00,26/9/2021 00:00:00,P06-2022
,LV LEISURE CENTRE CAMPSITE,SUPPLIES AND SERVICES,OFFICE EXPENSES,4311,P113669-SERVICE-Gold Package,09/06/2021 00:00,251883,207.5,LE0456,LENDOBOX LTD,30/8/2021 00:00:00,26/9/2021 00:00:00,P06-2022
,LV LEISURE CENTRE CAMPSITE,SUPPLIES AND SERVICES,OFFICE EXPENSES,4311,LENDOBOX LTD,09/06/2021 00:00,251883,195,LE0456,LENDOBOX LTD,30/8/2021 00:00:00,26/9/2021 00:00:00,P06-2022
,LV LEISURE CENTRE CAMPSITE,SUPPLIES AND SERVICES,OFFICE EXPENSES,4311,P113802-SERVICE-stationary,09/06/2021 00:00,252384,34.45,TH0008,JKL SOLUTIONS LTD,30/8/2021 00:00:00,26/9/2021 00:00:00,P06-2022
,LV LEISURE CENTRE CAMPSITE,SUPPLIES AND SERVICES,OFFICE EXPENSES,4311,P113956-SERVICE-Logs,13/9/2021 00:00:00,252613,100,HA0371,HARTS OF OAK,30/8/2021 00:00:00,26/9/2021 00:00:00,P06-2022
,LV LEISURE CENTRE CAMPSITE,SUPPLIES AND SERVICES,OFFICE EXPENSES,4311,P114046-SERVICE-logs and charcoal,20/9/2021 00:00:00,253164,100,HA0371,HARTS OF OAK,30/8/2021 00:00:00,26/9/2021 00:00:00,P06-2022
,LV LEISURE CENTRE CAMPSITE,SUPPLIES AND SERVICES,OFFICE EXPENSES,4311,RIJO 42 INGREDIENTS LIMITED,26/9/2021 00:00:00,253228,137.76,RI0176,RIJO 42 INGREDIENTS LIMITED,30/8/2021 00:00:00,26/9/2021 00:00:00,P06-2022
,LV LEISURE CENTRE CAMPSITE,SUPPLIES AND SERVICES,OFFICE EXPENSES,4311,RIJO 42 INGREDIENTS LIMITED,26/9/2021 00:00:00,253228,-243.86,RI0176,RIJO 42 INGREDIENTS LIMITED,30/8/2021 00:00:00,26/9/2021 00:00:00,P06-2022
,LV LEISURE CENTRE CAMPSITE,SUPPLIES AND SERVICES,OFFICE EXPENSES,4311,P114198-SERVICE-Coffe machine supplies,26/9/2021 00:00:00,253228,243.86,RI0176,RIJO 42 INGREDIENTS LIMITED,30/8/2021 00:00:00,26/9/2021 00:00:00,P06-2022
,LV LEISURE CENTRE CAMPSITE,SUPPLIES AND SERVICES,OFFICE EXPENSES,4311,RIJO 42 INGREDIENTS LIMITED,26/9/2021 00:00:00,253228,106.1,RI0176,RIJO 42 INGREDIENTS LIMITED,30/8/2021 00:00:00,26/9/2021 00:00:00,P06-2022
,LV LEISURE CENTRE CAMPSITE,SUPPLIES AND SERVICES,OFFICE EXPENSES,4311,RIJO 42 INGREDIENTS LIMITED,26/9/2021 00:00:00,253258,-149.4,RI0176,RIJO 42 INGREDIENTS LIMITED,30/8/2021 00:00:00,26/9/2021 00:00:00,P06-2022
,LV LEISURE CENTRE CAMPSITE,SUPPLIES AND SERVICES,OFFICE EXPENSES,4311,P114199-SERVICE-Coffee machine supplies,26/9/2021 00:00:00,253258,149.4,RI0176,RIJO 42 INGREDIENTS LIMITED,30/8/2021 00:00:00,26/9/2021 00:00:00,P06-2022
,LV LEISURE CENTRE CAMPSITE,SUPPLIES AND SERVICES,OFFICE EXPENSES,4311,RIJO 42 INGREDIENTS LIMITED,26/9/2021 00:00:00,253258,94.5,RI0176,RIJO 42 INGREDIENTS LIMITED,30/8/2021 00:00:00,26/9/2021 00:00:00,P06-2022
,LV LEISURE CENTRE CAMPSITE,SUPPLIES AND SERVICES,OFFICE EXPENSES,4311,RIJO 42 INGREDIENTS LIMITED,26/9/2021 00:00:00,253258,54.9,RI0176,RIJO 42 INGREDIENTS LIMITED,30/8/2021 00:00:00,26/9/2021 00:00:00,P06-2022
,LEE VALLEY ATHLETICS CENTRE,SUPPLIES AND SERVICES,OFFICE EXPENSES,4311,JKL SOLUTIONS LTD,20/9/2021 00:00:00,252520,-95.75,TH0008,JKL SOLUTIONS LTD,30/8/2021 00:00:00,26/9/2021 00:00:00,P06-2022
,LEE VALLEY ATHLETICS CENTRE,SUPPLIES AND SERVICES,OFFICE EXPENSES,4311,JKL SOLUTIONS LTD,20/9/2021 00:00:00,252520,41.84,TH0008,JKL SOLUTIONS LTD,30/8/2021 00:00:00,26/9/2021 00:00:00,P06-2022
,LEE VALLEY ATHLETICS CENTRE,SUPPLIES AND SERVICES,OFFICE EXPENSES,4311,JKL SOLUTIONS LTD,20/9/2021 00:00:00,252520,53.91,TH0008,JKL SOLUTIONS LTD,30/8/2021 00:00:00,26/9/2021 00:00:00,P06-2022
,LEE VALLEY ATHLETICS CENTRE,SUPPLIES AND SERVICES,OFFICE EXPENSES,4311,P113858-SERVICE-LVAC ONLINE ORDER 10002533191,20/9/2021 00:00:00,252520,95.75,TH0008,JKL SOLUTIONS LTD,30/8/2021 00:00:00,26/9/2021 00:00:00,P06-2022
,LEE VALLEY WHITE WATER CENTRE,SUPPLIES AND SERVICES,OFFICE EXPENSES,4311,P113581-SERVICE-A4 and A3 paper,09/06/2021 00:00,252184,34.62,TH0008,JKL SOLUTIONS LTD,30/8/2021 00:00:00,26/9/2021 00:00:00,P06-2022
,LEE VALLEY WHITE WATER CENTRE,SUPPLIES AND SERVICES,OFFICE EXPENSES,4311,P114182-SERVICE-Guillotine,24/9/2021 00:00:00,253285,28.97,AM0406,AMAZON PAYMENTS UK LIMITED,30/8/2021 00:00:00,26/9/2021 00:00:00,P06-2022
,LEE VALLEY WHITE WATER CENTRE,SUPPLIES AND SERVICES,OFFICE EXPENSES,4311,P114189-SERVICE-flip chart pads and marker pens,26/9/2021 00:00:00,253313,22.96,AM0406,AMAZON PAYMENTS UK LIMITED,30/8/2021 00:00:00,26/9/2021 00:00:00,P06-2022
,LEE VALLEY WHITE WATER CENTRE,SUPPLIES AND SERVICES,OFFICE EXPENSES,4311,P114189-SERVICE-flip chart pads and marker pens,26/9/2021 00:00:00,253314,9.68,AM0406,AMAZON PAYMENTS UK LIMITED,30/8/2021 00:00:00,26/9/2021 00:00:00,P06-2022
,LEE VALLEY WHITE WATER CENTRE,SUPPLIES AND SERVICES,OFFICE EXPENSES,4311,P114189-SERVICE-flip chart pads and marker pens,26/9/2021 00:00:00,253516,15.23,AM0406,AMAZON PAYMENTS UK LIMITED,30/8/2021 00:00:00,26/9/2021 00:00:00,P06-2022
,LEE VALLEY WHITE WATER CENTRE,SUPPLIES AND SERVICES,OFFICE EXPENSES,4311,P114189-SERVICE-flip chart pads and marker pens,26/9/2021 00:00:00,253518,9.72,AM0406,AMAZON PAYMENTS UK LIMITED,30/8/2021 00:00:00,26/9/2021 00:00:00,P06-2022
R&B,INFORMATION TECHNOLOGY,SUPPLIES AND SERVICES,PHOTOCOPYING,4314,KONICA MINOLTA BUSINESS SOLUTI,14/9/2021 00:00:00,252620,319.72,KO0071,KONICA MINOLTA BUSINESS SOLUTIONS ( UK) LTD,30/8/2021 00:00:00,26/9/2021 00:00:00,P06-2022
R&B,INFORMATION TECHNOLOGY,SUPPLIES AND SERVICES,PHOTOCOPYING,4314,KONICA MINOLTA BUSINESS SOLUTI,20/9/2021 00:00:00,252884,1566.78,KO0071,KONICA MINOLTA BUSINESS SOLUTIONS ( UK) LTD,30/8/2021 00:00:00,26/9/2021 00:00:00,P06-2022
,LEE VALLEY VELOPARK,SUPPLIES AND SERVICES,PHOTOCOPYING,4314,KONICA MINOLTA BUSINESS SOLUTI,13/9/2021 00:00:00,252033,101.07,KO0071,KONICA MINOLTA BUSINESS SOLUTIONS ( UK) LTD,30/8/2021 00:00:00,26/9/2021 00:00:00,P06-2022
,LEE VALLEY VELOPARK,SUPPLIES AND SERVICES,PHOTOCOPYING,4314,KONICA MINOLTA BUSINESS SOLUTI,13/9/2021 00:00:00,252034,27.89,KO0071,KONICA MINOLTA BUSINESS SOLUTIONS ( UK) LTD,30/8/2021 00:00:00,26/9/2021 00:00:00,P06-2022
,LSC INFORMATION TECHNOLOGY,SUPPLIES AND SERVICES,PHOTOCOPYING,4314,ANNODATA LTD,15/9/2021 00:00:00,252333,1151.6,AN0466,ANNODATA LTD,30/8/2021 00:00:00,26/9/2021 00:00:00,P06-2022
R&B,FINANCE & RESOURCES MANAGEMENT,SUPPLIES AND SERVICES,SUBSCRIPTIONS,4334,P113945-SERVICE-Sort code checker,09/06/2021 00:00,252438,173.25,RE0009,LNRS DATA SERVICES LIMITED (frmly Reed Busi),30/8/2021 00:00:00,26/9/2021 00:00:00,P06-2022
P&V,LEE VALLEY FARM HOLYFIELDHALL,SUPPLIES AND SERVICES,SUBSCRIPTIONS,4334,P113491-SERVICE-Subs,20/9/2021 00:00:00,253155,358.97,NA0005,NATIONAL MILK RECORDS PLC,30/8/2021 00:00:00,26/9/2021 00:00:00,P06-2022
P&V,YOUTH AND SCHOOLS,SUPPLIES AND SERVICES,POSTAGE & MAILING,4445,STAMPS,09/06/2021 00:00,252160,12.9,FI0001,DIRECTOR OF FINANCE - CASH,30/8/2021 00:00:00,26/9/2021 00:00:00,P06-2022
P&V,YOUTH AND SCHOOLS,SUPPLIES AND SERVICES,POSTAGE & MAILING,4445,POST,09/06/2021 00:00,252160,3.2,FI0001,DIRECTOR OF FINANCE - CASH,30/8/2021 00:00:00,26/9/2021 00:00:00,P06-2022
P&V,YOUTH AND SCHOOLS,SUPPLIES AND SERVICES,POSTAGE & MAILING,4445,POST,09/06/2021 00:00,252160,2.25,FI0001,DIRECTOR OF FINANCE - CASH,30/8/2021 00:00:00,26/9/2021 00:00:00,P06-2022
R&B,REVENUE SUSPENSE (AUTHORITY),SUPPLIES AND SERVICES,TELEPHONES (MOBILE),4484,GAMMA TELECOM LTD,20/9/2021 00:00:00,253104,706.95,GA0432,GAMMA TELECOM LTD,30/8/2021 00:00:00,26/9/2021 00:00:00,P06-2022
R&B,DEMOCRATIC REPRESENTATION & MA,SUPPLIES AND SERVICES,MEMBERS EXPENSES,4502,P113951-SERVICE-Docustar Annual Subscription,13/9/2021 00:00:00,252525,360,ME0034,MERLIN DOCUMENT MANAGEMENT SOLUTIONS,30/8/2021 00:00:00,26/9/2021 00:00:00,P06-2022
R&B,DEMOCRATIC REPRESENTATION & MA,SUPPLIES AND SERVICES,MEMBERS EXPENSES,4502,P113950-SERVICE-SSL Encryption Certificate Annual,13/9/2021 00:00:00,252526,150,ME0034,MERLIN DOCUMENT MANAGEMENT SOLUTIONS,30/8/2021 00:00:00,26/9/2021 00:00:00,P06-2022
R&B,DEMOCRATIC REPRESENTATION & MA,SUPPLIES AND SERVICES,MEMBERS VISITS,4503,P114128-SERVICE-Buggy Hire,20/9/2021 00:00:00,252880,800,OL0059,OLIVER LANDPOWER LIMITED,30/8/2021 00:00:00,26/9/2021 00:00:00,P06-2022
R&B,DEMOCRATIC REPRESENTATION & MA,SUPPLIES AND SERVICES,MEMBERS VISITS,4503,P114231-SERVICE-Minibus Hire on 30/09/21 - E20 3AD to E10 7QB,22/9/2021 00:00:00,253356,150,IN0204,ZERO TWO MANAGEMENT-INVESTRAVEL,30/8/2021 00:00:00,26/9/2021 00:00:00,P06-2022
,LEE VALLEY CARAVAN PARK,SUPPLIES AND SERVICES,MARKETING,4603,P113904-SERVICE-Stay safe flyers,09/06/2021 00:00,252174,49.8,SO0582,SOLOPRESS,30/8/2021 00:00:00,26/9/2021 00:00:00,P06-2022
,LEE VALLEY CARAVAN PARK,SUPPLIES AND SERVICES,MARKETING,4603,P110173-SERVICE-Warners Group,20/9/2021 00:00:00,253137,125,WA0063,WARNERS GROUP PUBLICATIONS PLC,30/8/2021 00:00:00,26/9/2021 00:00:00,P06-2022
,LEE VALLEY CARAVAN PARK,SUPPLIES AND SERVICES,MARKETING,4603,P114215-SERVICE-Site maps,20/9/2021 00:00:00,253218,28.89,SO0582,SOLOPRESS,30/8/2021 00:00:00,26/9/2021 00:00:00,P06-2022
,LEE VALLEY VELOPARK,SUPPLIES AND SERVICES,MARKETING,4603,P112208-SERVICE-Digital Ad Campaign,09/06/2021 00:00,251267,1941.98,ME0325,HONCHOM INTERNATIONAL LIMITED,30/8/2021 00:00:00,26/9/2021 00:00:00,P06-2022
,LEE VALLEY VELOPARK,SUPPLIES AND SERVICES,MARKETING,4603,"P113529-SERVICE-1,000 xA4 Full Colour Experience Certificates",09/06/2021 00:00,251953,186,PR0293,ELLE MEDIA GROUP,30/8/2021 00:00:00,26/9/2021 00:00:00,P06-2022
,LEE VALLEY VELOPARK,SUPPLIES AND SERVICES,MARKETING,4603,P113947-SERVICE-Advertising,13/9/2021 00:00:00,252365,1350,MO0421,MONOMAX LTD,30/8/2021 00:00:00,26/9/2021 00:00:00,P06-2022
,LEE VALLEY VELOPARK,SUPPLIES AND SERVICES,MARKETING,4603,P112208-SERVICE-Digital Ad Campaign,24/9/2021 00:00:00,252706,222.34,ME0325,HONCHOM INTERNATIONAL LIMITED,30/8/2021 00:00:00,26/9/2021 00:00:00,P06-2022
,LEE VALLEY VELOPARK,SUPPLIES AND SERVICES,MARKETING,4603,P113709-SERVICE-Artwork for TV Screens at VeloPark,20/9/2021 00:00:00,252894,160,TO0631,TOP FLOOR CREATIVE,30/8/2021 00:00:00,26/9/2021 00:00:00,P06-2022
,LV HOCKEY AND TENNIS CENTRE,SUPPLIES AND SERVICES,MARKETING,4603,P114149-SERVICE-250 leaflets,20/9/2021 00:00:00,252868,26,SO0582,SOLOPRESS,30/8/2021 00:00:00,26/9/2021 00:00:00,P06-2022
,LV LEISURE CENTRE CAMPSITE,SUPPLIES AND SERVICES,MARKETING,4603,P110214-SERVICE-12 month listeing,26/9/2021 00:00:00,253138,125,WA0063,WARNERS GROUP PUBLICATIONS PLC,30/8/2021 00:00:00,26/9/2021 00:00:00,P06-2022
,LV LEISURE CENTRE GOLF COURSE,SUPPLIES AND SERVICES,MARKETING,4603,"P113601-SERVICE-1,000 A5 2pp safety flyers.",09/06/2021 00:00,251955,32,SO0582,SOLOPRESS,30/8/2021 00:00:00,26/9/2021 00:00:00,P06-2022
,LV LEISURE CENTRE GOLF COURSE,SUPPLIES AND SERVICES,MARKETING,4603,P113572-SERVICE-enewletters for advertising,09/06/2021 00:00,252036,200,WA0063,WARNERS GROUP PUBLICATIONS PLC,30/8/2021 00:00:00,26/9/2021 00:00:00,P06-2022
,LEE VALLEY WHITE WATER CENTRE,SUPPLIES AND SERVICES,MARKETING,4603,P112217-SERVICE-Digital ad campaign to promote summer,09/06/2021 00:00,251268,4215.02,ME0325,HONCHOM INTERNATIONAL LIMITED,30/8/2021 00:00:00,26/9/2021 00:00:00,P06-2022
,LEE VALLEY WHITE WATER CENTRE,SUPPLIES AND SERVICES,MARKETING,4603,P112217-SERVICE-Digital ad campaign to promote summer,20/9/2021 00:00:00,252705,40.23,ME0325,HONCHOM INTERNATIONAL LIMITED,30/8/2021 00:00:00,26/9/2021 00:00:00,P06-2022
,LEE VALLEY WHITE WATER CENTRE,SUPPLIES AND SERVICES,MARKETING,4603,P112217-SERVICE-Digital ad campaign to promote summer,20/9/2021 00:00:00,252905,-40.23,ME0325,HONCHOM INTERNATIONAL LIMITED,30/8/2021 00:00:00,26/9/2021 00:00:00,P06-2022
P&V,SPORTS DEVELOPMENT GRANTS & AG,SUPPLIES AND SERVICES,MARKETING,4603,P113788-SERVICE-250 1pp A5 flyers 130gsm silk stock (Wheelcha,09/07/2021 00:00,252350,26,SO0582,SOLOPRESS,30/8/2021 00:00:00,26/9/2021 00:00:00,P06-2022
P&V,SPORTS DEVELOPMENT GRANTS & AG,SUPPLIES AND SERVICES,MARKETING,4603,P113690-SERVICE-Design work for Wheelchair tennis flyers,09/07/2021 00:00,252456,95,BL0393,BLUE SEA DESIGN,30/8/2021 00:00:00,26/9/2021 00:00:00,P06-2022
P&V,LEE VALLEY FARM HOLYFIELDHALL,SUPPLIES AND SERVICES,PEST CONTROL,4625,P113674-SERVICE-1 Wasp Control,09/07/2021 00:00,251972,48,FR0230,FRED BURNELL,30/8/2021 00:00:00,26/9/2021 00:00:00,P06-2022
P&V,LEE VALLEY FARM HOLYFIELDHALL,SUPPLIES AND SERVICES,PEST CONTROL,4625,P113674-SERVICE-12 Month Rodent Control,09/07/2021 00:00,251972,1360,FR0230,FRED BURNELL,30/8/2021 00:00:00,26/9/2021 00:00:00,P06-2022
P&V,NORTH AREA RANGERS,SUPPLIES AND SERVICES,PEST CONTROL,4625,P111749-SERVICE-Pest Control - Ware Town Centre,13/9/2021 00:00:00,252638,53.34,VE0006,VERMINATE CITY & RURAL PEST CONTROL LTD,30/8/2021 00:00:00,26/9/2021 00:00:00,P06-2022
P&V,NORTH AREA RANGERS,SUPPLIES AND SERVICES,PEST CONTROL,4625,P111749-SERVICE-Pest Control - Ware Town Centre,13/9/2021 00:00:00,252639,53.34,VE0006,VERMINATE CITY & RURAL PEST CONTROL LTD,30/8/2021 00:00:00,26/9/2021 00:00:00,P06-2022
P&V,SOUTH AREA RANGERS,SUPPLIES AND SERVICES,PEST CONTROL,4625,P111747-SERVICE-Pest Control - Tottenham Marshes,13/9/2021 00:00:00,252640,46.67,VE0006,VERMINATE CITY & RURAL PEST CONTROL LTD,30/8/2021 00:00:00,26/9/2021 00:00:00,P06-2022
P&V,SOUTH AREA RANGERS,SUPPLIES AND SERVICES,PEST CONTROL,4625,P111747-SERVICE-Pest Control - Tottenham Marshes,13/9/2021 00:00:00,252641,46.67,VE0006,VERMINATE CITY & RURAL PEST CONTROL LTD,30/8/2021 00:00:00,26/9/2021 00:00:00,P06-2022
P&V,RIVER LEE COUNTRY PARK,SUPPLIES AND SERVICES,PEST CONTROL,4625,P111748-SERVICE-Pest Control - North Sites,13/9/2021 00:00:00,252636,200,VE0006,VERMINATE CITY & RURAL PEST CONTROL LTD,30/8/2021 00:00:00,26/9/2021 00:00:00,P06-2022
